Body Name,Body,Organisational unit,Service division,Expenditure category,Date,Transacton number,Net amount,Supplier,Narrative
Tendring DC,http://statistics.data.gov.uk/id/local-authority-district/22UN,Corporate Services,1320 - Print Unit Service Unit,4302 - External Print Unit Expenses,10/12/2013,1056567-1,160,2100069 - Autoprint,JOB 461
Tendring DC,http://statistics.data.gov.uk/id/local-authority-district/22UN,Corporate Services,1320 - Print Unit Service Unit,4302 - External Print Unit Expenses,10/12/2013,1056568-1,220,2100069 - Autoprint,JOB 445
Tendring DC,http://statistics.data.gov.uk/id/local-authority-district/22UN,Corporate Services,1100 - Corporate Director (Corporate Services) and Admin Service Unit,4300 - Printing & Stationery,03/12/2013,2112508-1,16.8,2100111 - Banner Business Supplies Ltd,banner
Tendring DC,http://statistics.data.gov.uk/id/local-authority-district/22UN,Corporate Services,7100 - Community Health/Safety,4300 - Printing & Stationery,10/12/2013,2112627-1,50.9,2100111 - Banner Business Supplies Ltd,banner
Tendring DC,http://statistics.data.gov.uk/id/local-authority-district/22UN,Corporate Services,1100 - Corporate Director (Corporate Services) and Admin Service Unit,4300 - Printing & Stationery,10/12/2013,2112627-2,132.06,2100111 - Banner Business Supplies Ltd,banner
Tendring DC,http://statistics.data.gov.uk/id/local-authority-district/22UN,Corporate Services,1100 - Corporate Director (Corporate Services) and Admin Service Unit,4300 - Printing & Stationery,17/12/2013,7010255-1,15.33,2100111 - Banner Business Supplies Ltd,STATIONERY
Tendring DC,http://statistics.data.gov.uk/id/local-authority-district/22UN,Corporate Services,1100 - Corporate Director (Corporate Services) and Admin Service Unit,4300 - Printing & Stationery,17/12/2013,7010255-2,13.69,2100111 - Banner Business Supplies Ltd,STATIONERY
Tendring DC,http://statistics.data.gov.uk/id/local-authority-district/22UN,Corporate Services,1100 - Corporate Director (Corporate Services) and Admin Service Unit,4300 - Printing & Stationery,17/12/2013,7010257-1,257.84,2100111 - Banner Business Supplies Ltd,BANNER
Tendring DC,http://statistics.data.gov.uk/id/local-authority-district/22UN,Corporate Services,1100 - Corporate Director (Corporate Services) and Admin Service Unit,4300 - Printing & Stationery,23/12/2013,7010527-1,37.63,2100111 - Banner Business Supplies Ltd,BANNER
Tendring DC,http://statistics.data.gov.uk/id/local-authority-district/22UN,Corporate Services,1100 - Corporate Director (Corporate Services) and Admin Service Unit,4300 - Printing & Stationery,23/12/2013,7010528-1,8.02,2100111 - Banner Business Supplies Ltd,BANNER
Tendring DC,http://statistics.data.gov.uk/id/local-authority-district/22UN,Corporate Services,1100 - Corporate Director (Corporate Services) and Admin Service Unit,4300 - Printing & Stationery,23/12/2013,7010545-1,4.4,2100111 - Banner Business Supplies Ltd,STATIONERY
Tendring DC,http://statistics.data.gov.uk/id/local-authority-district/22UN,Corporate Services,1100 - Corporate Director (Corporate Services) and Admin Service Unit,4300 - Printing & Stationery,03/12/2013,7700893-1,17.73,2100111 - Banner Business Supplies Ltd,STATIONERY
Tendring DC,http://statistics.data.gov.uk/id/local-authority-district/22UN,Corporate Services,1815 - Personnel and Human Resources Issues,4459 - External Legal Advice,03/12/2013,2112526-1,250,2113524 - Bates Wells and Braithwaite,compromise agreement
Tendring DC,http://statistics.data.gov.uk/id/local-authority-district/22UN,Corporate Services,6160 - Princes Theatre,5308 - Ice Cream,03/12/2013,7700852-1,278.08,2108623 - CICC Ltd,ICE CREAM FOR THEATRE
Tendring DC,http://statistics.data.gov.uk/id/local-authority-district/22UN,Corporate Services,1100 - Corporate Director (Corporate Services) and Admin Service Unit,1710 - Training - Central Department Budget,03/12/2013,2112519-1,245,2109394 - CIPFA Business Ltd,cipfa audit update - london
Tendring DC,http://statistics.data.gov.uk/id/local-authority-district/22UN,Corporate Services,1120 - Accountancy Service Unit,4355 - Books & Periodicals,10/12/2013,7010110-1,1598.75,2109394 - CIPFA Business Ltd,GUIDANCE NOTES 13/14
Tendring DC,http://statistics.data.gov.uk/id/local-authority-district/22UN,Corporate Services,9900 - General Fund Balance Sheet,B382 - Rechargeable Works - Other,17/12/2013,2112877-1,2400,2112387 - Clyde & Co LLP,fp11-05 west st
Tendring DC,http://statistics.data.gov.uk/id/local-authority-district/22UN,Corporate Services,9900 - General Fund Balance Sheet,B382 - Rechargeable Works - Other,17/12/2013,2112877-2,-2400,2112387 - Clyde & Co LLP,fp11-05 west st
Tendring DC,http://statistics.data.gov.uk/id/local-authority-district/22UN,Corporate Services,1800 - Qualification and Other Training,1700 - Training - Courses,03/12/2013,2112535-1,800,2101953 - Colchester Institute Enterprises Ltd,managing infor and decision making
Tendring DC,http://statistics.data.gov.uk/id/local-authority-district/22UN,Corporate Services,1320 - Print Unit Service Unit,4400 - Maintenance Under Service Agreements,23/12/2013,7010465-1,195,2100353 - Consensus Guillotine Engineering Ltd,GUILLOTINE SERVICE
Tendring DC,http://statistics.data.gov.uk/id/local-authority-district/22UN,Corporate Services,1100 - Corporate Director (Corporate Services) and Admin Service Unit,4300 - Printing & Stationery,23/12/2013,1056719-1,9.95,2102200 - David Horn Communications Ltd,CARRIAGE COST
Tendring DC,http://statistics.data.gov.uk/id/local-authority-district/22UN,Corporate Services,1100 - Corporate Director (Corporate Services) and Admin Service Unit,4300 - Printing & Stationery,23/12/2013,1056720-1,150,2102200 - David Horn Communications Ltd,IVC CD'S
Tendring DC,http://statistics.data.gov.uk/id/local-authority-district/22UN,Corporate Services,7025 - CDRP Support,4900 - Grants,17/12/2013,2112682-1,1150,2112014 - De Vere Cars,devere travel - borderhire
Tendring DC,http://statistics.data.gov.uk/id/local-authority-district/22UN,Corporate Services,9900 - General Fund Balance Sheet,B382 - Rechargeable Works - Other,17/12/2013,2112876-1,4138.5,REDACTED COMMERCIAL CONFIDENTIALITY,REDACTED COMMERCIAL CONFIDENTIALITY
Tendring DC,http://statistics.data.gov.uk/id/local-authority-district/22UN,Corporate Services,9900 - General Fund Balance Sheet,B382 - Rechargeable Works - Other,17/12/2013,2112876-2,-4138.5,REDACTED COMMERCIAL CONFIDENTIALITY,REDACTED COMMERCIAL CONFIDENTIALITY
Tendring DC,http://statistics.data.gov.uk/id/local-authority-district/22UN,Corporate Services,1815 - Personnel and Human Resources Issues,1707 - Training - Workforce Development Courses,03/12/2013,2112527-1,5459.5,2112342 - EMB Excellence Ltd,investors in people review
Tendring DC,http://statistics.data.gov.uk/id/local-authority-district/22UN,Corporate Services,6620 - Corporate Management - General,5180 - External Audit Fees,03/12/2013,7009967-1,2730,2112514 - Ernst & Young,ETHICAL GOVERNANCE
Tendring DC,http://statistics.data.gov.uk/id/local-authority-district/22UN,Corporate Services,1180 - Benefit Fraud Investigation Service Unit,5500 - Miscellaneous Expenses,17/12/2013,7010318-1,10,2100429 - Essex County Council,BIRTH CERTIFICATE FOR FRAUD INVEST
Tendring DC,http://statistics.data.gov.uk/id/local-authority-district/22UN,Corporate Services,8971 - MIRS - Contributions Payable to the Pension Scheme,1816 - Superannuation Deficiency Contribution,17/12/2013,7010346-3,137750,2100419 - Essex County Council,Pension 00013
Tendring DC,http://statistics.data.gov.uk/id/local-authority-district/22UN,Corporate Services,8971 - MIRS - Contributions Payable to the Pension Scheme,1810 - Superannuation - Financial Strain/Added Years,17/12/2013,7010346-4,16992.19,2100419 - Essex County Council,Pension 00013
Tendring DC,http://statistics.data.gov.uk/id/local-authority-district/22UN,Corporate Services,8971 - MIRS - Contributions Payable to the Pension Scheme,1822 - Superannuation - Port Health Pensions etc.,17/12/2013,7010347-2,800.05,2100419 - Essex County Council,Port Health Authority
Tendring DC,http://statistics.data.gov.uk/id/local-authority-district/22UN,Corporate Services,1100 - Corporate Director (Corporate Services) and Admin Service Unit,1710 - Training - Central Department Budget,17/12/2013,2112875-1,70,2110439 - Essex Pension Fund,lgps workshop 29/11
Tendring DC,http://statistics.data.gov.uk/id/local-authority-district/22UN,Corporate Services,1660 - Other Apportionable Overheads,4609 - Child Care Vouchers Management Fee,17/12/2013,2112873-2,52.38,REDACTED PERSONAL DATA,REDACTED PERSONAL DATA
Tendring DC,http://statistics.data.gov.uk/id/local-authority-district/22UN,Corporate Services,1180 - Benefit Fraud Investigation Service Unit,4459 - External Legal Advice,10/12/2013,7010047-1,514.44,2100672 - Harris Cuffaro & Nichols Solicitors,COURT COSTS
Tendring DC,http://statistics.data.gov.uk/id/local-authority-district/22UN,Corporate Services,1180 - Benefit Fraud Investigation Service Unit,4459 - External Legal Advice,10/12/2013,7010047-2,2,2100672 - Harris Cuffaro & Nichols Solicitors,COURT COSTS
Tendring DC,http://statistics.data.gov.uk/id/local-authority-district/22UN,Corporate Services,H880 - New Build Initiatives and Acquisitions,C200 - Main Contractor,10/12/2013,1056553-1,40,2108233 - HM Land Registry,CANCELLATION OF NOTICE FEE-BUER PURCHASE
Tendring DC,http://statistics.data.gov.uk/id/local-authority-district/22UN,Corporate Services,1300 - Legal Services Service Unit,4461 - Court Fees,03/12/2013,1056517-1,245,2100661 - HMCTS,
Tendring DC,http://statistics.data.gov.uk/id/local-authority-district/22UN,Corporate Services,1800 - Qualification and Other Training,1700 - Training - Courses,17/12/2013,2112797-1,450,2100740 - ICCM,education seminar
Tendring DC,http://statistics.data.gov.uk/id/local-authority-district/22UN,Corporate Services,C349 - IT Strategic Investment,C276 - Licences for Software,03/12/2013,2112515-1,39080,2106643 - Idox Software Ltd,1st instal 40%
Tendring DC,http://statistics.data.gov.uk/id/local-authority-district/22UN,Corporate Services,1120 - Accountancy Service Unit,4040 - Equipment & Tools,03/12/2013,7700850-1,294.58,2102228 - Incoms Systems PLC,LED MONITOR
Tendring DC,http://statistics.data.gov.uk/id/local-authority-district/22UN,Corporate Services,1760 - IT Direct Service Costs,4751 - Hardware & Service Maintenance,03/12/2013,7700851-1,835.6,2102228 - Incoms Systems PLC,ZGBDDR2CLS MODULE
Tendring DC,http://statistics.data.gov.uk/id/local-authority-district/22UN,Corporate Services,7100 - Community Health/Safety,4300 - Printing & Stationery,03/12/2013,7700848-1,100.23,2100782 - Insight Direct (uk) Limited,SCREEN
Tendring DC,http://statistics.data.gov.uk/id/local-authority-district/22UN,Corporate Services,1330 - Human Resources Service Unit,3311 - Travelling Career Track,17/12/2013,7010306-1,9.6,2113455 - Lauren Cuthbert,
Tendring DC,http://statistics.data.gov.uk/id/local-authority-district/22UN,Corporate Services,1320 - Print Unit Service Unit,4080 - Materials & Consumables,10/12/2013,1056564-1,69.3,2100864 - Leston Stationery Ltd,PAPER
Tendring DC,http://statistics.data.gov.uk/id/local-authority-district/22UN,Corporate Services,1320 - Print Unit Service Unit,4080 - Materials & Consumables,10/12/2013,1056565-1,606,2100864 - Leston Stationery Ltd,PAPER
Tendring DC,http://statistics.data.gov.uk/id/local-authority-district/22UN,Corporate Services,1320 - Print Unit Service Unit,4080 - Materials & Consumables,23/12/2013,7010466-1,46.8,2100864 - Leston Stationery Ltd,A3 PAPER
Tendring DC,http://statistics.data.gov.uk/id/local-authority-district/22UN,Corporate Services,1320 - Print Unit Service Unit,4080 - Materials & Consumables,23/12/2013,7010467-1,82.6,2100864 - Leston Stationery Ltd,PAPER
Tendring DC,http://statistics.data.gov.uk/id/local-authority-district/22UN,Corporate Services,7220 - Election Expenses,4486 - Election Expenses,23/12/2013,7010515-1,598,2100874 - Lexis Nexis UK,ELECTION GUIDES
Tendring DC,http://statistics.data.gov.uk/id/local-authority-district/22UN,Corporate Services,1760 - IT Direct Service Costs,6320 - IT Services Agreements Payment,10/12/2013,1056616-1,51622.01,2108077 - Liberata Financial Services Ltd,LIBERATA DEC 13 MAIN CONTRACT PAYMENT
Tendring DC,http://statistics.data.gov.uk/id/local-authority-district/22UN,Corporate Services,1760 - IT Direct Service Costs,6325 - Additional Services,23/12/2013,7010530-1,3253.41,2108077 - Liberata Financial Services Ltd,BOLDON JAMES IMPL
Tendring DC,http://statistics.data.gov.uk/id/local-authority-district/22UN,Corporate Services,1815 - Personnel and Human Resources Issues,1708 - Training - New Programme Development Courses,17/12/2013,2112669-1,38.97,2113179 - Management Learning Resources Ltd,effective remote worker profile guide
Tendring DC,http://statistics.data.gov.uk/id/local-authority-district/22UN,Corporate Services,1815 - Personnel and Human Resources Issues,1709 - Training - Management Development Courses,03/12/2013,2112520-1,1036,2113514 - Marlborough Training and Consultancy Ltd,project management training
Tendring DC,http://statistics.data.gov.uk/id/local-authority-district/22UN,Corporate Services,1815 - Personnel and Human Resources Issues,1709 - Training - Management Development Courses,03/12/2013,2112521-1,736,2113514 - Marlborough Training and Consultancy Ltd,project management training
Tendring DC,http://statistics.data.gov.uk/id/local-authority-district/22UN,Corporate Services,1760 - IT Direct Service Costs,4715 - Data Communication Charge,03/12/2013,1056511-1,2040,2100922 - Micrologic UK Limited,BACKUP INTERNET CLACTON
Tendring DC,http://statistics.data.gov.uk/id/local-authority-district/22UN,Corporate Services,1300 - Legal Services Service Unit,4503 - Counsels Fees,03/12/2013,2112506-1,1250,REDACTED PERSONAL DATA,REDACTED PERSONAL DATA
Tendring DC,http://statistics.data.gov.uk/id/local-authority-district/22UN,Corporate Services,1300 - Legal Services Service Unit,4503 - Counsels Fees,03/12/2013,2112506-2,80,REDACTED PERSONAL DATA,REDACTED PERSONAL DATA
Tendring DC,http://statistics.data.gov.uk/id/local-authority-district/22UN,Corporate Services,1930 - Asset Management Service Unit,4469 - Other Non - Legal Professional Services,23/12/2013,7700919-1,392.62,2113536 - Newsquest Media Group,THE NAZE ADVERT
Tendring DC,http://statistics.data.gov.uk/id/local-authority-district/22UN,Corporate Services,1930 - Asset Management Service Unit,4460 - Legal & Professional Expenses,10/12/2013,7010045-1,3778,2111951 - NPS Property Consultants Ltd,NPS SERVICES
Tendring DC,http://statistics.data.gov.uk/id/local-authority-district/22UN,Corporate Services,6460 - Career Track,4688 - Career Track Exam Fees,03/12/2013,1056455-1,-80.9,REDACTED PERSONAL DATA,REDACTED PERSONAL DATA
Tendring DC,http://statistics.data.gov.uk/id/local-authority-district/22UN,Corporate Services,6460 - Career Track,4688 - Career Track Exam Fees,03/12/2013,2112511-1,101.4,REDACTED PERSONAL DATA,REDACTED PERSONAL DATA
Tendring DC,http://statistics.data.gov.uk/id/local-authority-district/22UN,Corporate Services,6460 - Career Track,4688 - Career Track Exam Fees,03/12/2013,2112512-1,101.4,REDACTED PERSONAL DATA,REDACTED PERSONAL DATA
Tendring DC,http://statistics.data.gov.uk/id/local-authority-district/22UN,Corporate Services,6460 - Career Track,4688 - Career Track Exam Fees,03/12/2013,2112513-1,80.9,REDACTED PERSONAL DATA,REDACTED PERSONAL DATA
Tendring DC,http://statistics.data.gov.uk/id/local-authority-district/22UN,Corporate Services,6460 - Career Track,4688 - Career Track Exam Fees,03/12/2013,2112522-1,80.9,REDACTED PERSONAL DATA,REDACTED PERSONAL DATA
Tendring DC,http://statistics.data.gov.uk/id/local-authority-district/22UN,Corporate Services,6460 - Career Track,4688 - Career Track Exam Fees,03/12/2013,2112523-1,80.9,REDACTED PERSONAL DATA,REDACTED PERSONAL DATA
Tendring DC,http://statistics.data.gov.uk/id/local-authority-district/22UN,Corporate Services,6460 - Career Track,4688 - Career Track Exam Fees,03/12/2013,2112524-1,101.4,REDACTED PERSONAL DATA,REDACTED PERSONAL DATA
Tendring DC,http://statistics.data.gov.uk/id/local-authority-district/22UN,Corporate Services,6460 - Career Track,4688 - Career Track Exam Fees,03/12/2013,2112525-1,101.4,REDACTED PERSONAL DATA,REDACTED PERSONAL DATA
Tendring DC,http://statistics.data.gov.uk/id/local-authority-district/22UN,Corporate Services,6460 - Career Track,4688 - Career Track Exam Fees,23/12/2013,7010536-1,150.2,REDACTED PERSONAL DATA,REDACTED PERSONAL DATA
Tendring DC,http://statistics.data.gov.uk/id/local-authority-district/22UN,Corporate Services,6460 - Career Track,4688 - Career Track Exam Fees,23/12/2013,7010540-1,20.1,REDACTED PERSONAL DATA,REDACTED PERSONAL DATA
Tendring DC,http://statistics.data.gov.uk/id/local-authority-district/22UN,Corporate Services,6460 - Career Track,4688 - Career Track Exam Fees,23/12/2013,7700911-1,57.33,REDACTED PERSONAL DATA,REDACTED PERSONAL DATA
Tendring DC,http://statistics.data.gov.uk/id/local-authority-district/22UN,Corporate Services,6460 - Career Track,4688 - Career Track Exam Fees,23/12/2013,7700913-1,75,REDACTED PERSONAL DATA,REDACTED PERSONAL DATA
Tendring DC,http://statistics.data.gov.uk/id/local-authority-district/22UN,Corporate Services,6460 - Career Track,4688 - Career Track Exam Fees,23/12/2013,7700914-1,75,REDACTED PERSONAL DATA,REDACTED PERSONAL DATA
Tendring DC,http://statistics.data.gov.uk/id/local-authority-district/22UN,Corporate Services,6460 - Career Track,4688 - Career Track Exam Fees,23/12/2013,7700915-1,67.42,REDACTED PERSONAL DATA,REDACTED PERSONAL DATA
Tendring DC,http://statistics.data.gov.uk/id/local-authority-district/22UN,Corporate Services,1320 - Print Unit Service Unit,4302 - External Print Unit Expenses,10/12/2013,1056566-1,20,2111844 - Optimumprint,JOB 493
Tendring DC,http://statistics.data.gov.uk/id/local-authority-district/22UN,Corporate Services,1320 - Print Unit Service Unit,4302 - External Print Unit Expenses,17/12/2013,2112680-1,240,2111844 - Optimumprint,jobs/ 523/524
Tendring DC,http://statistics.data.gov.uk/id/local-authority-district/22UN,Corporate Services,1760 - IT Direct Service Costs,4880 - Subscriptions Paid,10/12/2013,1056563-1,637.5,2109369 - PDP Training,PRIVACY & DATA PROT 2 YR
Tendring DC,http://statistics.data.gov.uk/id/local-authority-district/22UN,Corporate Services,6460 - Career Track,4688 - Career Track Exam Fees,03/12/2013,2112528-1,29,2100425 - Pearson,f skills ict le & l2
Tendring DC,http://statistics.data.gov.uk/id/local-authority-district/22UN,Corporate Services,6460 - Career Track,4688 - Career Track Exam Fees,03/12/2013,2112529-1,43.5,REDACTED PERSONAL DATA,REDACTED PERSONAL DATA
Tendring DC,http://statistics.data.gov.uk/id/local-authority-district/22UN,Corporate Services,6460 - Career Track,4688 - Career Track Exam Fees,03/12/2013,2112530-1,14.5,REDACTED PERSONAL DATA,REDACTED PERSONAL DATA
Tendring DC,http://statistics.data.gov.uk/id/local-authority-district/22UN,Corporate Services,6460 - Career Track,4688 - Career Track Exam Fees,23/12/2013,7010532-1,50.5,REDACTED PERSONAL DATA,REDACTED PERSONAL DATA
Tendring DC,http://statistics.data.gov.uk/id/local-authority-district/22UN,Corporate Services,6460 - Career Track,4688 - Career Track Exam Fees,23/12/2013,7010533-1,54,REDACTED PERSONAL DATA,REDACTED PERSONAL DATA
Tendring DC,http://statistics.data.gov.uk/id/local-authority-district/22UN,Corporate Services,6460 - Career Track,4688 - Career Track Exam Fees,23/12/2013,7010534-1,43.5,REDACTED PERSONAL DATA,REDACTED PERSONAL DATA
Tendring DC,http://statistics.data.gov.uk/id/local-authority-district/22UN,Corporate Services,6460 - Career Track,4688 - Career Track Exam Fees,23/12/2013,7010535-1,14.5,REDACTED PERSONAL DATA,REDACTED PERSONAL DATA
Tendring DC,http://statistics.data.gov.uk/id/local-authority-district/22UN,Corporate Services,1815 - Personnel and Human Resources Issues,1500 - Advertising - Recruitment,17/12/2013,2112798-1,70,2113070 - Penna plc,advertisement
Tendring DC,http://statistics.data.gov.uk/id/local-authority-district/22UN,Corporate Services,1670 - Engineering Services Management,4753 - Computer - Application Software,03/12/2013,7700849-1,501.6,2101038 - Phoenix Software Limited,ACROBAT PROF 11
Tendring DC,http://statistics.data.gov.uk/id/local-authority-district/22UN,Corporate Services,1661 - Other Apportionable Overheads - Corporate Support,4700 - Postage,03/12/2013,1056474-1,5000,2104077 - Pitney Bowes Ltd,RE-CREDIT FRANKING MACHINE-CLACTON-PBP A/C 10113561
Tendring DC,http://statistics.data.gov.uk/id/local-authority-district/22UN,Corporate Services,7025 - CDRP Support,4900 - Grants,23/12/2013,7010463-1,2000,2113538 - Police and Crime Commissioner for Essex,OP CHRISTMAS CRACKER ESSEX POLICE
Tendring DC,http://statistics.data.gov.uk/id/local-authority-district/22UN,Corporate Services,1930 - Asset Management Service Unit,4460 - Legal & Professional Expenses,17/12/2013,2112657-1,350,2105829 - Prettys Solicitors,prettys clacton rugby
Tendring DC,http://statistics.data.gov.uk/id/local-authority-district/22UN,Corporate Services,1930 - Asset Management Service Unit,4460 - Legal & Professional Expenses,10/12/2013,7009993-1,350,2105829 - Prettys Solicitors,PRETTYS F & W SCOUTS
Tendring DC,http://statistics.data.gov.uk/id/local-authority-district/22UN,Corporate Services,7240 - Electoral Registration Expenses,4300 - Printing & Stationery,23/12/2013,7010514-1,1203.74,2103246 - Print.uk.com,PRINT COSTS
Tendring DC,http://statistics.data.gov.uk/id/local-authority-district/22UN,Corporate Services,1760 - IT Direct Service Costs,4753 - Computer - Application Software,10/12/2013,1056562-1,1403.75,2106860 - ProcessFlows UK Ltd,TEXT MESS 2014-15
Tendring DC,http://statistics.data.gov.uk/id/local-authority-district/22UN,Corporate Services,1100 - Corporate Director (Corporate Services) and Admin Service Unit,4300 - Printing & Stationery,23/12/2013,7010416-1,371.9,2108638 - Prolog Print Media Ltd,PROLOG PRINT MEDIA LTD
Tendring DC,http://statistics.data.gov.uk/id/local-authority-district/22UN,Corporate Services,7240 - Electoral Registration Expenses,4700 - Postage,03/12/2013,2112509-1,1196.36,2101139 - Royal Mail,pre-paid envelopes
Tendring DC,http://statistics.data.gov.uk/id/local-authority-district/22UN,Corporate Services,7240 - Electoral Registration Expenses,4700 - Postage,23/12/2013,7010516-1,1437.66,2101139 - Royal Mail,PRE PAID POSTAGE
Tendring DC,http://statistics.data.gov.uk/id/local-authority-district/22UN,Corporate Services,7240 - Electoral Registration Expenses,4700 - Postage,23/12/2013,7700905-1,13.66,2101139 - Royal Mail,PRE-PAID ENVELOPES
Tendring DC,http://statistics.data.gov.uk/id/local-authority-district/22UN,Corporate Services,1815 - Personnel and Human Resources Issues,1600 - Medical Expenses,10/12/2013,7010046-1,580,2110675 - RPS Consultants Ltd,OCCUPATIONAL HEALTH
Tendring DC,http://statistics.data.gov.uk/id/local-authority-district/22UN,Corporate Services,6980 - Essex Family Needs Project,1700 - Training - Courses,17/12/2013,2112670-1,950,2113546 - Sheilds Vocational Training Limited,sheilds vocational training
Tendring DC,http://statistics.data.gov.uk/id/local-authority-district/22UN,Corporate Services,1815 - Personnel and Human Resources Issues,1707 - Training - Workforce Development Courses,10/12/2013,7010106-1,69.47,2113595 - Skills CFA,ADMIN STANDARDS BOOK LEVEL 3
Tendring DC,http://statistics.data.gov.uk/id/local-authority-district/22UN,Corporate Services,1100 - Corporate Director (Corporate Services) and Admin Service Unit,1710 - Training - Central Department Budget,10/12/2013,7010093-1,400,2102558 - SOLACE,TRAINING COURSE MBIC
Tendring DC,http://statistics.data.gov.uk/id/local-authority-district/22UN,Corporate Services,1100 - Corporate Director (Corporate Services) and Admin Service Unit,1710 - Training - Central Department Budget,10/12/2013,7010094-1,400,2102558 - SOLACE,TRAINING COURSE -  ID
Tendring DC,http://statistics.data.gov.uk/id/local-authority-district/22UN,Corporate Services,1800 - Qualification and Other Training,1705 - Training - Other Approved Exps,17/12/2013,1056623-1,100,REDACTED PERSONAL DATA,REDACTED PERSONAL DATA
Tendring DC,http://statistics.data.gov.uk/id/local-authority-district/22UN,Corporate Services,7025 - CDRP Support,4900 - Grants,17/12/2013,7010246-1,70,2107338 - Swan Taxis,TAXI - BORDERLINE
Tendring DC,http://statistics.data.gov.uk/id/local-authority-district/22UN,Corporate Services,6460 - Career Track,4688 - Career Track Exam Fees,23/12/2013,1056657-1,320,REDACTED PERSONAL DATA,REDACTED PERSONAL DATA
Tendring DC,http://statistics.data.gov.uk/id/local-authority-district/22UN,Corporate Services,1300 - Legal Services Service Unit,4355 - Books & Periodicals,23/12/2013,7700918-1,239,2111580 - Thomson Reuters,CROSS ON LOCAL GOV
Tendring DC,http://statistics.data.gov.uk/id/local-authority-district/22UN,Corporate Services,7025 - CDRP Support,4900 - Grants,17/12/2013,2112786-1,2500,2112953 - Vision-Redbridge Culture & Leisure,glasburyhouse-vision-borderline
Tendring DC,http://statistics.data.gov.uk/id/local-authority-district/22UN,Corporate Services,1320 - Print Unit Service Unit,4350 - Photocopier Hire,23/12/2013,7010474-1,4737,2101517 - Xerox (UK) Ltd,252 BC & COPIES
Tendring DC,http://statistics.data.gov.uk/id/local-authority-district/22UN,Corporate Services,1320 - Print Unit Service Unit,4350 - Photocopier Hire,23/12/2013,7010475-1,942.63,2101517 - Xerox (UK) Ltd,4127 B C & COPIES
Tendring DC,http://statistics.data.gov.uk/id/local-authority-district/22UN,Corporate Services,1090 - Chief Executive and Support Service Unit,4300 - Printing & Stationery,03/12/2013,2112507-1,40.58,2107546 - XMA Limited,xma
Tendring DC,http://statistics.data.gov.uk/id/local-authority-district/22UN,Corporate Services,1100 - Corporate Director (Corporate Services) and Admin Service Unit,4300 - Printing & Stationery,03/12/2013,2112507-2,92.49,2107546 - XMA Limited,xma
Tendring DC,http://statistics.data.gov.uk/id/local-authority-district/22UN,Corporate Services,1100 - Corporate Director (Corporate Services) and Admin Service Unit,4300 - Printing & Stationery,17/12/2013,2112633-1,146.37,2107546 - XMA Limited,xma
Tendring DC,http://statistics.data.gov.uk/id/local-authority-district/22UN,Corporate Services,1100 - Corporate Director (Corporate Services) and Admin Service Unit,4300 - Printing & Stationery,23/12/2013,7010417-1,53.68,2107546 - XMA Limited,XMA
Tendring DC,http://statistics.data.gov.uk/id/local-authority-district/22UN,Corporate Services,5480 - HRA - Repair & Maintenance,6625 - Tenants Compensation Scheme,17/12/2013,2112874-1,650,2107672 - Zurich Municipal Insurance,pl11/10 & pl13/04
Tendring DC,http://statistics.data.gov.uk/id/local-authority-district/22UN,Corporate Services,5480 - HRA - Repair & Maintenance,6625 - Tenants Compensation Scheme,17/12/2013,2112874-2,1000,2107672 - Zurich Municipal Insurance,pl11/10 & pl13/04
Tendring DC,http://statistics.data.gov.uk/id/local-authority-district/22UN,Life Opportunities,1860 - Depots General,2100 - Building Repairs,03/12/2013,1056457-1,380,2100061 - A R & J Pardoe,DECORATING NORTHBOURNE
Tendring DC,http://statistics.data.gov.uk/id/local-authority-district/22UN,Life Opportunities,1860 - Depots General,2100 - Building Repairs,03/12/2013,1056457-2,80,2100061 - A R & J Pardoe,DECORATING NORTHBOURNE
Tendring DC,http://statistics.data.gov.uk/id/local-authority-district/22UN,Life Opportunities,6160 - Princes Theatre,5160 - Advertising,23/12/2013,7010415-1,75,2113528 - A R ADVERTISING LTD,LEAFLETS WITH WIVENHOE VILLAGE LINK
Tendring DC,http://statistics.data.gov.uk/id/local-authority-district/22UN,Life Opportunities,6160 - Princes Theatre,4597 - Hired Services - Payments to Contractors,10/12/2013,2112621-1,50,2100091 - A Warrender,piano tuning dec 13
Tendring DC,http://statistics.data.gov.uk/id/local-authority-district/22UN,Life Opportunities,1880 - Office Accommodation Expenses,2100 - Building Repairs,03/12/2013,7700847-1,162,2101609 - Adcock Refrigeration & Air Conditioning Ltd,PIPE INSULATION
Tendring DC,http://statistics.data.gov.uk/id/local-authority-district/22UN,Life Opportunities,1880 - Office Accommodation Expenses,2500 - Water Services - Metered,10/12/2013,1056559-1,138.65,2112518 - Affinity Water Ltd (East Region),CLAY HALL OCT 13
Tendring DC,http://statistics.data.gov.uk/id/local-authority-district/22UN,Life Opportunities,8510 - Dovercourt Swimming Pool & All Weather Facilities,2510 - Water Services - Unmetered,17/12/2013,2112820-1,379.37,2112518 - Affinity Water Ltd (East Region),water nov dsp
Tendring DC,http://statistics.data.gov.uk/id/local-authority-district/22UN,Life Opportunities,8540 - Leisure Centre Clacton,2510 - Water Services - Unmetered,23/12/2013,7010499-1,1022.1,2112518 - Affinity Water Ltd (East Region),NOVEMBER
Tendring DC,http://statistics.data.gov.uk/id/local-authority-district/22UN,Life Opportunities,5480 - HRA - Repair & Maintenance,2017 - Mechanical Equipment /Extract Fans,10/12/2013,1056539-1,-249.33,2110902 - Airtech Environmental Systems,AO38699
Tendring DC,http://statistics.data.gov.uk/id/local-authority-district/22UN,Life Opportunities,5480 - HRA - Repair & Maintenance,2017 - Mechanical Equipment /Extract Fans,10/12/2013,7010031-1,803.94,REDACTED PERSONAL DATA,REDACTED PERSONAL DATA
Tendring DC,http://statistics.data.gov.uk/id/local-authority-district/22UN,Life Opportunities,5480 - HRA - Repair & Maintenance,2017 - Mechanical Equipment /Extract Fans,10/12/2013,7010032-1,740.5,REDACTED PERSONAL DATA,REDACTED PERSONAL DATA
Tendring DC,http://statistics.data.gov.uk/id/local-authority-district/22UN,Life Opportunities,H715 - Measures To Combat Condensation,C200 - Main Contractor,10/12/2013,7010033-1,591,REDACTED PERSONAL DATA,REDACTED PERSONAL DATA
Tendring DC,http://statistics.data.gov.uk/id/local-authority-district/22UN,Life Opportunities,5480 - HRA - Repair & Maintenance,2017 - Mechanical Equipment /Extract Fans,23/12/2013,7010413-1,665.5,REDACTED PERSONAL DATA,REDACTED PERSONAL DATA
Tendring DC,http://statistics.data.gov.uk/id/local-authority-district/22UN,Life Opportunities,H715 - Measures To Combat Condensation,C200 - Main Contractor,23/12/2013,7010414-1,1079.3,REDACTED PERSONAL DATA,REDACTED PERSONAL DATA
Tendring DC,http://statistics.data.gov.uk/id/local-authority-district/22UN,Life Opportunities,5480 - HRA - Repair & Maintenance,2017 - Mechanical Equipment /Extract Fans,03/12/2013,7700845-1,687.42,2110902 - Airtech Environmental Systems,3 COLLEGE COURT
Tendring DC,http://statistics.data.gov.uk/id/local-authority-district/22UN,Life Opportunities,H715 - Measures To Combat Condensation,C200 - Main Contractor,03/12/2013,7700846-1,591,2110902 - Airtech Environmental Systems,19 LONDON ROAD
Tendring DC,http://statistics.data.gov.uk/id/local-authority-district/22UN,Life Opportunities,8540 - Leisure Centre Clacton,2100 - Building Repairs,17/12/2013,2112787-1,70.84,2110677 - Alders TV,replace flyleads to t mills
Tendring DC,http://statistics.data.gov.uk/id/local-authority-district/22UN,Life Opportunities,C021 - Mercury Abatement Equipment and Cremators replacement,C200 - Main Contractor,17/12/2013,2112649-1,1250,2113215 - Allman Woodcock Limited,employers agent services
Tendring DC,http://statistics.data.gov.uk/id/local-authority-district/22UN,Life Opportunities,6740 - Careline,3060 - Running Costs - Diesel,23/12/2013,7010549-1,433.85,2101825 - Allstar Business Solutions Ltd,ALLSTAR FUEL CARDS - NOV 13
Tendring DC,http://statistics.data.gov.uk/id/local-authority-district/22UN,Life Opportunities,5820 - Harwich Sports Centre,4400 - Maintenance Under Service Agreements,17/12/2013,2112883-1,376.89,2105419 - Ambi-Rad Ltd,service of heating units
Tendring DC,http://statistics.data.gov.uk/id/local-authority-district/22UN,Life Opportunities,"1580 - Benefits, Revenues and Customer Contact SU",4469 - Other Non - Legal Professional Services,23/12/2013,7010510-1,23.6,2111631 - Anglia Courier Express (East Anglia) Ltd,COLCHESTER (COURT SECTION)
Tendring DC,http://statistics.data.gov.uk/id/local-authority-district/22UN,Life Opportunities,5860 - Manningtree Sports Centre,4597 - Hired Services - Payments to Contractors,17/12/2013,7010152-1,240,2113500 - Anglia Sports Management Limited,FOOTBALL COACHING
Tendring DC,http://statistics.data.gov.uk/id/local-authority-district/22UN,Life Opportunities,5240 - HRA - Managing Tenancies,5253 - HRA Health & Safety Expenses,17/12/2013,2112880-1,21.56,2100097 - Arco Ltd,safety chukka boot
Tendring DC,http://statistics.data.gov.uk/id/local-authority-district/22UN,Life Opportunities,8520 - Frinton & Walton Swimming Pool,5160 - Advertising,17/12/2013,2112837-1,60.58,2100048 - Argos Business Solutions,fwsp - argos
Tendring DC,http://statistics.data.gov.uk/id/local-authority-district/22UN,Life Opportunities,H860 - Disabled Adaptations,C200 - Main Contractor,17/12/2013,1056638-1,1150,REDACTED PERSONAL DATA,REDACTED PERSONAL DATA
Tendring DC,http://statistics.data.gov.uk/id/local-authority-district/22UN,Life Opportunities,H860 - Disabled Adaptations,C200 - Main Contractor,17/12/2013,1056638-2,4153,REDACTED PERSONAL DATA,REDACTED PERSONAL DATA
Tendring DC,http://statistics.data.gov.uk/id/local-authority-district/22UN,Life Opportunities,6160 - Princes Theatre,4000 - Furniture,17/12/2013,1056639-1,2200,2105132 - Arrow Heating,ARTISTES SHOWER & TOILET
Tendring DC,http://statistics.data.gov.uk/id/local-authority-district/22UN,Life Opportunities,6160 - Princes Theatre,4000 - Furniture,17/12/2013,1056639-2,9559,2105132 - Arrow Heating,ARTISTES SHOWER & TOILET
Tendring DC,http://statistics.data.gov.uk/id/local-authority-district/22UN,Life Opportunities,H860 - Disabled Adaptations,C200 - Main Contractor,16/12/2013,1056737-1,5128,REDACTED PERSONAL DATA,REDACTED PERSONAL DATA
Tendring DC,http://statistics.data.gov.uk/id/local-authority-district/22UN,Life Opportunities,8510 - Dovercourt Swimming Pool & All Weather Facilities,5300 - Resaleable Items,23/12/2013,1056684-1,194.18,2100088 - ASA Merchandising Ltd,DOVERCOURT POOL-BADGES
Tendring DC,http://statistics.data.gov.uk/id/local-authority-district/22UN,Life Opportunities,8540 - Leisure Centre Clacton,5300 - Resaleable Items,17/12/2013,2112788-1,51.08,2100088 - ASA Merchandising Ltd,swim awards
Tendring DC,http://statistics.data.gov.uk/id/local-authority-district/22UN,Life Opportunities,8520 - Frinton & Walton Swimming Pool,5300 - Resaleable Items,10/12/2013,7010116-1,409.65,2100088 - ASA Merchandising Ltd,FWSP - ASA AWARDS
Tendring DC,http://statistics.data.gov.uk/id/local-authority-district/22UN,Life Opportunities,8540 - Leisure Centre Clacton,5300 - Resaleable Items,03/12/2013,7700842-1,93.3,2100088 - ASA Merchandising Ltd,SWIM AWARDS
Tendring DC,http://statistics.data.gov.uk/id/local-authority-district/22UN,Life Opportunities,8520 - Frinton & Walton Swimming Pool,4400 - Maintenance Under Service Agreements,17/12/2013,2112844-1,81.07,2112129 - Autobar Vending Services Ltd,fwsp - autobar
Tendring DC,http://statistics.data.gov.uk/id/local-authority-district/22UN,Life Opportunities,1880 - Office Accommodation Expenses,4080 - Materials & Consumables,03/12/2013,1056498-1,9.97,2100099 - B & Q Trade Account,SILICONE SEALENT
Tendring DC,http://statistics.data.gov.uk/id/local-authority-district/22UN,Life Opportunities,1880 - Office Accommodation Expenses,4080 - Materials & Consumables,03/12/2013,1056499-1,2.5,2100099 - B & Q Trade Account,DISPOSABLE GLOVES
Tendring DC,http://statistics.data.gov.uk/id/local-authority-district/22UN,Life Opportunities,6160 - Princes Theatre,4597 - Hired Services - Payments to Contractors,03/12/2013,7700871-1,160.1,2110592 - B & W Lift Services Ltd,CARRY OUT ROUTINE SERVICE
Tendring DC,http://statistics.data.gov.uk/id/local-authority-district/22UN,Life Opportunities,1880 - Office Accommodation Expenses,4080 - Materials & Consumables,17/12/2013,7010296-1,6.65,2109063 - B&Q,VALUE DOOR HANDLE
Tendring DC,http://statistics.data.gov.uk/id/local-authority-district/22UN,Life Opportunities,1880 - Office Accommodation Expenses,4080 - Materials & Consumables,17/12/2013,7010297-1,14.15,2109063 - B&Q,TOILET SEAT
Tendring DC,http://statistics.data.gov.uk/id/local-authority-district/22UN,Life Opportunities,8540 - Leisure Centre Clacton,4200 - Clothing & Uniforms,17/12/2013,2112789-1,46.5,2106876 - Badgemaster Ltd,staff name badges
Tendring DC,http://statistics.data.gov.uk/id/local-authority-district/22UN,Life Opportunities,5240 - HRA - Managing Tenancies,4312 - Tenancy Stationery,10/12/2013,2112626-1,48.81,2100111 - Banner Business Supplies Ltd,banner order 25/11/13
Tendring DC,http://statistics.data.gov.uk/id/local-authority-district/22UN,Life Opportunities,1230 - Private Sector Housing Service Unit,4300 - Printing & Stationery,10/12/2013,2112626-2,8.41,2100111 - Banner Business Supplies Ltd,banner order 25/11/13
Tendring DC,http://statistics.data.gov.uk/id/local-authority-district/22UN,Life Opportunities,1210 - Facilities Management Service Unit,4300 - Printing & Stationery,10/12/2013,2112626-3,0.89,2100111 - Banner Business Supplies Ltd,banner order 25/11/13
Tendring DC,http://statistics.data.gov.uk/id/local-authority-district/22UN,Life Opportunities,5240 - HRA - Managing Tenancies,4312 - Tenancy Stationery,17/12/2013,2112836-1,52.69,2100111 - Banner Business Supplies Ltd,envelopes/paper/pens
Tendring DC,http://statistics.data.gov.uk/id/local-authority-district/22UN,Life Opportunities,5360 - HRA - Sheltered Units,4300 - Printing & Stationery,17/12/2013,7010253-1,40.3,2100111 - Banner Business Supplies Ltd,NOTICE BOARDS
Tendring DC,http://statistics.data.gov.uk/id/local-authority-district/22UN,Life Opportunities,5240 - HRA - Managing Tenancies,4312 - Tenancy Stationery,17/12/2013,7010254-1,59.17,2100111 - Banner Business Supplies Ltd,VARIOUS STATIONERY
Tendring DC,http://statistics.data.gov.uk/id/local-authority-district/22UN,Life Opportunities,"1580 - Benefits, Revenues and Customer Contact SU",4300 - Printing & Stationery,17/12/2013,7010256-1,277.94,2100111 - Banner Business Supplies Ltd,LOOP PAPER & PENS
Tendring DC,http://statistics.data.gov.uk/id/local-authority-district/22UN,Life Opportunities,5820 - Harwich Sports Centre,4300 - Printing & Stationery,23/12/2013,7010394-1,31.2,2100111 - Banner Business Supplies Ltd,STATIONERY
Tendring DC,http://statistics.data.gov.uk/id/local-authority-district/22UN,Life Opportunities,1090 - Chief Executive and Support Service Unit,4355 - Books & Periodicals,13/12/2013,7010543-1,69.3,2100111 - Banner Business Supplies Ltd,1 NOV TO 30 NOV 13
Tendring DC,http://statistics.data.gov.uk/id/local-authority-district/22UN,Life Opportunities,1100 - Corporate Director (Corporate Services) and Admin Service Unit,4355 - Books & Periodicals,13/12/2013,7010543-2,47.75,2100111 - Banner Business Supplies Ltd,1 NOV TO 30 NOV 13
Tendring DC,http://statistics.data.gov.uk/id/local-authority-district/22UN,Life Opportunities,1040 - Regeneration Service Unit,4355 - Books & Periodicals,13/12/2013,7010543-3,19.6,2100111 - Banner Business Supplies Ltd,1 NOV TO 30 NOV 13
Tendring DC,http://statistics.data.gov.uk/id/local-authority-district/22UN,Life Opportunities,"1580 - Benefits, Revenues and Customer Contact SU",4355 - Books & Periodicals,13/12/2013,7010543-4,19.6,2100111 - Banner Business Supplies Ltd,1 NOV TO 30 NOV 13
Tendring DC,http://statistics.data.gov.uk/id/local-authority-district/22UN,Life Opportunities,7040 - Civic Ceremonial Expenses,4080 - Materials & Consumables,13/12/2013,7010543-5,3.2,2100111 - Banner Business Supplies Ltd,1 NOV TO 30 NOV 13
Tendring DC,http://statistics.data.gov.uk/id/local-authority-district/22UN,Life Opportunities,5240 - HRA - Managing Tenancies,4312 - Tenancy Stationery,23/12/2013,7010547-1,5.93,2100111 - Banner Business Supplies Ltd,LIFE OPPS INVOICE STAMP
Tendring DC,http://statistics.data.gov.uk/id/local-authority-district/22UN,Life Opportunities,5240 - HRA - Managing Tenancies,4312 - Tenancy Stationery,03/12/2013,7700890-1,0.84,2100111 - Banner Business Supplies Ltd,DOUBLED SIDED TAPE
Tendring DC,http://statistics.data.gov.uk/id/local-authority-district/22UN,Life Opportunities,1565 - Careline / CCTV Service Unit,4300 - Printing & Stationery,03/12/2013,7700891-1,163.56,2100111 - Banner Business Supplies Ltd,BANNER STATIONARY - NOV 13
Tendring DC,http://statistics.data.gov.uk/id/local-authority-district/22UN,Life Opportunities,8540 - Leisure Centre Clacton,4300 - Printing & Stationery,03/12/2013,7700895-1,66.76,2100111 - Banner Business Supplies Ltd,STATIONERY
Tendring DC,http://statistics.data.gov.uk/id/local-authority-district/22UN,Life Opportunities,5240 - HRA - Managing Tenancies,4312 - Tenancy Stationery,03/12/2013,7700896-1,2.04,2100111 - Banner Business Supplies Ltd,SCISSORS/BATTERIES/NOTE BOOK
Tendring DC,http://statistics.data.gov.uk/id/local-authority-district/22UN,Life Opportunities,5360 - HRA - Sheltered Units,4300 - Printing & Stationery,03/12/2013,7700896-2,55.43,2100111 - Banner Business Supplies Ltd,SCISSORS/BATTERIES/NOTE BOOK
Tendring DC,http://statistics.data.gov.uk/id/local-authority-district/22UN,Life Opportunities,6160 - Princes Theatre,4105 - Bar/Catering Expenses,17/12/2013,2112640-1,59.9,2100114 - Bespoke Caterers,glass hire
Tendring DC,http://statistics.data.gov.uk/id/local-authority-district/22UN,Life Opportunities,8540 - Leisure Centre Clacton,2300 - Energy Costs - Fuel Oil,10/12/2013,7010120-1,1319,2112681 - BIRLEM Ltd,2000 LT
Tendring DC,http://statistics.data.gov.uk/id/local-authority-district/22UN,Life Opportunities,1880 - Office Accommodation Expenses,2300 - Energy Costs - Fuel Oil,23/12/2013,7010418-1,1672.5,2112681 - BIRLEM Ltd,LSGO WEELEY
Tendring DC,http://statistics.data.gov.uk/id/local-authority-district/22UN,Life Opportunities,8540 - Leisure Centre Clacton,2300 - Energy Costs - Fuel Oil,23/12/2013,7010481-1,2022,2112681 - BIRLEM Ltd,3000 LT
Tendring DC,http://statistics.data.gov.uk/id/local-authority-district/22UN,Life Opportunities,8540 - Leisure Centre Clacton,2300 - Energy Costs - Fuel Oil,03/12/2013,7700840-1,2009.17,2112681 - BIRLEM Ltd,3001 LT
Tendring DC,http://statistics.data.gov.uk/id/local-authority-district/22UN,Life Opportunities,H810 - Electrical Re-wiring,C200 - Main Contractor,10/12/2013,1056609-1,2000,2100155 - Blue Flame (Colchester) Ltd,RETENTION RELEASE
Tendring DC,http://statistics.data.gov.uk/id/local-authority-district/22UN,Life Opportunities,H805 - Major Refurbishment of Heating,C200 - Main Contractor,10/12/2013,1056610-1,39483.9,2100155 - Blue Flame (Colchester) Ltd,HEATING REFURBISHMENT & UPGRADE CONTRACT
Tendring DC,http://statistics.data.gov.uk/id/local-authority-district/22UN,Life Opportunities,5480 - HRA - Repair & Maintenance,2008 - Responsive Maintenance - Floor Wall And Ceiling Fi,17/12/2013,7010298-1,60,2100117 - Brian Birt Carpets Ltd,CARPET AT GREENFIELDS
Tendring DC,http://statistics.data.gov.uk/id/local-authority-district/22UN,Life Opportunities,5360 - HRA - Sheltered Units,2304 - Energy Costs - Electricity,03/12/2013,1056449-1,-30.88,2100118 - British Gas Business,VH FINAL CREDIT
Tendring DC,http://statistics.data.gov.uk/id/local-authority-district/22UN,Life Opportunities,5360 - HRA - Sheltered Units,2304 - Energy Costs - Electricity,03/12/2013,1056450-1,-75.21,2100118 - British Gas Business,VH CREDIT 13/11
Tendring DC,http://statistics.data.gov.uk/id/local-authority-district/22UN,Life Opportunities,5360 - HRA - Sheltered Units,2304 - Energy Costs - Electricity,03/12/2013,1056451-1,-117.55,2100118 - British Gas Business,ST MC FINAL CREDIT
Tendring DC,http://statistics.data.gov.uk/id/local-authority-district/22UN,Life Opportunities,5360 - HRA - Sheltered Units,2304 - Energy Costs - Electricity,03/12/2013,1056452-1,-31.17,2100118 - British Gas Business,GREENFIELDS FINAL CREDIT
Tendring DC,http://statistics.data.gov.uk/id/local-authority-district/22UN,Life Opportunities,5360 - HRA - Sheltered Units,2304 - Energy Costs - Electricity,03/12/2013,7009910-1,46.36,2100118 - British Gas Business,V H FINAL INVOICE 13/11
Tendring DC,http://statistics.data.gov.uk/id/local-authority-district/22UN,Life Opportunities,5360 - HRA - Sheltered Units,2304 - Energy Costs - Electricity,03/12/2013,7009911-1,75.21,2100118 - British Gas Business,VH FINAL INVOICE
Tendring DC,http://statistics.data.gov.uk/id/local-authority-district/22UN,Life Opportunities,5360 - HRA - Sheltered Units,2304 - Energy Costs - Electricity,03/12/2013,7009912-1,170.41,2100118 - British Gas Business,ST MC FINAL 13/11
Tendring DC,http://statistics.data.gov.uk/id/local-authority-district/22UN,Life Opportunities,5360 - HRA - Sheltered Units,2304 - Energy Costs - Electricity,03/12/2013,7009913-1,45.18,2100118 - British Gas Business,GREENFIELDS FINAL 13/11
Tendring DC,http://statistics.data.gov.uk/id/local-authority-district/22UN,Life Opportunities,C263 - Replacement of Careline alarms in Group Schemes,C251 - Other Furniture,17/12/2013,7010322-1,210,2112440 - British Gas Business,REMOVAL OF ELEC METER 78 WIVENHOE ROAD
Tendring DC,http://statistics.data.gov.uk/id/local-authority-district/22UN,Life Opportunities,C263 - Replacement of Careline alarms in Group Schemes,C251 - Other Furniture,17/12/2013,7010323-1,210,2112440 - British Gas Business,REMOVAL OF ELECT METER 8-12 ST NICHOLAS CRT
Tendring DC,http://statistics.data.gov.uk/id/local-authority-district/22UN,Life Opportunities,C263 - Replacement of Careline alarms in Group Schemes,C251 - Other Furniture,17/12/2013,7010324-1,210,2112440 - British Gas Business,REMOVAL OF ELEC METER 19 THE HAVEN
Tendring DC,http://statistics.data.gov.uk/id/local-authority-district/22UN,Life Opportunities,C263 - Replacement of Careline alarms in Group Schemes,C251 - Other Furniture,17/12/2013,7010325-1,210,2112440 - British Gas Business,REMOVAL OF ELEC METER 33 ONGAR CLOSE
Tendring DC,http://statistics.data.gov.uk/id/local-authority-district/22UN,Life Opportunities,6740 - Careline,2304 - Energy Costs - Electricity,23/12/2013,7010550-1,93.59,2100197 - British Gas Trading Ltd,B.GAS - NOV 13
Tendring DC,http://statistics.data.gov.uk/id/local-authority-district/22UN,Life Opportunities,8520 - Frinton & Walton Swimming Pool,2304 - Energy Costs - Electricity,23/12/2013,7010552-1,214.8,2100197 - British Gas Trading Ltd,FWSP BRITISH GAS
Tendring DC,http://statistics.data.gov.uk/id/local-authority-district/22UN,Life Opportunities,5440 - HRA - Communal Electricity,2304 - Energy Costs - Electricity,23/12/2013,7010553-1,247.83,2100197 - British Gas Trading Ltd,NOV MULTIBILL
Tendring DC,http://statistics.data.gov.uk/id/local-authority-district/22UN,Life Opportunities,5360 - HRA - Sheltered Units,2304 - Energy Costs - Electricity,23/12/2013,7010553-2,221.81,2100197 - British Gas Trading Ltd,NOV MULTIBILL
Tendring DC,http://statistics.data.gov.uk/id/local-authority-district/22UN,Life Opportunities,5820 - Harwich Sports Centre,2304 - Energy Costs - Electricity,23/12/2013,7010553-3,594.6,2100197 - British Gas Trading Ltd,NOV MULTIBILL
Tendring DC,http://statistics.data.gov.uk/id/local-authority-district/22UN,Life Opportunities,5860 - Manningtree Sports Centre,2304 - Energy Costs - Electricity,23/12/2013,7010553-4,835.76,2100197 - British Gas Trading Ltd,NOV MULTIBILL
Tendring DC,http://statistics.data.gov.uk/id/local-authority-district/22UN,Life Opportunities,5340 - HRA - Communal Central Heating,2304 - Energy Costs - Electricity,23/12/2013,7010553-5,1758.98,2100197 - British Gas Trading Ltd,NOV MULTIBILL
Tendring DC,http://statistics.data.gov.uk/id/local-authority-district/22UN,Life Opportunities,5360 - HRA - Sheltered Units,2304 - Energy Costs - Electricity,23/12/2013,7010553-6,441.79,2100197 - British Gas Trading Ltd,NOV MULTIBILL
Tendring DC,http://statistics.data.gov.uk/id/local-authority-district/22UN,Life Opportunities,5440 - HRA - Communal Electricity,2304 - Energy Costs - Electricity,23/12/2013,7010553-7,5712.72,2100197 - British Gas Trading Ltd,NOV MULTIBILL
Tendring DC,http://statistics.data.gov.uk/id/local-authority-district/22UN,Life Opportunities,7600 - Tourist Information Centres,2304 - Energy Costs - Electricity,23/12/2013,7010553-8,11.67,2100197 - British Gas Trading Ltd,NOV MULTIBILL
Tendring DC,http://statistics.data.gov.uk/id/local-authority-district/22UN,Life Opportunities,5360 - HRA - Sheltered Units,2304 - Energy Costs - Electricity,23/12/2013,7010553-9,-265.82,2100197 - British Gas Trading Ltd,NOV MULTIBILL
Tendring DC,http://statistics.data.gov.uk/id/local-authority-district/22UN,Life Opportunities,8540 - Leisure Centre Clacton,5300 - Resaleable Items,03/12/2013,7700878-1,125.5,2100148 - British Gymnastics,GYMNASTICS AWARDS
Tendring DC,http://statistics.data.gov.uk/id/local-authority-district/22UN,Life Opportunities,5800 - Brightlingsea Sports Centre,5300 - Resaleable Items,03/12/2013,7700878-2,34.5,2100148 - British Gymnastics,GYMNASTICS AWARDS
Tendring DC,http://statistics.data.gov.uk/id/local-authority-district/22UN,Life Opportunities,8540 - Leisure Centre Clacton,5300 - Resaleable Items,03/12/2013,7700879-1,30.75,2100148 - British Gymnastics,GYMNASTICS AWARDS
Tendring DC,http://statistics.data.gov.uk/id/local-authority-district/22UN,Life Opportunities,1840 - Central Telephone Service,4710 - Telephones - Charges,03/12/2013,1056515-1,5634.38,2100168 - British Telecommunications plc,BT 686000 AUG NOV 13
Tendring DC,http://statistics.data.gov.uk/id/local-authority-district/22UN,Life Opportunities,5240 - HRA - Managing Tenancies,5249 - Housing ASB Expenses,23/12/2013,1056699-1,94.8,2100168 - British Telecommunications plc,ASBLINE 01/12-28/2/14
Tendring DC,http://statistics.data.gov.uk/id/local-authority-district/22UN,Life Opportunities,4680 - Abandoned Vehicles,4597 - Hired Services - Payments to Contractors,23/12/2013,1056700-1,89.37,2100168 - British Telecommunications plc,BT ONE BILL 17 NOV 13
Tendring DC,http://statistics.data.gov.uk/id/local-authority-district/22UN,Life Opportunities,5360 - HRA - Sheltered Units,4710 - Telephones - Charges,23/12/2013,1056700-10,35.7,2100168 - British Telecommunications plc,BT ONE BILL 17 NOV 13
Tendring DC,http://statistics.data.gov.uk/id/local-authority-district/22UN,Life Opportunities,5360 - HRA - Sheltered Units,4710 - Telephones - Charges,23/12/2013,1056700-11,35.7,2100168 - British Telecommunications plc,BT ONE BILL 17 NOV 13
Tendring DC,http://statistics.data.gov.uk/id/local-authority-district/22UN,Life Opportunities,5360 - HRA - Sheltered Units,4710 - Telephones - Charges,23/12/2013,1056700-12,146.52,2100168 - British Telecommunications plc,BT ONE BILL 17 NOV 13
Tendring DC,http://statistics.data.gov.uk/id/local-authority-district/22UN,Life Opportunities,5360 - HRA - Sheltered Units,4710 - Telephones - Charges,23/12/2013,1056700-13,102.89,2100168 - British Telecommunications plc,BT ONE BILL 17 NOV 13
Tendring DC,http://statistics.data.gov.uk/id/local-authority-district/22UN,Life Opportunities,5360 - HRA - Sheltered Units,4710 - Telephones - Charges,23/12/2013,1056700-14,76.28,2100168 - British Telecommunications plc,BT ONE BILL 17 NOV 13
Tendring DC,http://statistics.data.gov.uk/id/local-authority-district/22UN,Life Opportunities,5360 - HRA - Sheltered Units,4710 - Telephones - Charges,23/12/2013,1056700-15,35.7,2100168 - British Telecommunications plc,BT ONE BILL 17 NOV 13
Tendring DC,http://statistics.data.gov.uk/id/local-authority-district/22UN,Life Opportunities,5360 - HRA - Sheltered Units,4710 - Telephones - Charges,23/12/2013,1056700-16,53.1,2100168 - British Telecommunications plc,BT ONE BILL 17 NOV 13
Tendring DC,http://statistics.data.gov.uk/id/local-authority-district/22UN,Life Opportunities,5360 - HRA - Sheltered Units,4710 - Telephones - Charges,23/12/2013,1056700-17,46.8,2100168 - British Telecommunications plc,BT ONE BILL 17 NOV 13
Tendring DC,http://statistics.data.gov.uk/id/local-authority-district/22UN,Life Opportunities,5360 - HRA - Sheltered Units,4710 - Telephones - Charges,23/12/2013,1056700-18,102.41,2100168 - British Telecommunications plc,BT ONE BILL 17 NOV 13
Tendring DC,http://statistics.data.gov.uk/id/local-authority-district/22UN,Life Opportunities,6740 - Careline,4710 - Telephones - Charges,23/12/2013,1056700-19,155.23,2100168 - British Telecommunications plc,BT ONE BILL 17 NOV 13
Tendring DC,http://statistics.data.gov.uk/id/local-authority-district/22UN,Life Opportunities,1880 - Office Accommodation Expenses,4632 - Security,23/12/2013,1056700-2,527.43,2100168 - British Telecommunications plc,BT ONE BILL 17 NOV 13
Tendring DC,http://statistics.data.gov.uk/id/local-authority-district/22UN,Life Opportunities,7620 - Air Show,4710 - Telephones - Charges,23/12/2013,1056700-20,166.56,2100168 - British Telecommunications plc,BT ONE BILL 17 NOV 13
Tendring DC,http://statistics.data.gov.uk/id/local-authority-district/22UN,Life Opportunities,6740 - Careline,4710 - Telephones - Charges,23/12/2013,1056700-21,1875.63,2100168 - British Telecommunications plc,BT ONE BILL 17 NOV 13
Tendring DC,http://statistics.data.gov.uk/id/local-authority-district/22UN,Life Opportunities,6740 - Careline,4718 - Fixed Communication Lines,23/12/2013,1056700-22,140.76,2100168 - British Telecommunications plc,BT ONE BILL 17 NOV 13
Tendring DC,http://statistics.data.gov.uk/id/local-authority-district/22UN,Life Opportunities,1040 - Regeneration Service Unit,4730 - Fax Machine,23/12/2013,1056700-23,38.42,2100168 - British Telecommunications plc,BT ONE BILL 17 NOV 13
Tendring DC,http://statistics.data.gov.uk/id/local-authority-district/22UN,Life Opportunities,6740 - Careline,4710 - Telephones - Charges,23/12/2013,1056700-24,77.67,2100168 - British Telecommunications plc,BT ONE BILL 17 NOV 13
Tendring DC,http://statistics.data.gov.uk/id/local-authority-district/22UN,Life Opportunities,1661 - Other Apportionable Overheads - Corporate Support,4700 - Postage,23/12/2013,1056700-3,38.03,2100168 - British Telecommunications plc,BT ONE BILL 17 NOV 13
Tendring DC,http://statistics.data.gov.uk/id/local-authority-district/22UN,Life Opportunities,1320 - Print Unit Service Unit,4710 - Telephones - Charges,23/12/2013,1056700-4,38.14,2100168 - British Telecommunications plc,BT ONE BILL 17 NOV 13
Tendring DC,http://statistics.data.gov.uk/id/local-authority-district/22UN,Life Opportunities,1840 - Central Telephone Service,4710 - Telephones - Charges,23/12/2013,1056700-5,368.88,2100168 - British Telecommunications plc,BT ONE BILL 17 NOV 13
Tendring DC,http://statistics.data.gov.uk/id/local-authority-district/22UN,Life Opportunities,1670 - Engineering Services Management,4710 - Telephones - Charges,23/12/2013,1056700-6,36.36,2100168 - British Telecommunications plc,BT ONE BILL 17 NOV 13
Tendring DC,http://statistics.data.gov.uk/id/local-authority-district/22UN,Life Opportunities,1840 - Central Telephone Service,4710 - Telephones - Charges,23/12/2013,1056700-7,113.55,2100168 - British Telecommunications plc,BT ONE BILL 17 NOV 13
Tendring DC,http://statistics.data.gov.uk/id/local-authority-district/22UN,Life Opportunities,4780 - Rodent & Pest Control,4710 - Telephones - Charges,23/12/2013,1056700-8,158.34,2100168 - British Telecommunications plc,BT ONE BILL 17 NOV 13
Tendring DC,http://statistics.data.gov.uk/id/local-authority-district/22UN,Life Opportunities,5360 - HRA - Sheltered Units,4710 - Telephones - Charges,23/12/2013,1056700-9,35.7,2100168 - British Telecommunications plc,BT ONE BILL 17 NOV 13
Tendring DC,http://statistics.data.gov.uk/id/local-authority-district/22UN,Life Opportunities,8510 - Dovercourt Swimming Pool & All Weather Facilities,4710 - Telephones - Charges,23/12/2013,1056706-1,327.68,2100168 - British Telecommunications plc,BT BILL DEC 13
Tendring DC,http://statistics.data.gov.uk/id/local-authority-district/22UN,Life Opportunities,1915 - Low Road Depot,4710 - Telephones - Charges,23/12/2013,1056706-10,37.18,2100168 - British Telecommunications plc,BT BILL DEC 13
Tendring DC,http://statistics.data.gov.uk/id/local-authority-district/22UN,Life Opportunities,1920 - Mill Lane Depot,4710 - Telephones - Charges,23/12/2013,1056706-11,37.89,2100168 - British Telecommunications plc,BT BILL DEC 13
Tendring DC,http://statistics.data.gov.uk/id/local-authority-district/22UN,Life Opportunities,8125 - Horticultural Services,4710 - Telephones - Charges,23/12/2013,1056706-12,51.78,2100168 - British Telecommunications plc,BT BILL DEC 13
Tendring DC,http://statistics.data.gov.uk/id/local-authority-district/22UN,Life Opportunities,7600 - Tourist Information Centres,4710 - Telephones - Charges,23/12/2013,1056706-13,141.66,2100168 - British Telecommunications plc,BT BILL DEC 13
Tendring DC,http://statistics.data.gov.uk/id/local-authority-district/22UN,Life Opportunities,4560 - Crematorium,4710 - Telephones - Charges,23/12/2013,1056706-2,431.52,2100168 - British Telecommunications plc,BT BILL DEC 13
Tendring DC,http://statistics.data.gov.uk/id/local-authority-district/22UN,Life Opportunities,8540 - Leisure Centre Clacton,4710 - Telephones - Charges,23/12/2013,1056706-3,792.47,2100168 - British Telecommunications plc,BT BILL DEC 13
Tendring DC,http://statistics.data.gov.uk/id/local-authority-district/22UN,Life Opportunities,8560 - Happy Valley Recreation Ground Pitch & Putt,4710 - Telephones - Charges,23/12/2013,1056706-4,365.22,2100168 - British Telecommunications plc,BT BILL DEC 13
Tendring DC,http://statistics.data.gov.uk/id/local-authority-district/22UN,Life Opportunities,5820 - Harwich Sports Centre,4710 - Telephones - Charges,23/12/2013,1056706-5,367.21,2100168 - British Telecommunications plc,BT BILL DEC 13
Tendring DC,http://statistics.data.gov.uk/id/local-authority-district/22UN,Life Opportunities,8520 - Frinton & Walton Swimming Pool,4710 - Telephones - Charges,23/12/2013,1056706-6,285.3,2100168 - British Telecommunications plc,BT BILL DEC 13
Tendring DC,http://statistics.data.gov.uk/id/local-authority-district/22UN,Life Opportunities,6060 - First Aid Posts,4710 - Telephones - Charges,23/12/2013,1056706-7,66.85,2100168 - British Telecommunications plc,BT BILL DEC 13
Tendring DC,http://statistics.data.gov.uk/id/local-authority-district/22UN,Life Opportunities,6040 - Miscellaneous Seafront Activities,4710 - Telephones - Charges,23/12/2013,1056706-8,217.09,2100168 - British Telecommunications plc,BT BILL DEC 13
Tendring DC,http://statistics.data.gov.uk/id/local-authority-district/22UN,Life Opportunities,6160 - Princes Theatre,4710 - Telephones - Charges,23/12/2013,1056706-9,253.53,2100168 - British Telecommunications plc,BT BILL DEC 13
Tendring DC,http://statistics.data.gov.uk/id/local-authority-district/22UN,Life Opportunities,6740 - Careline,4710 - Telephones - Charges,03/12/2013,2112517-1,58,2100168 - British Telecommunications plc,bt bill - greenfields
Tendring DC,http://statistics.data.gov.uk/id/local-authority-district/22UN,Life Opportunities,7000 - CCTV,4718 - Fixed Communication Lines,03/12/2013,2112518-1,135,2100168 - British Telecommunications plc,bt bill - harwich cctv
Tendring DC,http://statistics.data.gov.uk/id/local-authority-district/22UN,Life Opportunities,7000 - CCTV,4400 - Maintenance Under Service Agreements,10/12/2013,2112614-1,49.5,2100168 - British Telecommunications plc,harwich cctv - nov 13
Tendring DC,http://statistics.data.gov.uk/id/local-authority-district/22UN,Life Opportunities,8530 - Brightlingsea Swimming Pool,4710 - Telephones - Charges,10/12/2013,7010066-1,81.99,2100168 - British Telecommunications plc,
Tendring DC,http://statistics.data.gov.uk/id/local-authority-district/22UN,Life Opportunities,1840 - Central Telephone Service,4710 - Telephones - Charges,23/12/2013,7010503-1,1153.32,2100168 - British Telecommunications plc,BT 253100 DEC 13
Tendring DC,http://statistics.data.gov.uk/id/local-authority-district/22UN,Life Opportunities,1840 - Central Telephone Service,4710 - Telephones - Charges,23/12/2013,7010504-1,928.72,2100168 - British Telecommunications plc,833435 BT DEC 13
Tendring DC,http://statistics.data.gov.uk/id/local-authority-district/22UN,Life Opportunities,H880 - New Build Initiatives and Acquisitions,C200 - Main Contractor,23/12/2013,1056708-1,47828.87,2113591 - Brooks and Wood Ltd,HASTING PLACE NEW BUILD
Tendring DC,http://statistics.data.gov.uk/id/local-authority-district/22UN,Life Opportunities,H720 - Environmental Improvements,C200 - Main Contractor,23/12/2013,7010385-1,1543,REDACTED PERSONAL DATA,REDACTED PERSONAL DATA
Tendring DC,http://statistics.data.gov.uk/id/local-authority-district/22UN,Life Opportunities,8150 - Office Cleaning,4080 - Materials & Consumables,03/12/2013,1056497-1,716.53,2101624 - Bunzl,CLEANING EQUIPMENT
Tendring DC,http://statistics.data.gov.uk/id/local-authority-district/22UN,Life Opportunities,6740 - Careline,4040 - Equipment & Tools,17/12/2013,2112637-1,78.54,2101624 - Bunzl,items for careline
Tendring DC,http://statistics.data.gov.uk/id/local-authority-district/22UN,Life Opportunities,8510 - Dovercourt Swimming Pool & All Weather Facilities,2700 - Cleaning Materials,03/12/2013,7009974-1,209.25,2101624 - Bunzl,DOVERCOURT POOL - CLEANING
Tendring DC,http://statistics.data.gov.uk/id/local-authority-district/22UN,Life Opportunities,8540 - Leisure Centre Clacton,2700 - Cleaning Materials,03/12/2013,7009986-1,17.95,2101624 - Bunzl,FLOOR PADS
Tendring DC,http://statistics.data.gov.uk/id/local-authority-district/22UN,Life Opportunities,8540 - Leisure Centre Clacton,2700 - Cleaning Materials,10/12/2013,7010063-1,34.3,2101624 - Bunzl,VIAKAL
Tendring DC,http://statistics.data.gov.uk/id/local-authority-district/22UN,Life Opportunities,8510 - Dovercourt Swimming Pool & All Weather Facilities,2700 - Cleaning Materials,10/12/2013,7010069-1,45.92,2101624 - Bunzl,DOVERCOURT POOL
Tendring DC,http://statistics.data.gov.uk/id/local-authority-district/22UN,Life Opportunities,5800 - Brightlingsea Sports Centre,4000 - Furniture,17/12/2013,7010140-1,91.84,2101624 - Bunzl,BUNZL
Tendring DC,http://statistics.data.gov.uk/id/local-authority-district/22UN,Life Opportunities,5800 - Brightlingsea Sports Centre,4000 - Furniture,17/12/2013,7010141-1,8.14,2101624 - Bunzl,BUNZL
Tendring DC,http://statistics.data.gov.uk/id/local-authority-district/22UN,Life Opportunities,8520 - Frinton & Walton Swimming Pool,2700 - Cleaning Materials,17/12/2013,7010142-1,22.28,2101624 - Bunzl,FWSP - BUNZL
Tendring DC,http://statistics.data.gov.uk/id/local-authority-district/22UN,Life Opportunities,8520 - Frinton & Walton Swimming Pool,2700 - Cleaning Materials,17/12/2013,7010143-1,89.93,2101624 - Bunzl,FWSP - BUNZL
Tendring DC,http://statistics.data.gov.uk/id/local-authority-district/22UN,Life Opportunities,5820 - Harwich Sports Centre,2700 - Cleaning Materials,17/12/2013,7010149-1,61.4,2101624 - Bunzl,ANTI-STATIC WIPES
Tendring DC,http://statistics.data.gov.uk/id/local-authority-district/22UN,Life Opportunities,8150 - Office Cleaning,4080 - Materials & Consumables,17/12/2013,7010187-1,629.1,2101624 - Bunzl,CLEANING PRODUCTS
Tendring DC,http://statistics.data.gov.uk/id/local-authority-district/22UN,Life Opportunities,6740 - Careline,4040 - Equipment & Tools,17/12/2013,7010283-1,20.19,2101624 - Bunzl,DISPOSABLE APRON
Tendring DC,http://statistics.data.gov.uk/id/local-authority-district/22UN,Life Opportunities,8150 - Office Cleaning,4080 - Materials & Consumables,17/12/2013,7010284-1,269.04,2101624 - Bunzl,CLEANING PRODUCTS
Tendring DC,http://statistics.data.gov.uk/id/local-authority-district/22UN,Life Opportunities,8510 - Dovercourt Swimming Pool & All Weather Facilities,4000 - Furniture,23/12/2013,7010395-1,56.3,2101624 - Bunzl,DOVERCOURT POOL - BINS
Tendring DC,http://statistics.data.gov.uk/id/local-authority-district/22UN,Life Opportunities,8540 - Leisure Centre Clacton,2700 - Cleaning Materials,23/12/2013,7010480-1,261.24,2101624 - Bunzl,CLEANING MATERIALS
Tendring DC,http://statistics.data.gov.uk/id/local-authority-district/22UN,Life Opportunities,8150 - Office Cleaning,4080 - Materials & Consumables,23/12/2013,7010507-1,30.24,2101624 - Bunzl,CLEAR SACKS
Tendring DC,http://statistics.data.gov.uk/id/local-authority-district/22UN,Life Opportunities,8150 - Office Cleaning,4080 - Materials & Consumables,23/12/2013,7010508-1,209.57,2101624 - Bunzl,CLEANING EQUIPMENT
Tendring DC,http://statistics.data.gov.uk/id/local-authority-district/22UN,Life Opportunities,8540 - Leisure Centre Clacton,2700 - Cleaning Materials,03/12/2013,7700833-1,189.1,2101624 - Bunzl,CLEANING MATERIALS
Tendring DC,http://statistics.data.gov.uk/id/local-authority-district/22UN,Life Opportunities,8540 - Leisure Centre Clacton,4300 - Printing & Stationery,10/12/2013,1056608-1,235,2113506 - Business Machines Ltd,TILL ROLLS
Tendring DC,http://statistics.data.gov.uk/id/local-authority-district/22UN,Life Opportunities,8540 - Leisure Centre Clacton,4400 - Maintenance Under Service Agreements,10/12/2013,7010111-1,762.72,2100280 - C H Lindsey & Son Ltd,MINOR SERVICE CLC/DSP/FWSP
Tendring DC,http://statistics.data.gov.uk/id/local-authority-district/22UN,Life Opportunities,8520 - Frinton & Walton Swimming Pool,4400 - Maintenance Under Service Agreements,10/12/2013,7010111-2,454,2100280 - C H Lindsey & Son Ltd,MINOR SERVICE CLC/DSP/FWSP
Tendring DC,http://statistics.data.gov.uk/id/local-authority-district/22UN,Life Opportunities,8510 - Dovercourt Swimming Pool & All Weather Facilities,4400 - Maintenance Under Service Agreements,10/12/2013,7010111-3,599.28,2100280 - C H Lindsey & Son Ltd,MINOR SERVICE CLC/DSP/FWSP
Tendring DC,http://statistics.data.gov.uk/id/local-authority-district/22UN,Life Opportunities,8510 - Dovercourt Swimming Pool & All Weather Facilities,4400 - Maintenance Under Service Agreements,10/12/2013,7010111-4,123.51,2100280 - C H Lindsey & Son Ltd,MINOR SERVICE CLC/DSP/FWSP
Tendring DC,http://statistics.data.gov.uk/id/local-authority-district/22UN,Life Opportunities,8540 - Leisure Centre Clacton,2100 - Building Repairs,03/12/2013,7700881-1,121.68,2100280 - C H Lindsey & Son Ltd,COLD WATER BOOSTER TRIPPED
Tendring DC,http://statistics.data.gov.uk/id/local-authority-district/22UN,Life Opportunities,6160 - Princes Theatre,4105 - Bar/Catering Expenses,17/12/2013,2112644-1,126,2112687 - Cabana Soft Drinks (Essex) Ltd,soft drinks for theatre
Tendring DC,http://statistics.data.gov.uk/id/local-authority-district/22UN,Life Opportunities,8520 - Frinton & Walton Swimming Pool,4400 - Maintenance Under Service Agreements,03/12/2013,2112453-1,108.15,2100281 - Cannon Hygiene,cn1853451
Tendring DC,http://statistics.data.gov.uk/id/local-authority-district/22UN,Life Opportunities,8510 - Dovercourt Swimming Pool & All Weather Facilities,4400 - Maintenance Under Service Agreements,03/12/2013,7009968-1,38.49,2100281 - Cannon Hygiene,DOVERCOURT POOL - WASTE DISPOSAL
Tendring DC,http://statistics.data.gov.uk/id/local-authority-district/22UN,Life Opportunities,5860 - Manningtree Sports Centre,4400 - Maintenance Under Service Agreements,03/12/2013,7009969-1,14.55,2100281 - Cannon Hygiene,SANITARY DISPOSAL
Tendring DC,http://statistics.data.gov.uk/id/local-authority-district/22UN,Life Opportunities,1650 - Building Services Service Unit,4400 - Maintenance Under Service Agreements,17/12/2013,2112661-1,1.3,2100291 - Canon (UK) Ltd,copies 1.11.13 to 30.11.13
Tendring DC,http://statistics.data.gov.uk/id/local-authority-district/22UN,Life Opportunities,1650 - Building Services Service Unit,4400 - Maintenance Under Service Agreements,17/12/2013,2112662-1,48.6,2100291 - Canon (UK) Ltd,service 1.01.14 to 31.01.14
Tendring DC,http://statistics.data.gov.uk/id/local-authority-district/22UN,Life Opportunities,6740 - Careline,4040 - Equipment & Tools,10/12/2013,7010051-1,214,2113565 - Careflex Limited,COMFY BELT & COMFYSLIDE - CARELINE
Tendring DC,http://statistics.data.gov.uk/id/local-authority-district/22UN,Life Opportunities,8520 - Frinton & Walton Swimming Pool,9228 - Swimming Lessons,10/12/2013,1056549-1,34.4,2113574 - Caroline Ward,CHQ REQ
Tendring DC,http://statistics.data.gov.uk/id/local-authority-district/22UN,Life Opportunities,"1580 - Benefits, Revenues and Customer Contact SU",3312 - Car Allowances - Car Hire,10/12/2013,2112632-1,22.5,2104746 - CC Hire,court section
Tendring DC,http://statistics.data.gov.uk/id/local-authority-district/22UN,Life Opportunities,"1580 - Benefits, Revenues and Customer Contact SU",3062 - Running Costs - Petrol,10/12/2013,2112632-2,4.17,2104746 - CC Hire,court section
Tendring DC,http://statistics.data.gov.uk/id/local-authority-district/22UN,Life Opportunities,1242 - Corporate Director (Life Opportunities),1710 - Training - Central Department Budget,23/12/2013,1056698-1,299,REDACTED PERSONAL DATA,REDACTED PERSONAL DATA
Tendring DC,http://statistics.data.gov.uk/id/local-authority-district/22UN,Life Opportunities,6160 - Princes Theatre,4200 - Clothing & Uniforms,23/12/2013,1056692-1,109.45,2100205 - Chelmsford Safety Supplies Ltd,THEATRE TECH POLOS
Tendring DC,http://statistics.data.gov.uk/id/local-authority-district/22UN,Life Opportunities,5140 - Homelessness,4683 - Other Homelessness Expenses,10/12/2013,7010099-1,50,REDACTED PERSONAL DATA,REDACTED PERSONAL DATA
Tendring DC,http://statistics.data.gov.uk/id/local-authority-district/22UN,Life Opportunities,5140 - Homelessness,4680 - Bed & Breakfast Accommodation,17/12/2013,7010241-1,525,REDACTED PERSONAL DATA,REDACTED PERSONAL DATA
Tendring DC,http://statistics.data.gov.uk/id/local-authority-district/22UN,Life Opportunities,5140 - Homelessness,4680 - Bed & Breakfast Accommodation,17/12/2013,7010242-1,525,REDACTED PERSONAL DATA,REDACTED PERSONAL DATA
Tendring DC,http://statistics.data.gov.uk/id/local-authority-district/22UN,Life Opportunities,5140 - Homelessness,4680 - Bed & Breakfast Accommodation,17/12/2013,7010243-1,525,REDACTED PERSONAL DATA,REDACTED PERSONAL DATA
Tendring DC,http://statistics.data.gov.uk/id/local-authority-district/22UN,Life Opportunities,5880 - Management Of Sport & Leisure Facilities,5166 - Marketing and Promotion,10/12/2013,7010113-1,104,2100246 - Chronicle Publishing Services,QUARTER PAGE AD B/SEA CHRONICLE NOV
Tendring DC,http://statistics.data.gov.uk/id/local-authority-district/22UN,Life Opportunities,6160 - Princes Theatre,5308 - Ice Cream,03/12/2013,1056454-1,-4.85,2108623 - CICC Ltd,
Tendring DC,http://statistics.data.gov.uk/id/local-authority-district/22UN,Life Opportunities,5480 - HRA - Repair & Maintenance,2058 - Fire Alarms Repairs,17/12/2013,2112674-1,52.07,2100237 - Cirrus Communication Systems Ltd,honeycroft
Tendring DC,http://statistics.data.gov.uk/id/local-authority-district/22UN,Life Opportunities,8540 - Leisure Centre Clacton,4400 - Maintenance Under Service Agreements,23/12/2013,7010492-1,327.38,2107803 - CIT Vendor Finance (UK) Ltd,15/1/14 - 14/4/14
Tendring DC,http://statistics.data.gov.uk/id/local-authority-district/22UN,Life Opportunities,8540 - Leisure Centre Clacton,4597 - Hired Services - Payments to Contractors,17/12/2013,2112822-1,56,2111491 - Clacton Cannons Basketball Club,basketball sessions
Tendring DC,http://statistics.data.gov.uk/id/local-authority-district/22UN,Life Opportunities,6355 - Community Activity Network,4597 - Hired Services - Payments to Contractors,03/12/2013,7700883-1,300,2101887 - Clacton Cricket Club,CRICKET ON THE BEACH
Tendring DC,http://statistics.data.gov.uk/id/local-authority-district/22UN,Life Opportunities,6355 - Community Activity Network,4597 - Hired Services - Payments to Contractors,03/12/2013,7700884-1,479,2101887 - Clacton Cricket Club,SPORTIVATE FUNDING GET INTO SPORT
Tendring DC,http://statistics.data.gov.uk/id/local-authority-district/22UN,Life Opportunities,6160 - Princes Theatre,5308 - Ice Cream,23/12/2013,7010381-1,233.08,2113508 - CLACTON ICE CREAM LTD,ICE CREAM FOR THEATRE
Tendring DC,http://statistics.data.gov.uk/id/local-authority-district/22UN,Life Opportunities,6355 - Community Activity Network,4597 - Hired Services - Payments to Contractors,17/12/2013,2112795-1,470,2108041 - Coastal Golf Academy,sportivate netball
Tendring DC,http://statistics.data.gov.uk/id/local-authority-district/22UN,Life Opportunities,6355 - Community Activity Network,4597 - Hired Services - Payments to Contractors,17/12/2013,2112796-1,300,2108041 - Coastal Golf Academy,summer hol golf sportivate
Tendring DC,http://statistics.data.gov.uk/id/local-authority-district/22UN,Life Opportunities,5820 - Harwich Sports Centre,4597 - Hired Services - Payments to Contractors,03/12/2013,2112449-1,900,2111358 - Colchester United FC Ltd Youth,coaching sessions
Tendring DC,http://statistics.data.gov.uk/id/local-authority-district/22UN,Life Opportunities,"1580 - Benefits, Revenues and Customer Contact SU",4462 - Bailiffs and Tracing Agent Fees re debt recovery,10/12/2013,2112630-1,5,2100381 - Collect Services Ltd,vat on fees collected c/t
Tendring DC,http://statistics.data.gov.uk/id/local-authority-district/22UN,Life Opportunities,"1580 - Benefits, Revenues and Customer Contact SU",4462 - Bailiffs and Tracing Agent Fees re debt recovery,10/12/2013,2112630-2,-5,2100381 - Collect Services Ltd,vat on fees collected c/t
Tendring DC,http://statistics.data.gov.uk/id/local-authority-district/22UN,Life Opportunities,"1580 - Benefits, Revenues and Customer Contact SU",4462 - Bailiffs and Tracing Agent Fees re debt recovery,10/12/2013,2112630-3,38.5,2100381 - Collect Services Ltd,vat on fees collected c/t
Tendring DC,http://statistics.data.gov.uk/id/local-authority-district/22UN,Life Opportunities,"1580 - Benefits, Revenues and Customer Contact SU",4462 - Bailiffs and Tracing Agent Fees re debt recovery,10/12/2013,2112630-4,-38.5,2100381 - Collect Services Ltd,vat on fees collected c/t
Tendring DC,http://statistics.data.gov.uk/id/local-authority-district/22UN,Life Opportunities,"1580 - Benefits, Revenues and Customer Contact SU",4462 - Bailiffs and Tracing Agent Fees re debt recovery,10/12/2013,2112630-5,3247.65,2100381 - Collect Services Ltd,vat on fees collected c/t
Tendring DC,http://statistics.data.gov.uk/id/local-authority-district/22UN,Life Opportunities,"1580 - Benefits, Revenues and Customer Contact SU",4462 - Bailiffs and Tracing Agent Fees re debt recovery,10/12/2013,2112630-6,-3247.65,2100381 - Collect Services Ltd,vat on fees collected c/t
Tendring DC,http://statistics.data.gov.uk/id/local-authority-district/22UN,Life Opportunities,"1580 - Benefits, Revenues and Customer Contact SU",4462 - Bailiffs and Tracing Agent Fees re debt recovery,10/12/2013,2112631-1,726.38,2100381 - Collect Services Ltd,vat on fees collected nndr
Tendring DC,http://statistics.data.gov.uk/id/local-authority-district/22UN,Life Opportunities,"1580 - Benefits, Revenues and Customer Contact SU",4462 - Bailiffs and Tracing Agent Fees re debt recovery,10/12/2013,2112631-2,-726.38,2100381 - Collect Services Ltd,vat on fees collected nndr
Tendring DC,http://statistics.data.gov.uk/id/local-authority-district/22UN,Life Opportunities,"1580 - Benefits, Revenues and Customer Contact SU",4462 - Bailiffs and Tracing Agent Fees re debt recovery,17/12/2013,2112654-1,928,2100381 - Collect Services Ltd,vat on fees collected nndr
Tendring DC,http://statistics.data.gov.uk/id/local-authority-district/22UN,Life Opportunities,"1580 - Benefits, Revenues and Customer Contact SU",4462 - Bailiffs and Tracing Agent Fees re debt recovery,17/12/2013,2112654-2,-928,2100381 - Collect Services Ltd,vat on fees collected nndr
Tendring DC,http://statistics.data.gov.uk/id/local-authority-district/22UN,Life Opportunities,"1580 - Benefits, Revenues and Customer Contact SU",4462 - Bailiffs and Tracing Agent Fees re debt recovery,17/12/2013,2112655-1,15,2100381 - Collect Services Ltd,vat on fees c/t
Tendring DC,http://statistics.data.gov.uk/id/local-authority-district/22UN,Life Opportunities,"1580 - Benefits, Revenues and Customer Contact SU",4462 - Bailiffs and Tracing Agent Fees re debt recovery,17/12/2013,2112655-2,-15,2100381 - Collect Services Ltd,vat on fees c/t
Tendring DC,http://statistics.data.gov.uk/id/local-authority-district/22UN,Life Opportunities,"1580 - Benefits, Revenues and Customer Contact SU",4462 - Bailiffs and Tracing Agent Fees re debt recovery,17/12/2013,2112655-3,13.75,2100381 - Collect Services Ltd,vat on fees c/t
Tendring DC,http://statistics.data.gov.uk/id/local-authority-district/22UN,Life Opportunities,"1580 - Benefits, Revenues and Customer Contact SU",4462 - Bailiffs and Tracing Agent Fees re debt recovery,17/12/2013,2112655-4,-13.75,2100381 - Collect Services Ltd,vat on fees c/t
Tendring DC,http://statistics.data.gov.uk/id/local-authority-district/22UN,Life Opportunities,"1580 - Benefits, Revenues and Customer Contact SU",4462 - Bailiffs and Tracing Agent Fees re debt recovery,17/12/2013,2112655-5,3407.22,2100381 - Collect Services Ltd,vat on fees c/t
Tendring DC,http://statistics.data.gov.uk/id/local-authority-district/22UN,Life Opportunities,"1580 - Benefits, Revenues and Customer Contact SU",4462 - Bailiffs and Tracing Agent Fees re debt recovery,17/12/2013,2112655-6,-3407.22,2100381 - Collect Services Ltd,vat on fees c/t
Tendring DC,http://statistics.data.gov.uk/id/local-authority-district/22UN,Life Opportunities,"1580 - Benefits, Revenues and Customer Contact SU",5189 - External Debt Recovery Commission,17/12/2013,2112656-1,451.43,2100381 - Collect Services Ltd,15% coh on 3009.51
Tendring DC,http://statistics.data.gov.uk/id/local-authority-district/22UN,Life Opportunities,"1580 - Benefits, Revenues and Customer Contact SU",4462 - Bailiffs and Tracing Agent Fees re debt recovery,17/12/2013,2112845-1,5,2100381 - Collect Services Ltd,vat on fees collected nndr
Tendring DC,http://statistics.data.gov.uk/id/local-authority-district/22UN,Life Opportunities,"1580 - Benefits, Revenues and Customer Contact SU",4462 - Bailiffs and Tracing Agent Fees re debt recovery,17/12/2013,2112845-2,-5,2100381 - Collect Services Ltd,vat on fees collected nndr
Tendring DC,http://statistics.data.gov.uk/id/local-authority-district/22UN,Life Opportunities,"1580 - Benefits, Revenues and Customer Contact SU",4462 - Bailiffs and Tracing Agent Fees re debt recovery,17/12/2013,2112846-1,5,2100381 - Collect Services Ltd,vat on fee collected c/t
Tendring DC,http://statistics.data.gov.uk/id/local-authority-district/22UN,Life Opportunities,"1580 - Benefits, Revenues and Customer Contact SU",4462 - Bailiffs and Tracing Agent Fees re debt recovery,17/12/2013,2112846-2,-5,2100381 - Collect Services Ltd,vat on fee collected c/t
Tendring DC,http://statistics.data.gov.uk/id/local-authority-district/22UN,Life Opportunities,"1580 - Benefits, Revenues and Customer Contact SU",4462 - Bailiffs and Tracing Agent Fees re debt recovery,17/12/2013,2112846-3,3833.21,2100381 - Collect Services Ltd,vat on fee collected c/t
Tendring DC,http://statistics.data.gov.uk/id/local-authority-district/22UN,Life Opportunities,"1580 - Benefits, Revenues and Customer Contact SU",4462 - Bailiffs and Tracing Agent Fees re debt recovery,17/12/2013,2112846-4,-3833.21,2100381 - Collect Services Ltd,vat on fee collected c/t
Tendring DC,http://statistics.data.gov.uk/id/local-authority-district/22UN,Life Opportunities,5260 - HRA - Rent Collection And Accounting,4462 - Bailiffs and Tracing Agent Fees re debt recovery,17/12/2013,7010236-1,2.25,2100381 - Collect Services Ltd,Oct-13
Tendring DC,http://statistics.data.gov.uk/id/local-authority-district/22UN,Life Opportunities,5260 - HRA - Rent Collection And Accounting,4462 - Bailiffs and Tracing Agent Fees re debt recovery,17/12/2013,7010237-1,10.53,2100381 - Collect Services Ltd,Sep-13
Tendring DC,http://statistics.data.gov.uk/id/local-authority-district/22UN,Life Opportunities,5260 - HRA - Rent Collection And Accounting,4462 - Bailiffs and Tracing Agent Fees re debt recovery,17/12/2013,7010238-1,17.25,2100381 - Collect Services Ltd,Aug-13
Tendring DC,http://statistics.data.gov.uk/id/local-authority-district/22UN,Life Opportunities,5260 - HRA - Rent Collection And Accounting,4462 - Bailiffs and Tracing Agent Fees re debt recovery,17/12/2013,7010239-1,28.51,2100381 - Collect Services Ltd,Nov-13
Tendring DC,http://statistics.data.gov.uk/id/local-authority-district/22UN,Life Opportunities,"1580 - Benefits, Revenues and Customer Contact SU",4462 - Bailiffs and Tracing Agent Fees re debt recovery,03/12/2013,7700901-1,21.25,2100381 - Collect Services Ltd,VAT ON FEES COLLECT C/T
Tendring DC,http://statistics.data.gov.uk/id/local-authority-district/22UN,Life Opportunities,"1580 - Benefits, Revenues and Customer Contact SU",4462 - Bailiffs and Tracing Agent Fees re debt recovery,03/12/2013,7700901-2,-21.25,2100381 - Collect Services Ltd,VAT ON FEES COLLECT C/T
Tendring DC,http://statistics.data.gov.uk/id/local-authority-district/22UN,Life Opportunities,"1580 - Benefits, Revenues and Customer Contact SU",4462 - Bailiffs and Tracing Agent Fees re debt recovery,03/12/2013,7700901-3,3331.05,2100381 - Collect Services Ltd,VAT ON FEES COLLECT C/T
Tendring DC,http://statistics.data.gov.uk/id/local-authority-district/22UN,Life Opportunities,"1580 - Benefits, Revenues and Customer Contact SU",4462 - Bailiffs and Tracing Agent Fees re debt recovery,03/12/2013,7700901-4,-3331.05,2100381 - Collect Services Ltd,VAT ON FEES COLLECT C/T
Tendring DC,http://statistics.data.gov.uk/id/local-authority-district/22UN,Life Opportunities,"1580 - Benefits, Revenues and Customer Contact SU",4462 - Bailiffs and Tracing Agent Fees re debt recovery,03/12/2013,7700902-1,787.99,2100381 - Collect Services Ltd,VAT ON FEES COLLECTED NNDR
Tendring DC,http://statistics.data.gov.uk/id/local-authority-district/22UN,Life Opportunities,"1580 - Benefits, Revenues and Customer Contact SU",4462 - Bailiffs and Tracing Agent Fees re debt recovery,03/12/2013,7700902-2,-787.99,2100381 - Collect Services Ltd,VAT ON FEES COLLECTED NNDR
Tendring DC,http://statistics.data.gov.uk/id/local-authority-district/22UN,Life Opportunities,9900 - General Fund Balance Sheet,B863 - Bailiff Payments Holding Account,03/12/2013,1056518-1,1334,REDACTED COMMERCIAL CONFIDENTIALITY,REDACTED COMMERCIAL CONFIDENTIALITY
Tendring DC,http://statistics.data.gov.uk/id/local-authority-district/22UN,Life Opportunities,9900 - General Fund Balance Sheet,B863 - Bailiff Payments Holding Account,10/12/2013,1056617-1,2869.46,REDACTED COMMERCIAL CONFIDENTIALITY,REDACTED COMMERCIAL CONFIDENTIALITY
Tendring DC,http://statistics.data.gov.uk/id/local-authority-district/22UN,Life Opportunities,9900 - General Fund Balance Sheet,B863 - Bailiff Payments Holding Account,23/12/2013,1056714-1,1568,REDACTED COMMERCIAL CONFIDENTIALITY,REDACTED COMMERCIAL CONFIDENTIALITY
Tendring DC,http://statistics.data.gov.uk/id/local-authority-district/22UN,Life Opportunities,9900 - General Fund Balance Sheet,B863 - Bailiff Payments Holding Account,17/12/2013,2112848-1,2056.55,REDACTED COMMERCIAL CONFIDENTIALITY,REDACTED COMMERCIAL CONFIDENTIALITY
Tendring DC,http://statistics.data.gov.uk/id/local-authority-district/22UN,Life Opportunities,8510 - Dovercourt Swimming Pool & All Weather Facilities,2100 - Building Repairs,17/12/2013,2112821-1,247.5,2100391 - Collect-A-Way,dovercourt pool - skip hire
Tendring DC,http://statistics.data.gov.uk/id/local-authority-district/22UN,Life Opportunities,5365 - HRA - Colne Housing Soc Shel Units,4404 - Service Agreement - Foundry Court,23/12/2013,7010519-1,1406.08,2100342 - Colne Housing Society Ltd,IRONSIDE WALK 3RD QTR
Tendring DC,http://statistics.data.gov.uk/id/local-authority-district/22UN,Life Opportunities,5240 - HRA - Managing Tenancies,5248 - Estate Management Expenses,17/12/2013,2112801-1,85,REDACTED PERSONAL DATA,REDACTED PERSONAL DATA
Tendring DC,http://statistics.data.gov.uk/id/local-authority-district/22UN,Life Opportunities,5240 - HRA - Managing Tenancies,5248 - Estate Management Expenses,10/12/2013,7010101-1,85,2103418 - Command Pest Control Limited T/A Pestclear,30-40 MASON ROAD
Tendring DC,http://statistics.data.gov.uk/id/local-authority-district/22UN,Life Opportunities,9900 - General Fund Balance Sheet,B382 - Rechargeable Works - Other,03/12/2013,7700867-1,2425,2103418 - Command Pest Control Limited T/A Pestclear,"42 THE PARADE, WALTON"
Tendring DC,http://statistics.data.gov.uk/id/local-authority-district/22UN,Life Opportunities,5800 - Brightlingsea Sports Centre,2100 - Building Repairs,10/12/2013,7010125-1,115.42,2113429 - CONCEPT2,CONCEPT2 LTD
Tendring DC,http://statistics.data.gov.uk/id/local-authority-district/22UN,Life Opportunities,8520 - Frinton & Walton Swimming Pool,4400 - Maintenance Under Service Agreements,10/12/2013,7010114-1,115,2110353 - Contract Fire Security,FWSP - CONTACT FIRE SECURITY
Tendring DC,http://statistics.data.gov.uk/id/local-authority-district/22UN,Life Opportunities,1860 - Depots General,2100 - Building Repairs,03/12/2013,1056472-1,1399.52,2100314 - Cooper & Brome (Plumbing & Heating) Ltd,NEW BOILER NORTHBOURNE
Tendring DC,http://statistics.data.gov.uk/id/local-authority-district/22UN,Life Opportunities,H860 - Disabled Adaptations,C200 - Main Contractor,23/12/2013,1056662-1,4963.89,REDACTED PERSONAL DATA,REDACTED PERSONAL DATA
Tendring DC,http://statistics.data.gov.uk/id/local-authority-district/22UN,Life Opportunities,5240 - HRA - Managing Tenancies,5242 - Tenant Relations,17/12/2013,7010319-1,200,2100354 - Coppins Hall Community Association,CHCA CONTRIBUTION TO CHILDRENS XMAS PARTY
Tendring DC,http://statistics.data.gov.uk/id/local-authority-district/22UN,Life Opportunities,8510 - Dovercourt Swimming Pool & All Weather Facilities,2308 - Energy Costs - Gas (Including LPG),17/12/2013,2112884-1,2752.62,2104620 - Corona Energy Retail 4 Limited,dsp gas nov
Tendring DC,http://statistics.data.gov.uk/id/local-authority-district/22UN,Life Opportunities,8520 - Frinton & Walton Swimming Pool,2308 - Energy Costs - Gas (Including LPG),17/12/2013,2112885-1,2943.46,2104620 - Corona Energy Retail 4 Limited,corona/gas
Tendring DC,http://statistics.data.gov.uk/id/local-authority-district/22UN,Life Opportunities,8520 - Frinton & Walton Swimming Pool,2308 - Energy Costs - Gas (Including LPG),17/12/2013,2112886-1,3484.7,2104620 - Corona Energy Retail 4 Limited,corona/gas
Tendring DC,http://statistics.data.gov.uk/id/local-authority-district/22UN,Life Opportunities,8510 - Dovercourt Swimming Pool & All Weather Facilities,2308 - Energy Costs - Gas (Including LPG),17/12/2013,2112887-1,2458.55,2104620 - Corona Energy Retail 4 Limited,dsp gas oct 13
Tendring DC,http://statistics.data.gov.uk/id/local-authority-district/22UN,Life Opportunities,5340 - HRA - Communal Central Heating,2308 - Energy Costs - Gas (Including LPG),17/12/2013,7010259-1,8037.11,2104620 - Corona Energy Retail 4 Limited,NOV SHU GAS
Tendring DC,http://statistics.data.gov.uk/id/local-authority-district/22UN,Life Opportunities,8540 - Leisure Centre Clacton,2308 - Energy Costs - Gas (Including LPG),23/12/2013,7010482-1,1964.19,2104620 - Corona Energy Retail 4 Limited,OCTOBER
Tendring DC,http://statistics.data.gov.uk/id/local-authority-district/22UN,Life Opportunities,8540 - Leisure Centre Clacton,2308 - Energy Costs - Gas (Including LPG),23/12/2013,7010483-1,2280.59,2104620 - Corona Energy Retail 4 Limited,NOVEMBER
Tendring DC,http://statistics.data.gov.uk/id/local-authority-district/22UN,Life Opportunities,5240 - HRA - Managing Tenancies,5242 - Tenant Relations,10/12/2013,7010039-1,1034,2104177 - Corporate Document Services Ltd,TENDRING REPORTS SEPT 2013
Tendring DC,http://statistics.data.gov.uk/id/local-authority-district/22UN,Life Opportunities,5240 - HRA - Managing Tenancies,5242 - Tenant Relations,10/12/2013,7010040-1,3306,2104177 - Corporate Document Services Ltd,TENDRING ANNUAL REPORT 13-14
Tendring DC,http://statistics.data.gov.uk/id/local-authority-district/22UN,Life Opportunities,5140 - Homelessness,4683 - Other Homelessness Expenses,17/12/2013,2112860-1,650,REDACTED PERSONAL DATA,REDACTED PERSONAL DATA
Tendring DC,http://statistics.data.gov.uk/id/local-authority-district/22UN,Life Opportunities,8510 - Dovercourt Swimming Pool & All Weather Facilities,4000 - Furniture,23/12/2013,1056685-1,1221,2100183 - CR Services,DOVERCOURT POOL-HEATING
Tendring DC,http://statistics.data.gov.uk/id/local-authority-district/22UN,Life Opportunities,8510 - Dovercourt Swimming Pool & All Weather Facilities,2100 - Building Repairs,23/12/2013,1056686-1,223.1,2100183 - CR Services,DOVERCOURT POOL-REPAIRS
Tendring DC,http://statistics.data.gov.uk/id/local-authority-district/22UN,Life Opportunities,8530 - Brightlingsea Swimming Pool,2100 - Building Repairs,03/12/2013,2112455-1,120,2100183 - CR Services,cr services
Tendring DC,http://statistics.data.gov.uk/id/local-authority-district/22UN,Life Opportunities,8520 - Frinton & Walton Swimming Pool,2100 - Building Repairs,03/12/2013,7009970-1,169.2,2100183 - CR Services,CR SERVICES/ELECTRICAL
Tendring DC,http://statistics.data.gov.uk/id/local-authority-district/22UN,Life Opportunities,8510 - Dovercourt Swimming Pool & All Weather Facilities,2100 - Building Repairs,10/12/2013,7010126-1,56,2100183 - CR Services,DOVERCOURT POOL
Tendring DC,http://statistics.data.gov.uk/id/local-authority-district/22UN,Life Opportunities,8520 - Frinton & Walton Swimming Pool,2100 - Building Repairs,23/12/2013,7010388-1,277.15,2100183 - CR Services,FWSP - CR SERVICES
Tendring DC,http://statistics.data.gov.uk/id/local-authority-district/22UN,Life Opportunities,8520 - Frinton & Walton Swimming Pool,2100 - Building Repairs,23/12/2013,7010389-1,194.4,2100183 - CR Services,FWSP - C R SERVICES
Tendring DC,http://statistics.data.gov.uk/id/local-authority-district/22UN,Life Opportunities,8510 - Dovercourt Swimming Pool & All Weather Facilities,2100 - Building Repairs,23/12/2013,7010396-1,550,2100183 - CR Services,DOVERCOURT POOL - REPAIRS
Tendring DC,http://statistics.data.gov.uk/id/local-authority-district/22UN,Life Opportunities,8540 - Leisure Centre Clacton,2100 - Building Repairs,23/12/2013,7010489-1,295,2100183 - CR Services,"LIGHTS, GYM, SPA, CHANGING"
Tendring DC,http://statistics.data.gov.uk/id/local-authority-district/22UN,Life Opportunities,8520 - Frinton & Walton Swimming Pool,2100 - Building Repairs,23/12/2013,7010490-1,70,2100183 - CR Services,FWSP - CR SERVICES
Tendring DC,http://statistics.data.gov.uk/id/local-authority-district/22UN,Life Opportunities,1210 - Facilities Management Service Unit,5500 - Miscellaneous Expenses,23/12/2013,7010412-1,259.7,2102038 - Crispins Sandwich Bar Ltd,SPECIAL BUFFET 22.10.13
Tendring DC,http://statistics.data.gov.uk/id/local-authority-district/22UN,Life Opportunities,6740 - Careline,4880 - Subscriptions Paid,10/12/2013,2112615-1,25,2111169 - CVS Tendring,cvts - affiliation fee
Tendring DC,http://statistics.data.gov.uk/id/local-authority-district/22UN,Life Opportunities,H815 - Re-roofing,C200 - Main Contractor,17/12/2013,7010299-1,833.33,REDACTED PERSONAL DATA,REDACTED PERSONAL DATA
Tendring DC,http://statistics.data.gov.uk/id/local-authority-district/22UN,Life Opportunities,5480 - HRA - Repair & Maintenance,2088 - Disabled Adaptations,23/12/2013,1056659-1,200,REDACTED PERSONAL DATA,REDACTED PERSONAL DATA
Tendring DC,http://statistics.data.gov.uk/id/local-authority-district/22UN,Life Opportunities,5480 - HRA - Repair & Maintenance,2088 - Disabled Adaptations,23/12/2013,1056659-2,50,REDACTED PERSONAL DATA,REDACTED PERSONAL DATA
Tendring DC,http://statistics.data.gov.uk/id/local-authority-district/22UN,Life Opportunities,6160 - Princes Theatre,4597 - Hired Services - Payments to Contractors,10/12/2013,7010107-1,7.32,2100397 - Danes of Colchester Ltd,DRY CLEANING FOR THEATRE
Tendring DC,http://statistics.data.gov.uk/id/local-authority-district/22UN,Life Opportunities,6160 - Princes Theatre,4597 - Hired Services - Payments to Contractors,17/12/2013,7010288-1,4.35,2100397 - Danes of Colchester Ltd,DRY CLEANING FOR THEATRE
Tendring DC,http://statistics.data.gov.uk/id/local-authority-district/22UN,Life Opportunities,6160 - Princes Theatre,4597 - Hired Services - Payments to Contractors,17/12/2013,7010289-1,26.22,2100397 - Danes of Colchester Ltd,DRY CLEANING FOR THEATRE
Tendring DC,http://statistics.data.gov.uk/id/local-authority-district/22UN,Life Opportunities,6160 - Princes Theatre,4597 - Hired Services - Payments to Contractors,17/12/2013,7010290-1,22.08,2100397 - Danes of Colchester Ltd,DRY CLEANING FOR THEATRE
Tendring DC,http://statistics.data.gov.uk/id/local-authority-district/22UN,Life Opportunities,6160 - Princes Theatre,4597 - Hired Services - Payments to Contractors,17/12/2013,7010291-1,31.42,2100397 - Danes of Colchester Ltd,DRY CLEANING FOR THEATRE
Tendring DC,http://statistics.data.gov.uk/id/local-authority-district/22UN,Life Opportunities,8540 - Leisure Centre Clacton,9275 - Lifestyles Plus - DD,23/12/2013,1056703-1,28.67,REDACTED PERSONAL DATA,REDACTED PERSONAL DATA
Tendring DC,http://statistics.data.gov.uk/id/local-authority-district/22UN,Life Opportunities,6420 - Cost Of Council Tax Collection,4597 - Hired Services - Payments to Contractors,23/12/2013,7010511-1,4945,2110767 - Datatank Ltd,SPD REVIEW 2013
Tendring DC,http://statistics.data.gov.uk/id/local-authority-district/22UN,Life Opportunities,8540 - Leisure Centre Clacton,4000 - Furniture,17/12/2013,2112790-1,102.95,2105884 - Davies Sports,gymnastics equipment
Tendring DC,http://statistics.data.gov.uk/id/local-authority-district/22UN,Life Opportunities,8540 - Leisure Centre Clacton,4000 - Furniture,17/12/2013,2112806-1,54.7,2105884 - Davies Sports,gymnastics equipment
Tendring DC,http://statistics.data.gov.uk/id/local-authority-district/22UN,Life Opportunities,1880 - Office Accommodation Expenses,2100 - Building Repairs,17/12/2013,2112686-1,156,2108384 - DC Drains & Plumbing Services,plumbing weeley
Tendring DC,http://statistics.data.gov.uk/id/local-authority-district/22UN,Life Opportunities,1880 - Office Accommodation Expenses,2100 - Building Repairs,17/12/2013,2112687-1,310.98,2108384 - DC Drains & Plumbing Services,plumbing town hall
Tendring DC,http://statistics.data.gov.uk/id/local-authority-district/22UN,Life Opportunities,1880 - Office Accommodation Expenses,2100 - Building Repairs,17/12/2013,2112688-1,53.74,2108384 - DC Drains & Plumbing Services,plumbing n-bourne th ct and frinton
Tendring DC,http://statistics.data.gov.uk/id/local-authority-district/22UN,Life Opportunities,1880 - Office Accommodation Expenses,2100 - Building Repairs,17/12/2013,2112688-2,53.74,2108384 - DC Drains & Plumbing Services,plumbing n-bourne th ct and frinton
Tendring DC,http://statistics.data.gov.uk/id/local-authority-district/22UN,Life Opportunities,1880 - Office Accommodation Expenses,2100 - Building Repairs,17/12/2013,2112688-3,53.75,2108384 - DC Drains & Plumbing Services,plumbing n-bourne th ct and frinton
Tendring DC,http://statistics.data.gov.uk/id/local-authority-district/22UN,Life Opportunities,1860 - Depots General,2100 - Building Repairs,17/12/2013,2112688-4,53.75,2108384 - DC Drains & Plumbing Services,plumbing n-bourne th ct and frinton
Tendring DC,http://statistics.data.gov.uk/id/local-authority-district/22UN,Life Opportunities,1880 - Office Accommodation Expenses,2100 - Building Repairs,17/12/2013,2112689-1,311.5,2108384 - DC Drains & Plumbing Services,plumbing town hall
Tendring DC,http://statistics.data.gov.uk/id/local-authority-district/22UN,Life Opportunities,1880 - Office Accommodation Expenses,2100 - Building Repairs,17/12/2013,2112690-1,382,2108384 - DC Drains & Plumbing Services,plumbing barnes house
Tendring DC,http://statistics.data.gov.uk/id/local-authority-district/22UN,Life Opportunities,1880 - Office Accommodation Expenses,2100 - Building Repairs,17/12/2013,2112691-1,126.98,2108384 - DC Drains & Plumbing Services,plumbing weeley
Tendring DC,http://statistics.data.gov.uk/id/local-authority-district/22UN,Life Opportunities,1880 - Office Accommodation Expenses,2100 - Building Repairs,17/12/2013,2112692-1,78,2108384 - DC Drains & Plumbing Services,plumbing town hall
Tendring DC,http://statistics.data.gov.uk/id/local-authority-district/22UN,Life Opportunities,8540 - Leisure Centre Clacton,2100 - Building Repairs,03/12/2013,7700831-1,90.98,2108384 - DC Drains & Plumbing Services,O/S TAP REPAIR
Tendring DC,http://statistics.data.gov.uk/id/local-authority-district/22UN,Life Opportunities,8520 - Frinton & Walton Swimming Pool,4400 - Maintenance Under Service Agreements,23/12/2013,7010392-1,93.68,2107840 - Digital Office Systems Ltd,COPY CHARGES TO 12.12.13
Tendring DC,http://statistics.data.gov.uk/id/local-authority-district/22UN,Life Opportunities,5880 - Management Of Sport & Leisure Facilities,5166 - Marketing and Promotion,23/12/2013,7010518-1,495,2103510 - Direct Solutions,7 BANNER DISPLAYS
Tendring DC,http://statistics.data.gov.uk/id/local-authority-district/22UN,Life Opportunities,8510 - Dovercourt Swimming Pool & All Weather Facilities,4400 - Maintenance Under Service Agreements,10/12/2013,7010068-1,140,2113585 - Dolphin Mobility Ltd,DOVERCOURT POOL
Tendring DC,http://statistics.data.gov.uk/id/local-authority-district/22UN,Life Opportunities,5820 - Harwich Sports Centre,4597 - Hired Services - Payments to Contractors,10/12/2013,7010117-1,100,2112824 - Dynamic Stability,PILATES CLASSES NOV 13
Tendring DC,http://statistics.data.gov.uk/id/local-authority-district/22UN,Life Opportunities,5860 - Manningtree Sports Centre,4597 - Hired Services - Payments to Contractors,17/12/2013,7010155-1,100,2112824 - Dynamic Stability,PILATES CLASSES
Tendring DC,http://statistics.data.gov.uk/id/local-authority-district/22UN,Life Opportunities,8530 - Brightlingsea Swimming Pool,2304 - Energy Costs - Electricity,17/12/2013,2112881-1,1611.56,2107521 - E.On,19/8/13 to 2/12/13
Tendring DC,http://statistics.data.gov.uk/id/local-authority-district/22UN,Life Opportunities,H825 - Refurbishment of Door Entry Systems,C200 - Main Contractor,17/12/2013,2112652-1,600,2110229 - East Coast Electrical Contractors Ltd,21 victoria crescent
Tendring DC,http://statistics.data.gov.uk/id/local-authority-district/22UN,Life Opportunities,1242 - Corporate Director (Life Opportunities),1710 - Training - Central Department Budget,17/12/2013,7010139-1,550,2100478 - East of England Ambulance Service NHS Trust,FALLS ASSESSMENT & LIFTING COURSE
Tendring DC,http://statistics.data.gov.uk/id/local-authority-district/22UN,Life Opportunities,1242 - Corporate Director (Life Opportunities),1710 - Training - Central Department Budget,10/12/2013,7010061-1,300,2113110 - Easton & Otley College,J W & M D EXERCISE APPRENTICE
Tendring DC,http://statistics.data.gov.uk/id/local-authority-district/22UN,Life Opportunities,8510 - Dovercourt Swimming Pool & All Weather Facilities,2304 - Energy Costs - Electricity,17/12/2013,2112804-1,3238.97,2105146 - EDF Energy 1 Ltd,nov gas dsp
Tendring DC,http://statistics.data.gov.uk/id/local-authority-district/22UN,Life Opportunities,8540 - Leisure Centre Clacton,2304 - Energy Costs - Electricity,17/12/2013,2112805-1,8118.65,2105146 - EDF Energy 1 Ltd,november
Tendring DC,http://statistics.data.gov.uk/id/local-authority-district/22UN,Life Opportunities,8540 - Leisure Centre Clacton,2304 - Energy Costs - Electricity,17/12/2013,2112805-2,16.9,2105146 - EDF Energy 1 Ltd,november
Tendring DC,http://statistics.data.gov.uk/id/local-authority-district/22UN,Life Opportunities,1880 - Office Accommodation Expenses,2304 - Energy Costs - Electricity,17/12/2013,7010302-1,5598.75,2105146 - EDF Energy 1 Ltd,EDF TOWN HALL
Tendring DC,http://statistics.data.gov.uk/id/local-authority-district/22UN,Life Opportunities,1880 - Office Accommodation Expenses,2304 - Energy Costs - Electricity,17/12/2013,7010302-2,3.76,2105146 - EDF Energy 1 Ltd,EDF TOWN HALL
Tendring DC,http://statistics.data.gov.uk/id/local-authority-district/22UN,Life Opportunities,5860 - Manningtree Sports Centre,4400 - Maintenance Under Service Agreements,17/12/2013,7010150-1,274.96,2109445 - Elanar Technical Services Ltd,BOILER SERVICE
Tendring DC,http://statistics.data.gov.uk/id/local-authority-district/22UN,Life Opportunities,8540 - Leisure Centre Clacton,9275 - Lifestyles Plus - DD,17/12/2013,2112863-1,32.25,REDACTED PERSONAL DATA,REDACTED PERSONAL DATA
Tendring DC,http://statistics.data.gov.uk/id/local-authority-district/22UN,Life Opportunities,6160 - Princes Theatre,4622 - Hired Services - Artistes and Production Companies,03/12/2013,7700854-1,4400,2111197 - Entertainers Management Ltd,STARS OF THE OPERA
Tendring DC,http://statistics.data.gov.uk/id/local-authority-district/22UN,Life Opportunities,1240 - Housing Services Service Unit,1710 - Training - Central Department Budget,10/12/2013,7010034-1,70,2100498 - Essex County Council,CULTURAL AWARENESS 17.7.13
Tendring DC,http://statistics.data.gov.uk/id/local-authority-district/22UN,Life Opportunities,8510 - Dovercourt Swimming Pool & All Weather Facilities,4400 - Maintenance Under Service Agreements,03/12/2013,7009977-1,67,2100531 - Euro-Fire Ltd,DOVERCOURT POOL - SERVICE
Tendring DC,http://statistics.data.gov.uk/id/local-authority-district/22UN,Life Opportunities,5480 - HRA - Repair & Maintenance,2059 - Fire Fighting Equipment Servicing,10/12/2013,7010055-1,137.7,2100531 - Euro-Fire Ltd,HONEYCROFT
Tendring DC,http://statistics.data.gov.uk/id/local-authority-district/22UN,Life Opportunities,6740 - Careline,4040 - Equipment & Tools,10/12/2013,2112613-1,179,2102677 - Felgains Care & Mobility,felgains service
Tendring DC,http://statistics.data.gov.uk/id/local-authority-district/22UN,Life Opportunities,6740 - Careline,4040 - Equipment & Tools,23/12/2013,7010461-1,1035,2102677 - Felgains Care & Mobility,FELGAINS - ELK
Tendring DC,http://statistics.data.gov.uk/id/local-authority-district/22UN,Life Opportunities,5480 - HRA - Repair & Maintenance,2058 - Fire Alarms Repairs,03/12/2013,1056512-1,80,REDACTED PERSONAL DATA,REDACTED PERSONAL DATA
Tendring DC,http://statistics.data.gov.uk/id/local-authority-district/22UN,Life Opportunities,5480 - HRA - Repair & Maintenance,2058 - Fire Alarms Repairs,03/12/2013,1056513-1,155,2108583 - Firesite,CALL OUT CROOKED ELMS
Tendring DC,http://statistics.data.gov.uk/id/local-authority-district/22UN,Life Opportunities,5480 - HRA - Repair & Maintenance,2058 - Fire Alarms Repairs,17/12/2013,1056625-1,60,2108583 - Firesite,RIVERS HOUSE
Tendring DC,http://statistics.data.gov.uk/id/local-authority-district/22UN,Life Opportunities,5480 - HRA - Repair & Maintenance,2058 - Fire Alarms Repairs,17/12/2013,7010231-1,60,2108583 - Firesite,DARCY HOUSE
Tendring DC,http://statistics.data.gov.uk/id/local-authority-district/22UN,Life Opportunities,5480 - HRA - Repair & Maintenance,2058 - Fire Alarms Repairs,17/12/2013,7010232-1,50,2108583 - Firesite,KATE DANIELS HOUSE
Tendring DC,http://statistics.data.gov.uk/id/local-authority-district/22UN,Life Opportunities,5480 - HRA - Repair & Maintenance,2058 - Fire Alarms Repairs,17/12/2013,7010233-1,60,2108583 - Firesite,MAYFLOWER HOUSE
Tendring DC,http://statistics.data.gov.uk/id/local-authority-district/22UN,Life Opportunities,5480 - HRA - Repair & Maintenance,2058 - Fire Alarms Repairs,17/12/2013,7010234-1,60,2108583 - Firesite,WHITE HART COURT
Tendring DC,http://statistics.data.gov.uk/id/local-authority-district/22UN,Life Opportunities,5480 - HRA - Repair & Maintenance,2058 - Fire Alarms Repairs,17/12/2013,7010235-1,60,2108583 - Firesite,ROCHFORD HOUSE
Tendring DC,http://statistics.data.gov.uk/id/local-authority-district/22UN,Life Opportunities,5480 - HRA - Repair & Maintenance,2057 - Fire Alarms Servicing,03/12/2013,7700843-1,160,2108583 - Firesite,BELMANS COURT
Tendring DC,http://statistics.data.gov.uk/id/local-authority-district/22UN,Life Opportunities,5480 - HRA - Repair & Maintenance,2058 - Fire Alarms Repairs,03/12/2013,7700843-2,45,2108583 - Firesite,BELMANS COURT
Tendring DC,http://statistics.data.gov.uk/id/local-authority-district/22UN,Life Opportunities,5480 - HRA - Repair & Maintenance,2058 - Fire Alarms Repairs,03/12/2013,7700844-1,50,2108583 - Firesite,CROOKED ELMS
Tendring DC,http://statistics.data.gov.uk/id/local-authority-district/22UN,Life Opportunities,7600 - Tourist Information Centres,9356 - Commission Sales,10/12/2013,1056547-1,1935,2103743 - First Essex Buses Ltd,FIRST ESSEX NOV 13
Tendring DC,http://statistics.data.gov.uk/id/local-authority-district/22UN,Life Opportunities,7600 - Tourist Information Centres,9356 - Commission Sales,10/12/2013,1056547-2,-193.5,2103743 - First Essex Buses Ltd,FIRST ESSEX NOV 13
Tendring DC,http://statistics.data.gov.uk/id/local-authority-district/22UN,Life Opportunities,"1580 - Benefits, Revenues and Customer Contact SU",4635 - Cash Collection Contract,23/12/2013,1056721-1,470.49,2101233 - G4S Cash Services (UK) Limited,G4S JAN 14
Tendring DC,http://statistics.data.gov.uk/id/local-authority-district/22UN,Life Opportunities,8560 - Happy Valley Recreation Ground Pitch & Putt,4635 - Cash Collection Contract,23/12/2013,1056721-10,69.57,2101233 - G4S Cash Services (UK) Limited,G4S JAN 14
Tendring DC,http://statistics.data.gov.uk/id/local-authority-district/22UN,Life Opportunities,5820 - Harwich Sports Centre,4635 - Cash Collection Contract,23/12/2013,1056721-11,69.57,2101233 - G4S Cash Services (UK) Limited,G4S JAN 14
Tendring DC,http://statistics.data.gov.uk/id/local-authority-district/22UN,Life Opportunities,8025 - Car Parks - Off St,4635 - Cash Collection Contract,23/12/2013,1056721-12,47.8,2101233 - G4S Cash Services (UK) Limited,G4S JAN 14
Tendring DC,http://statistics.data.gov.uk/id/local-authority-district/22UN,Life Opportunities,7600 - Tourist Information Centres,4635 - Cash Collection Contract,23/12/2013,1056721-13,65.66,2101233 - G4S Cash Services (UK) Limited,G4S JAN 14
Tendring DC,http://statistics.data.gov.uk/id/local-authority-district/22UN,Life Opportunities,5260 - HRA - Rent Collection And Accounting,4635 - Cash Collection Contract,23/12/2013,1056721-2,119.64,2101233 - G4S Cash Services (UK) Limited,G4S JAN 14
Tendring DC,http://statistics.data.gov.uk/id/local-authority-district/22UN,Life Opportunities,5260 - HRA - Rent Collection And Accounting,4635 - Cash Collection Contract,23/12/2013,1056721-3,19.58,2101233 - G4S Cash Services (UK) Limited,G4S JAN 14
Tendring DC,http://statistics.data.gov.uk/id/local-authority-district/22UN,Life Opportunities,"1580 - Benefits, Revenues and Customer Contact SU",4635 - Cash Collection Contract,23/12/2013,1056721-4,29.11,2101233 - G4S Cash Services (UK) Limited,G4S JAN 14
Tendring DC,http://statistics.data.gov.uk/id/local-authority-district/22UN,Life Opportunities,8025 - Car Parks - Off St,4635 - Cash Collection Contract,23/12/2013,1056721-5,68.11,2101233 - G4S Cash Services (UK) Limited,G4S JAN 14
Tendring DC,http://statistics.data.gov.uk/id/local-authority-district/22UN,Life Opportunities,8540 - Leisure Centre Clacton,4635 - Cash Collection Contract,23/12/2013,1056721-6,208.7,2101233 - G4S Cash Services (UK) Limited,G4S JAN 14
Tendring DC,http://statistics.data.gov.uk/id/local-authority-district/22UN,Life Opportunities,8510 - Dovercourt Swimming Pool & All Weather Facilities,4635 - Cash Collection Contract,23/12/2013,1056721-7,139.13,2101233 - G4S Cash Services (UK) Limited,G4S JAN 14
Tendring DC,http://statistics.data.gov.uk/id/local-authority-district/22UN,Life Opportunities,5800 - Brightlingsea Sports Centre,4635 - Cash Collection Contract,23/12/2013,1056721-8,69.57,2101233 - G4S Cash Services (UK) Limited,G4S JAN 14
Tendring DC,http://statistics.data.gov.uk/id/local-authority-district/22UN,Life Opportunities,8520 - Frinton & Walton Swimming Pool,4635 - Cash Collection Contract,23/12/2013,1056721-9,139.13,2101233 - G4S Cash Services (UK) Limited,G4S JAN 14
Tendring DC,http://statistics.data.gov.uk/id/local-authority-district/22UN,Life Opportunities,"1580 - Benefits, Revenues and Customer Contact SU",4635 - Cash Collection Contract,23/12/2013,1056722-1,5,2101233 - G4S Cash Services (UK) Limited,CASH DELIVERY
Tendring DC,http://statistics.data.gov.uk/id/local-authority-district/22UN,Life Opportunities,6160 - Princes Theatre,4635 - Cash Collection Contract,23/12/2013,1056722-2,5,2101233 - G4S Cash Services (UK) Limited,CASH DELIVERY
Tendring DC,http://statistics.data.gov.uk/id/local-authority-district/22UN,Life Opportunities,"1580 - Benefits, Revenues and Customer Contact SU",4635 - Cash Collection Contract,23/12/2013,7010529-1,1.55,2101233 - G4S Cash Services (UK) Limited,CASH DELIVERY
Tendring DC,http://statistics.data.gov.uk/id/local-authority-district/22UN,Life Opportunities,6160 - Princes Theatre,4635 - Cash Collection Contract,23/12/2013,7010529-2,1.16,2101233 - G4S Cash Services (UK) Limited,CASH DELIVERY
Tendring DC,http://statistics.data.gov.uk/id/local-authority-district/22UN,Life Opportunities,H920 - Disabled Facilities Grants,C400 - Grant payments,17/12/2013,7010310-1,371.5,REDACTED PERSONAL DATA,REDACTED PERSONAL DATA
Tendring DC,http://statistics.data.gov.uk/id/local-authority-district/22UN,Life Opportunities,H920 - Disabled Facilities Grants,C400 - Grant payments,03/12/2013,1056492-1,390,REDACTED PERSONAL DATA,REDACTED PERSONAL DATA
Tendring DC,http://statistics.data.gov.uk/id/local-authority-district/22UN,Life Opportunities,H920 - Disabled Facilities Grants,C400 - Grant payments,10/12/2013,1056582-1,298,REDACTED PERSONAL DATA,REDACTED PERSONAL DATA
Tendring DC,http://statistics.data.gov.uk/id/local-authority-district/22UN,Life Opportunities,H920 - Disabled Facilities Grants,C400 - Grant payments,17/12/2013,7010309-1,3673,REDACTED PERSONAL DATA,REDACTED PERSONAL DATA
Tendring DC,http://statistics.data.gov.uk/id/local-authority-district/22UN,Life Opportunities,8540 - Leisure Centre Clacton,2100 - Building Repairs,03/12/2013,7009987-1,70,2100546 - GCS Alarms,PULL CORD SWITCH
Tendring DC,http://statistics.data.gov.uk/id/local-authority-district/22UN,Life Opportunities,8510 - Dovercourt Swimming Pool & All Weather Facilities,4400 - Maintenance Under Service Agreements,17/12/2013,7010153-1,160,2100546 - GCS Alarms,DOVERCOURT POOL - CCTV
Tendring DC,http://statistics.data.gov.uk/id/local-authority-district/22UN,Life Opportunities,8510 - Dovercourt Swimming Pool & All Weather Facilities,4400 - Maintenance Under Service Agreements,17/12/2013,7010154-1,220,2100546 - GCS Alarms,DOVERCOURT POOL - FIRE ALARM
Tendring DC,http://statistics.data.gov.uk/id/local-authority-district/22UN,Life Opportunities,1880 - Office Accommodation Expenses,4632 - Security,17/12/2013,7010285-1,48.5,2100546 - GCS Alarms,REPLACE BUTTON ALEXANDER ROAD
Tendring DC,http://statistics.data.gov.uk/id/local-authority-district/22UN,Life Opportunities,1880 - Office Accommodation Expenses,4632 - Security,17/12/2013,7010286-1,90,2100546 - GCS Alarms,TEST CAMERA TOWN HALL
Tendring DC,http://statistics.data.gov.uk/id/local-authority-district/22UN,Life Opportunities,8540 - Leisure Centre Clacton,4400 - Maintenance Under Service Agreements,23/12/2013,7010486-1,429,2100546 - GCS Alarms,INTRUDER ALARM CONTRACT
Tendring DC,http://statistics.data.gov.uk/id/local-authority-district/22UN,Life Opportunities,8540 - Leisure Centre Clacton,4400 - Maintenance Under Service Agreements,23/12/2013,7010487-1,600,2100546 - GCS Alarms,FIRE ALARM CONTRACT
Tendring DC,http://statistics.data.gov.uk/id/local-authority-district/22UN,Life Opportunities,8540 - Leisure Centre Clacton,2100 - Building Repairs,03/12/2013,7700880-1,212.5,2100546 - GCS Alarms,DVD WRTIER
Tendring DC,http://statistics.data.gov.uk/id/local-authority-district/22UN,Life Opportunities,5480 - HRA - Repair & Maintenance,2018 - Other Responsive Repairs,17/12/2013,2112666-1,26.5,REDACTED PERSONAL DATA,REDACTED PERSONAL DATA
Tendring DC,http://statistics.data.gov.uk/id/local-authority-district/22UN,Life Opportunities,5480 - HRA - Repair & Maintenance,2018 - Other Responsive Repairs,03/12/2013,7009919-1,26.5,REDACTED PERSONAL DATA,REDACTED PERSONAL DATA
Tendring DC,http://statistics.data.gov.uk/id/local-authority-district/22UN,Life Opportunities,5480 - HRA - Repair & Maintenance,2018 - Other Responsive Repairs,17/12/2013,7010162-1,150,REDACTED PERSONAL DATA,REDACTED PERSONAL DATA
Tendring DC,http://statistics.data.gov.uk/id/local-authority-district/22UN,Life Opportunities,5480 - HRA - Repair & Maintenance,2018 - Other Responsive Repairs,17/12/2013,7010163-1,56.2,REDACTED PERSONAL DATA,REDACTED PERSONAL DATA
Tendring DC,http://statistics.data.gov.uk/id/local-authority-district/22UN,Life Opportunities,5480 - HRA - Repair & Maintenance,2088 - Disabled Adaptations,17/12/2013,2112651-1,430,2112854 - Generis Security Ltd,supplies to ism system
Tendring DC,http://statistics.data.gov.uk/id/local-authority-district/22UN,Life Opportunities,8540 - Leisure Centre Clacton,4597 - Hired Services - Payments to Contractors,10/12/2013,1056550-1,300,2111734 - Georgina Hill,
Tendring DC,http://statistics.data.gov.uk/id/local-authority-district/22UN,Life Opportunities,8540 - Leisure Centre Clacton,9275 - Lifestyles Plus - DD,17/12/2013,2112862-1,12.5,REDACTED PERSONAL DATA,REDACTED PERSONAL DATA
Tendring DC,http://statistics.data.gov.uk/id/local-authority-district/22UN,Life Opportunities,1242 - Corporate Director (Life Opportunities),1710 - Training - Central Department Budget,10/12/2013,7010102-1,301.75,2101694 - GovNet Communications,PUBLIC SECTOR CUSTOMER SERVICE TRAINING 11.02.14
Tendring DC,http://statistics.data.gov.uk/id/local-authority-district/22UN,Life Opportunities,5360 - HRA - Sheltered Units,4040 - Equipment & Tools,17/12/2013,7010247-1,91.66,2100588 - Grantleys,NUMATIC & VAC
Tendring DC,http://statistics.data.gov.uk/id/local-authority-district/22UN,Life Opportunities,5360 - HRA - Sheltered Units,4040 - Equipment & Tools,17/12/2013,7010248-1,91.66,2100588 - Grantleys,NAUMATIC VAC
Tendring DC,http://statistics.data.gov.uk/id/local-authority-district/22UN,Life Opportunities,7040 - Civic Ceremonial Expenses,4830 - Contribution to Chairman's Dinner Dance,10/12/2013,2112629-1,97.02,2112641 - Greene King Brewing and Retailing Ltd,beverages for theatre bar
Tendring DC,http://statistics.data.gov.uk/id/local-authority-district/22UN,Life Opportunities,6160 - Princes Theatre,4105 - Bar/Catering Expenses,10/12/2013,2112629-2,257.12,2112641 - Greene King Brewing and Retailing Ltd,beverages for theatre bar
Tendring DC,http://statistics.data.gov.uk/id/local-authority-district/22UN,Life Opportunities,6160 - Princes Theatre,4105 - Bar/Catering Expenses,17/12/2013,2112834-1,1260.76,2112641 - Greene King Brewing and Retailing Ltd,beverages for theatre bar
Tendring DC,http://statistics.data.gov.uk/id/local-authority-district/22UN,Life Opportunities,6160 - Princes Theatre,4105 - Bar/Catering Expenses,03/12/2013,7700903-1,324.83,2112641 - Greene King Brewing and Retailing Ltd,BEVERAGES FOR THEATRE BAR
Tendring DC,http://statistics.data.gov.uk/id/local-authority-district/22UN,Life Opportunities,1880 - Office Accommodation Expenses,2100 - Building Repairs,17/12/2013,7010240-1,95,2106272 - Greenleaf Pest Control Services,FLEA SPRAY BEN FRAUD TOWN HALL
Tendring DC,http://statistics.data.gov.uk/id/local-authority-district/22UN,Life Opportunities,5240 - HRA - Managing Tenancies,5242 - Tenant Relations,10/12/2013,1056544-1,250,2111807 - Groom House Tenants Association,GROOM HOUSE TENANTS ASSOCIATION PAYMENT
Tendring DC,http://statistics.data.gov.uk/id/local-authority-district/22UN,Life Opportunities,5240 - HRA - Managing Tenancies,5242 - Tenant Relations,10/12/2013,1056545-1,250,2102045 - Groom Park Residents Association,GROOM PARK RESIEDENTS ASSOCIATION PAYMENT
Tendring DC,http://statistics.data.gov.uk/id/local-authority-district/22UN,Life Opportunities,8540 - Leisure Centre Clacton,4000 - Furniture,03/12/2013,7700832-1,105,2113084 - Gymkit Uk,UPHOLSTERY
Tendring DC,http://statistics.data.gov.uk/id/local-authority-district/22UN,Life Opportunities,6355 - Community Activity Network,4597 - Hired Services - Payments to Contractors,17/12/2013,2112872-1,1289,2111983 - Gymnova (UK) Ltd,asymmetric bars
Tendring DC,http://statistics.data.gov.uk/id/local-authority-district/22UN,Life Opportunities,"1580 - Benefits, Revenues and Customer Contact SU",4462 - Bailiffs and Tracing Agent Fees re debt recovery,17/12/2013,2112819-1,116.98,2113197 - Hambury Tilmond Ltd,bailiff fees retained
Tendring DC,http://statistics.data.gov.uk/id/local-authority-district/22UN,Life Opportunities,"1580 - Benefits, Revenues and Customer Contact SU",4462 - Bailiffs and Tracing Agent Fees re debt recovery,17/12/2013,2112819-2,-116.98,2113197 - Hambury Tilmond Ltd,bailiff fees retained
Tendring DC,http://statistics.data.gov.uk/id/local-authority-district/22UN,Life Opportunities,"1580 - Benefits, Revenues and Customer Contact SU",4462 - Bailiffs and Tracing Agent Fees re debt recovery,10/12/2013,7010097-1,352,2113197 - Hambury Tilmond Ltd,BAILIFF FEES RETAINED NOV 13
Tendring DC,http://statistics.data.gov.uk/id/local-authority-district/22UN,Life Opportunities,"1580 - Benefits, Revenues and Customer Contact SU",4462 - Bailiffs and Tracing Agent Fees re debt recovery,10/12/2013,7010097-2,-352,2113197 - Hambury Tilmond Ltd,BAILIFF FEES RETAINED NOV 13
Tendring DC,http://statistics.data.gov.uk/id/local-authority-district/22UN,Life Opportunities,5820 - Harwich Sports Centre,2308 - Energy Costs - Gas (Including LPG),10/12/2013,7010124-1,1765.65,2102507 - Harwich and Dovercourt High School,HDHS RE CHARGE
Tendring DC,http://statistics.data.gov.uk/id/local-authority-district/22UN,Life Opportunities,5820 - Harwich Sports Centre,2510 - Water Services - Unmetered,10/12/2013,7010124-2,247.29,2102507 - Harwich and Dovercourt High School,HDHS RE CHARGE
Tendring DC,http://statistics.data.gov.uk/id/local-authority-district/22UN,Life Opportunities,5820 - Harwich Sports Centre,2410 - National Non Domestic Rates,10/12/2013,7010124-3,1416.51,2102507 - Harwich and Dovercourt High School,HDHS RE CHARGE
Tendring DC,http://statistics.data.gov.uk/id/local-authority-district/22UN,Life Opportunities,5240 - HRA - Managing Tenancies,5242 - Tenant Relations,23/12/2013,1056693-1,44,2100604 - Harwich Taxis,TAXI SERVICES
Tendring DC,http://statistics.data.gov.uk/id/local-authority-district/22UN,Life Opportunities,5240 - HRA - Managing Tenancies,5242 - Tenant Relations,17/12/2013,7010167-1,64,2100604 - Harwich Taxis,TRANSPORT ON 19/11/13
Tendring DC,http://statistics.data.gov.uk/id/local-authority-district/22UN,Life Opportunities,7600 - Tourist Information Centres,9356 - Commission Sales,17/12/2013,2112658-1,418,2103622 - Hedingham & District Omnibuses Ltd,hedingham bury xmas market
Tendring DC,http://statistics.data.gov.uk/id/local-authority-district/22UN,Life Opportunities,7600 - Tourist Information Centres,9356 - Commission Sales,17/12/2013,2112658-2,-45.98,2103622 - Hedingham & District Omnibuses Ltd,hedingham bury xmas market
Tendring DC,http://statistics.data.gov.uk/id/local-authority-district/22UN,Life Opportunities,H920 - Disabled Facilities Grants,C400 - Grant payments,03/12/2013,1056491-1,12000,REDACTED PERSONAL DATA,REDACTED PERSONAL DATA
Tendring DC,http://statistics.data.gov.uk/id/local-authority-district/22UN,Life Opportunities,8540 - Leisure Centre Clacton,2100 - Building Repairs,10/12/2013,7010064-1,485,2101848 - Homecraft Contracts Ltd,M H FIRE DOORS
Tendring DC,http://statistics.data.gov.uk/id/local-authority-district/22UN,Life Opportunities,8520 - Frinton & Walton Swimming Pool,2100 - Building Repairs,10/12/2013,7010115-1,93,2101848 - Homecraft Contracts Ltd,FWSP - HOMECRAFT
Tendring DC,http://statistics.data.gov.uk/id/local-authority-district/22UN,Life Opportunities,5820 - Harwich Sports Centre,2100 - Building Repairs,10/12/2013,7010123-1,90,2101848 - Homecraft Contracts Ltd,ROOF LEAK & CLEARANCE
Tendring DC,http://statistics.data.gov.uk/id/local-authority-district/22UN,Life Opportunities,5820 - Harwich Sports Centre,2100 - Building Repairs,23/12/2013,7010399-1,55,2101848 - Homecraft Contracts Ltd,BOYS TOILET REPAIR
Tendring DC,http://statistics.data.gov.uk/id/local-authority-district/22UN,Life Opportunities,5820 - Harwich Sports Centre,2100 - Building Repairs,23/12/2013,7010493-1,50,2101848 - Homecraft Contracts Ltd,NEW VENT COVER
Tendring DC,http://statistics.data.gov.uk/id/local-authority-district/22UN,Life Opportunities,8510 - Dovercourt Swimming Pool & All Weather Facilities,2100 - Building Repairs,23/12/2013,1056711-1,54.15,2100677 - Homecraft DIY Ltd,DOVERCOURT POOL PAINT
Tendring DC,http://statistics.data.gov.uk/id/local-authority-district/22UN,Life Opportunities,8510 - Dovercourt Swimming Pool & All Weather Facilities,4000 - Furniture,03/12/2013,7700887-1,4.98,2100677 - Homecraft DIY Ltd,DOVERCOURT POOL - EQUIPMENT
Tendring DC,http://statistics.data.gov.uk/id/local-authority-district/22UN,Life Opportunities,"1580 - Benefits, Revenues and Customer Contact SU",4300 - Printing & Stationery,03/12/2013,7700869-1,113,2110569 - Hound Envelopes Ltd,K ENVELOPES
Tendring DC,http://statistics.data.gov.uk/id/local-authority-district/22UN,Life Opportunities,1242 - Corporate Director (Life Opportunities),1710 - Training - Central Department Budget,17/12/2013,7010137-1,350,2100648 - HouseMark Ltd,ARCH CONFERENCE 2013
Tendring DC,http://statistics.data.gov.uk/id/local-authority-district/22UN,Life Opportunities,5800 - Brightlingsea Sports Centre,1000 - Salaries,17/12/2013,2112849-1,20,REDACTED PERSONAL DATA,REDACTED PERSONAL DATA
Tendring DC,http://statistics.data.gov.uk/id/local-authority-district/22UN,Life Opportunities,5480 - HRA - Repair & Maintenance,2014 - Decoration Allowances,17/12/2013,2112675-1,199.82,2109778 - ICI Contract Direct,ddc voucher scheme - november 2013
Tendring DC,http://statistics.data.gov.uk/id/local-authority-district/22UN,Life Opportunities,6355 - Community Activity Network,4597 - Hired Services - Payments to Contractors,03/12/2013,7700882-1,2280,2106677 - Inclusion Ventures,SPORTIVATE FUNDING FOR EQUIPMENT
Tendring DC,http://statistics.data.gov.uk/id/local-authority-district/22UN,Life Opportunities,5860 - Manningtree Sports Centre,4090 - Lease of Vending Machines,17/12/2013,2112812-1,356.2,2100702 - ING Lease (UK) Ltd,lease rental
Tendring DC,http://statistics.data.gov.uk/id/local-authority-district/22UN,Life Opportunities,5880 - Management Of Sport & Leisure Facilities,4597 - Hired Services - Payments to Contractors,17/12/2013,2112645-1,2450,2108761 - Ingleton Wood,dovercourt swimming pool
Tendring DC,http://statistics.data.gov.uk/id/local-authority-district/22UN,Life Opportunities,H720 - Environmental Improvements,C200 - Main Contractor,17/12/2013,2112646-1,787.5,2108761 - Ingleton Wood,churchill court
Tendring DC,http://statistics.data.gov.uk/id/local-authority-district/22UN,Life Opportunities,5880 - Management Of Sport & Leisure Facilities,4597 - Hired Services - Payments to Contractors,17/12/2013,2112647-1,4900,2108761 - Ingleton Wood,dovercourt pool
Tendring DC,http://statistics.data.gov.uk/id/local-authority-district/22UN,Life Opportunities,6160 - Princes Theatre,5160 - Advertising,23/12/2013,1056689-1,165.75,2113575 - Intelligent Texting,TEXT CAMPAIGN FOR PANTO
Tendring DC,http://statistics.data.gov.uk/id/local-authority-district/22UN,Life Opportunities,5880 - Management Of Sport & Leisure Facilities,5166 - Marketing and Promotion,10/12/2013,7010058-1,90,2113575 - Intelligent Texting,INTXT FEES DECEMBER
Tendring DC,http://statistics.data.gov.uk/id/local-authority-district/22UN,Life Opportunities,1880 - Office Accommodation Expenses,4448 - Confidential Waste,17/12/2013,7010138-1,65.8,2110936 - IPPlus (UK) Ltd,PIER AVE COLLECTION
Tendring DC,http://statistics.data.gov.uk/id/local-authority-district/22UN,Life Opportunities,6740 - Careline,4448 - Confidential Waste,23/12/2013,7010460-1,28.2,2110936 - IPPlus (UK) Ltd,SHREDDING & 12
Tendring DC,http://statistics.data.gov.uk/id/local-authority-district/22UN,Life Opportunities,8520 - Frinton & Walton Swimming Pool,4300 - Printing & Stationery,03/12/2013,2112448-1,95,2100724 - IQL UK Ltd,fwsp - iql (rlss uk)
Tendring DC,http://statistics.data.gov.uk/id/local-authority-district/22UN,Life Opportunities,5140 - Homelessness,4683 - Other Homelessness Expenses,17/12/2013,2112855-1,595,REDACTED PERSONAL DATA,REDACTED PERSONAL DATA
Tendring DC,http://statistics.data.gov.uk/id/local-authority-district/22UN,Life Opportunities,8510 - Dovercourt Swimming Pool & All Weather Facilities,4081 - Chemicals,23/12/2013,1056683-1,156.35,2100755 - J P Lennard Ltd,DOVERCOURT POOL-DPD'S
Tendring DC,http://statistics.data.gov.uk/id/local-authority-district/22UN,Life Opportunities,8540 - Leisure Centre Clacton,4000 - Furniture,17/12/2013,2112807-1,45.3,2100755 - J P Lennard Ltd,tennis balls
Tendring DC,http://statistics.data.gov.uk/id/local-authority-district/22UN,Life Opportunities,8520 - Frinton & Walton Swimming Pool,5300 - Resaleable Items,17/12/2013,2112808-1,188.46,2100755 - J P Lennard Ltd,fwsp - jplennard
Tendring DC,http://statistics.data.gov.uk/id/local-authority-district/22UN,Life Opportunities,8520 - Frinton & Walton Swimming Pool,5300 - Resaleable Items,17/12/2013,2112809-1,20.4,2100755 - J P Lennard Ltd,fwsp - jplennard
Tendring DC,http://statistics.data.gov.uk/id/local-authority-district/22UN,Life Opportunities,8540 - Leisure Centre Clacton,4000 - Furniture,17/12/2013,2112810-1,206.1,2100755 - J P Lennard Ltd,goal nets
Tendring DC,http://statistics.data.gov.uk/id/local-authority-district/22UN,Life Opportunities,8520 - Frinton & Walton Swimming Pool,5300 - Resaleable Items,17/12/2013,2112811-1,83.48,2100755 - J P Lennard Ltd,fwsp - jplennard
Tendring DC,http://statistics.data.gov.uk/id/local-authority-district/22UN,Life Opportunities,8520 - Frinton & Walton Swimming Pool,5300 - Resaleable Items,17/12/2013,2112811-2,131.52,2100755 - J P Lennard Ltd,fwsp - jplennard
Tendring DC,http://statistics.data.gov.uk/id/local-authority-district/22UN,Life Opportunities,8540 - Leisure Centre Clacton,4000 - Furniture,17/12/2013,2112878-1,315.71,2100755 - J P Lennard Ltd,t/t table
Tendring DC,http://statistics.data.gov.uk/id/local-authority-district/22UN,Life Opportunities,8520 - Frinton & Walton Swimming Pool,4000 - Furniture,17/12/2013,2112879-1,66.15,2100755 - J P Lennard Ltd,dpl/whistles and tablets
Tendring DC,http://statistics.data.gov.uk/id/local-authority-district/22UN,Life Opportunities,8510 - Dovercourt Swimming Pool & All Weather Facilities,5300 - Resaleable Items,03/12/2013,7009972-1,48.6,2100755 - J P Lennard Ltd,DOVERCOURT POOL - NOSE CLIPS
Tendring DC,http://statistics.data.gov.uk/id/local-authority-district/22UN,Life Opportunities,8520 - Frinton & Walton Swimming Pool,5300 - Resaleable Items,03/12/2013,7009980-1,291.6,2100755 - J P Lennard Ltd,JPL/RESALES
Tendring DC,http://statistics.data.gov.uk/id/local-authority-district/22UN,Life Opportunities,8520 - Frinton & Walton Swimming Pool,5300 - Resaleable Items,23/12/2013,7010387-1,3.4,2100755 - J P Lennard Ltd,FWSP - JPL
Tendring DC,http://statistics.data.gov.uk/id/local-authority-district/22UN,Life Opportunities,8520 - Frinton & Walton Swimming Pool,5300 - Resaleable Items,23/12/2013,7010387-2,38.36,2100755 - J P Lennard Ltd,FWSP - JPL
Tendring DC,http://statistics.data.gov.uk/id/local-authority-district/22UN,Life Opportunities,8540 - Leisure Centre Clacton,5300 - Resaleable Items,03/12/2013,7700841-1,102.6,2100755 - J P Lennard Ltd,SHUTTLECOCKS 4 RESALE
Tendring DC,http://statistics.data.gov.uk/id/local-authority-district/22UN,Life Opportunities,8540 - Leisure Centre Clacton,4597 - Hired Services - Payments to Contractors,17/12/2013,2112799-1,90,2100785 - J W Goding,november
Tendring DC,http://statistics.data.gov.uk/id/local-authority-district/22UN,Life Opportunities,H920 - Disabled Facilities Grants,C400 - Grant payments,03/12/2013,1056490-1,2660,REDACTED PERSONAL DATA,REDACTED PERSONAL DATA
Tendring DC,http://statistics.data.gov.uk/id/local-authority-district/22UN,Life Opportunities,8540 - Leisure Centre Clacton,9228 - Swimming Lessons,03/12/2013,1056473-1,43,REDACTED PERSONAL DATA,REDACTED PERSONAL DATA
Tendring DC,http://statistics.data.gov.uk/id/local-authority-district/22UN,Life Opportunities,8540 - Leisure Centre Clacton,9275 - Lifestyles Plus - DD,17/12/2013,2112861-1,12.5,REDACTED PERSONAL DATA,REDACTED PERSONAL DATA
Tendring DC,http://statistics.data.gov.uk/id/local-authority-district/22UN,Life Opportunities,H920 - Disabled Facilities Grants,C400 - Grant payments,10/12/2013,1056581-1,4542.24,REDACTED PERSONAL DATA,REDACTED PERSONAL DATA
Tendring DC,http://statistics.data.gov.uk/id/local-authority-district/22UN,Life Opportunities,8540 - Leisure Centre Clacton,4597 - Hired Services - Payments to Contractors,03/12/2013,1056519-1,481.25,2107243 - Juice for Life Ltd,TEACHERS CONFERENCE BUFFET
Tendring DC,http://statistics.data.gov.uk/id/local-authority-district/22UN,Life Opportunities,8540 - Leisure Centre Clacton,4597 - Hired Services - Payments to Contractors,23/12/2013,7010484-1,416.67,2107243 - Juice for Life Ltd,EDUCATION EXHIBITION BUFFET
Tendring DC,http://statistics.data.gov.uk/id/local-authority-district/22UN,Life Opportunities,8540 - Leisure Centre Clacton,5500 - Miscellaneous Expenses,03/12/2013,7700834-1,85.7,2107243 - Juice for Life Ltd,LIFESTYLES SEPT
Tendring DC,http://statistics.data.gov.uk/id/local-authority-district/22UN,Life Opportunities,8540 - Leisure Centre Clacton,5500 - Miscellaneous Expenses,03/12/2013,7700835-1,106.8,2107243 - Juice for Life Ltd,LIFESTYLES AUGUST
Tendring DC,http://statistics.data.gov.uk/id/local-authority-district/22UN,Life Opportunities,8540 - Leisure Centre Clacton,5500 - Miscellaneous Expenses,03/12/2013,7700836-1,138.75,2107243 - Juice for Life Ltd,T DANCE SEPT
Tendring DC,http://statistics.data.gov.uk/id/local-authority-district/22UN,Life Opportunities,8540 - Leisure Centre Clacton,5500 - Miscellaneous Expenses,03/12/2013,7700837-1,66.5,2107243 - Juice for Life Ltd,T DANCE AUGUST
Tendring DC,http://statistics.data.gov.uk/id/local-authority-district/22UN,Life Opportunities,8540 - Leisure Centre Clacton,5500 - Miscellaneous Expenses,03/12/2013,7700838-1,740.25,2107243 - Juice for Life Ltd,A4L SEPT
Tendring DC,http://statistics.data.gov.uk/id/local-authority-district/22UN,Life Opportunities,8540 - Leisure Centre Clacton,5500 - Miscellaneous Expenses,03/12/2013,7700839-1,650.25,2107243 - Juice for Life Ltd,A4L AUGUST
Tendring DC,http://statistics.data.gov.uk/id/local-authority-district/22UN,Life Opportunities,H860 - Disabled Adaptations,C200 - Main Contractor,10/12/2013,1056525-1,2639,REDACTED PERSONAL DATA,REDACTED PERSONAL DATA
Tendring DC,http://statistics.data.gov.uk/id/local-authority-district/22UN,Life Opportunities,H860 - Disabled Adaptations,C200 - Main Contractor,10/12/2013,1056525-2,2350,REDACTED PERSONAL DATA,REDACTED PERSONAL DATA
Tendring DC,http://statistics.data.gov.uk/id/local-authority-district/22UN,Life Opportunities,1880 - Office Accommodation Expenses,2100 - Building Repairs,10/12/2013,1056560-1,180,2111266 - JW Plumbing and Heating,WORKS CARRIED OUT @ WEELEY OFFICES
Tendring DC,http://statistics.data.gov.uk/id/local-authority-district/22UN,Life Opportunities,1880 - Office Accommodation Expenses,2100 - Building Repairs,10/12/2013,1056560-2,315,2111266 - JW Plumbing and Heating,WORKS CARRIED OUT @ WEELEY OFFICES
Tendring DC,http://statistics.data.gov.uk/id/local-authority-district/22UN,Life Opportunities,1880 - Office Accommodation Expenses,2100 - Building Repairs,10/12/2013,1056561-1,180,2111266 - JW Plumbing and Heating,WORKS CARRIED OUT @ TOWN HALL
Tendring DC,http://statistics.data.gov.uk/id/local-authority-district/22UN,Life Opportunities,1880 - Office Accommodation Expenses,2100 - Building Repairs,10/12/2013,1056561-2,168,2111266 - JW Plumbing and Heating,WORKS CARRIED OUT @ TOWN HALL
Tendring DC,http://statistics.data.gov.uk/id/local-authority-district/22UN,Life Opportunities,1880 - Office Accommodation Expenses,2100 - Building Repairs,17/12/2013,1056635-1,60,2111266 - JW Plumbing and Heating,WORKS CARRIED OUT BARNES HOUSE
Tendring DC,http://statistics.data.gov.uk/id/local-authority-district/22UN,Life Opportunities,1880 - Office Accommodation Expenses,2100 - Building Repairs,17/12/2013,1056635-2,45,2111266 - JW Plumbing and Heating,WORKS CARRIED OUT BARNES HOUSE
Tendring DC,http://statistics.data.gov.uk/id/local-authority-district/22UN,Life Opportunities,1880 - Office Accommodation Expenses,2100 - Building Repairs,17/12/2013,7010222-1,375,2100758 - K A Hockley Ltd,SOLAR FILM TO ROOM 177 - 179
Tendring DC,http://statistics.data.gov.uk/id/local-authority-district/22UN,Life Opportunities,1565 - Careline / CCTV Service Unit,3302 - Car Allowances - Officers,10/12/2013,1056551-1,8.4,REDACTED PERSONAL DATA,REDACTED PERSONAL DATA
Tendring DC,http://statistics.data.gov.uk/id/local-authority-district/22UN,Life Opportunities,1565 - Careline / CCTV Service Unit,3302 - Car Allowances - Officers,10/12/2013,1056552-1,9.2,REDACTED PERSONAL DATA,REDACTED PERSONAL DATA
Tendring DC,http://statistics.data.gov.uk/id/local-authority-district/22UN,Life Opportunities,8540 - Leisure Centre Clacton,5500 - Miscellaneous Expenses,23/12/2013,1056653-1,48.81,REDACTED PERSONAL DATA,REDACTED PERSONAL DATA
Tendring DC,http://statistics.data.gov.uk/id/local-authority-district/22UN,Life Opportunities,"1580 - Benefits, Revenues and Customer Contact SU",3311 - Travelling Career Track,10/12/2013,1056585-1,14,REDACTED PERSONAL DATA,REDACTED PERSONAL DATA
Tendring DC,http://statistics.data.gov.uk/id/local-authority-district/22UN,Life Opportunities,H710 - Selected Improvements,C200 - Main Contractor,23/12/2013,1056687-1,605,2100016 - Kemp Rust Consulting Ltd,CROOKED ELMS
Tendring DC,http://statistics.data.gov.uk/id/local-authority-district/22UN,Life Opportunities,H800 - Structural Repairs,C200 - Main Contractor,10/12/2013,7010108-1,350,REDACTED PERSONAL DATA,REDACTED PERSONAL DATA
Tendring DC,http://statistics.data.gov.uk/id/local-authority-district/22UN,Life Opportunities,H800 - Structural Repairs,C200 - Main Contractor,03/12/2013,7700870-1,150,REDACTED PERSONAL DATA,REDACTED PERSONAL DATA
Tendring DC,http://statistics.data.gov.uk/id/local-authority-district/22UN,Life Opportunities,5880 - Management Of Sport & Leisure Facilities,5166 - Marketing and Promotion,17/12/2013,2112794-1,150,2100850 - KidAround Ltd,artwork copyright
Tendring DC,http://statistics.data.gov.uk/id/local-authority-district/22UN,Life Opportunities,5140 - Homelessness,4683 - Other Homelessness Expenses,17/12/2013,2112859-1,550,REDACTED PERSONAL DATA,REDACTED PERSONAL DATA
Tendring DC,http://statistics.data.gov.uk/id/local-authority-district/22UN,Life Opportunities,5860 - Manningtree Sports Centre,4601 - Hired services - Cleaning,03/12/2013,2112443-1,63.75,2100851 - KO-SHEEN Contract Cleaning Ltd,contract cleaning
Tendring DC,http://statistics.data.gov.uk/id/local-authority-district/22UN,Life Opportunities,5860 - Manningtree Sports Centre,4601 - Hired services - Cleaning,03/12/2013,2112444-1,63.75,2100851 - KO-SHEEN Contract Cleaning Ltd,contract cleaning
Tendring DC,http://statistics.data.gov.uk/id/local-authority-district/22UN,Life Opportunities,5360 - HRA - Sheltered Units,4601 - Hired services - Cleaning,17/12/2013,2112648-1,588.88,2100851 - KO-SHEEN Contract Cleaning Ltd,cleaning - belmans court
Tendring DC,http://statistics.data.gov.uk/id/local-authority-district/22UN,Life Opportunities,5360 - HRA - Sheltered Units,4601 - Hired services - Cleaning,17/12/2013,2112813-1,136,2100851 - KO-SHEEN Contract Cleaning Ltd,"cleaning 25th to 29th nov groom, honeycroft and spendells"
Tendring DC,http://statistics.data.gov.uk/id/local-authority-district/22UN,Life Opportunities,5860 - Manningtree Sports Centre,4601 - Hired services - Cleaning,17/12/2013,2112814-1,63.75,2100851 - KO-SHEEN Contract Cleaning Ltd,contract cleaning
Tendring DC,http://statistics.data.gov.uk/id/local-authority-district/22UN,Life Opportunities,5860 - Manningtree Sports Centre,4601 - Hired services - Cleaning,17/12/2013,2112815-1,51,2100851 - KO-SHEEN Contract Cleaning Ltd,contract cleaning
Tendring DC,http://statistics.data.gov.uk/id/local-authority-district/22UN,Life Opportunities,5360 - HRA - Sheltered Units,4601 - Hired services - Cleaning,10/12/2013,7010035-1,136,2100851 - KO-SHEEN Contract Cleaning Ltd,CONTRACT CLEANING NOV 2013
Tendring DC,http://statistics.data.gov.uk/id/local-authority-district/22UN,Life Opportunities,5360 - HRA - Sheltered Units,4601 - Hired services - Cleaning,23/12/2013,7010404-1,153,2100851 - KO-SHEEN Contract Cleaning Ltd,CLEANING 2.12 - 6.12
Tendring DC,http://statistics.data.gov.uk/id/local-authority-district/22UN,Life Opportunities,5360 - HRA - Sheltered Units,4601 - Hired services - Cleaning,03/12/2013,7700856-1,289,2100851 - KO-SHEEN Contract Cleaning Ltd,CLEANING 11/11 - 15/11/13 @ SHELTERED SCHEMES
Tendring DC,http://statistics.data.gov.uk/id/local-authority-district/22UN,Life Opportunities,5360 - HRA - Sheltered Units,4601 - Hired services - Cleaning,03/12/2013,7700857-1,136,2100851 - KO-SHEEN Contract Cleaning Ltd,CLEANING 4/11 - 8/11/13 @ SHELTERED SCHEMES
Tendring DC,http://statistics.data.gov.uk/id/local-authority-district/22UN,Life Opportunities,H815 - Re-roofing,C200 - Main Contractor,03/12/2013,1056524-1,22839.34,2113544 - Lakehouse Contracts Ltd,REPLACEMENT ROOF COVERINGS-OLD RD
Tendring DC,http://statistics.data.gov.uk/id/local-authority-district/22UN,Life Opportunities,"1580 - Benefits, Revenues and Customer Contact SU",4466 - Land Registry Fees,23/12/2013,7010509-1,336,2113091 - Land Registry Commercial Services,OWNERSHIP CHANGE MONTH 15
Tendring DC,http://statistics.data.gov.uk/id/local-authority-district/22UN,Life Opportunities,"1580 - Benefits, Revenues and Customer Contact SU",4466 - Land Registry Fees,03/12/2013,7700855-1,354,2113091 - Land Registry Commercial Services,OCT DATA
Tendring DC,http://statistics.data.gov.uk/id/local-authority-district/22UN,Life Opportunities,"1580 - Benefits, Revenues and Customer Contact SU",4459 - External Legal Advice,17/12/2013,2112671-1,10000,2111904 - Lester Aldridge LLP,legal costs
Tendring DC,http://statistics.data.gov.uk/id/local-authority-district/22UN,Life Opportunities,"1580 - Benefits, Revenues and Customer Contact SU",4459 - External Legal Advice,17/12/2013,2112672-1,1334,2111904 - Lester Aldridge LLP,charges + disbursements
Tendring DC,http://statistics.data.gov.uk/id/local-authority-district/22UN,Life Opportunities,"1580 - Benefits, Revenues and Customer Contact SU",4459 - External Legal Advice,17/12/2013,2112672-2,90,2111904 - Lester Aldridge LLP,charges + disbursements
Tendring DC,http://statistics.data.gov.uk/id/local-authority-district/22UN,Life Opportunities,"1580 - Benefits, Revenues and Customer Contact SU",4459 - External Legal Advice,17/12/2013,2112672-3,703,2111904 - Lester Aldridge LLP,charges + disbursements
Tendring DC,http://statistics.data.gov.uk/id/local-authority-district/22UN,Life Opportunities,"1580 - Benefits, Revenues and Customer Contact SU",4459 - External Legal Advice,23/12/2013,7010512-1,999,2111904 - Lester Aldridge LLP,CHARGES & DISBURSEMENTS OCT 13
Tendring DC,http://statistics.data.gov.uk/id/local-authority-district/22UN,Life Opportunities,"1580 - Benefits, Revenues and Customer Contact SU",4459 - External Legal Advice,23/12/2013,7010512-2,160,2111904 - Lester Aldridge LLP,CHARGES & DISBURSEMENTS OCT 13
Tendring DC,http://statistics.data.gov.uk/id/local-authority-district/22UN,Life Opportunities,"1580 - Benefits, Revenues and Customer Contact SU",4459 - External Legal Advice,23/12/2013,7010512-3,12,2111904 - Lester Aldridge LLP,CHARGES & DISBURSEMENTS OCT 13
Tendring DC,http://statistics.data.gov.uk/id/local-authority-district/22UN,Life Opportunities,"1580 - Benefits, Revenues and Customer Contact SU",1350 - Agency Staff,10/12/2013,7010103-1,183.55,2108077 - Liberata Financial Services Ltd,OCT 13 SUBMISSIONS
Tendring DC,http://statistics.data.gov.uk/id/local-authority-district/22UN,Life Opportunities,5800 - Brightlingsea Sports Centre,4000 - Furniture,03/12/2013,2112457-1,43,2103500 - Liquidline,liquidline
Tendring DC,http://statistics.data.gov.uk/id/local-authority-district/22UN,Life Opportunities,5880 - Management Of Sport & Leisure Facilities,5166 - Marketing and Promotion,10/12/2013,7010057-1,525,2104253 - Local Authority Publishing Co Ltd,ADVERT HARWICH GUIDE
Tendring DC,http://statistics.data.gov.uk/id/local-authority-district/22UN,Life Opportunities,5880 - Management Of Sport & Leisure Facilities,5166 - Marketing and Promotion,17/12/2013,2112792-1,417,2107277 - Look 5 Ltd,2fpc 5&6 ipfc2 jan
Tendring DC,http://statistics.data.gov.uk/id/local-authority-district/22UN,Life Opportunities,5880 - Management Of Sport & Leisure Facilities,5166 - Marketing and Promotion,17/12/2013,2112793-1,298,2107277 - Look 5 Ltd,2pfc ad look 5&6 dec
Tendring DC,http://statistics.data.gov.uk/id/local-authority-district/22UN,Life Opportunities,8540 - Leisure Centre Clacton,5160 - Advertising,23/12/2013,7010488-1,318,2107277 - Look 5 Ltd,FPC AD LOOK 5 & 6 JAN
Tendring DC,http://statistics.data.gov.uk/id/local-authority-district/22UN,Life Opportunities,5880 - Management Of Sport & Leisure Facilities,5166 - Marketing and Promotion,23/12/2013,7010495-1,119,2107277 - Look 5 Ltd,HPC AD LOOK 2 DEC
Tendring DC,http://statistics.data.gov.uk/id/local-authority-district/22UN,Life Opportunities,5880 - Management Of Sport & Leisure Facilities,5166 - Marketing and Promotion,23/12/2013,7010496-1,159,2107277 - Look 5 Ltd,LOOK 5 & 6 JAN
Tendring DC,http://statistics.data.gov.uk/id/local-authority-district/22UN,Life Opportunities,5880 - Management Of Sport & Leisure Facilities,5166 - Marketing and Promotion,23/12/2013,7010497-1,119,2107277 - Look 5 Ltd,LOOK 2 JAN
Tendring DC,http://statistics.data.gov.uk/id/local-authority-district/22UN,Life Opportunities,8540 - Leisure Centre Clacton,5160 - Advertising,03/12/2013,7700830-1,384,2107277 - Look 5 Ltd,2 FPC AD LOOK 5 & 6 DEC
Tendring DC,http://statistics.data.gov.uk/id/local-authority-district/22UN,Life Opportunities,6740 - Careline,3300 - Public Transport - Officers,23/12/2013,1056702-1,50,REDACTED PERSONAL DATA,REDACTED PERSONAL DATA
Tendring DC,http://statistics.data.gov.uk/id/local-authority-district/22UN,Life Opportunities,8540 - Leisure Centre Clacton,4400 - Maintenance Under Service Agreements,23/12/2013,7010393-1,80,2100837 - M A Williams,STOCKTAKE 8.12.13
Tendring DC,http://statistics.data.gov.uk/id/local-authority-district/22UN,Life Opportunities,6160 - Princes Theatre,4105 - Bar/Catering Expenses,17/12/2013,2112638-1,170.07,2105052 - Maddisons,plastic glasses for theatre
Tendring DC,http://statistics.data.gov.uk/id/local-authority-district/22UN,Life Opportunities,6160 - Princes Theatre,4105 - Bar/Catering Expenses,23/12/2013,7010456-1,31.45,2105052 - Maddisons,FLEXY GLASSES FOR THEATRE
Tendring DC,http://statistics.data.gov.uk/id/local-authority-district/22UN,Life Opportunities,8540 - Leisure Centre Clacton,9275 - Lifestyles Plus - DD,17/12/2013,2112864-1,25,REDACTED PERSONAL DATA,REDACTED PERSONAL DATA
Tendring DC,http://statistics.data.gov.uk/id/local-authority-district/22UN,Life Opportunities,5140 - Homelessness,4680 - Bed & Breakfast Accommodation,10/12/2013,2112619-1,120,REDACTED PERSONAL DATA,REDACTED PERSONAL DATA
Tendring DC,http://statistics.data.gov.uk/id/local-authority-district/22UN,Life Opportunities,5140 - Homelessness,9032 - Homelessness Accommodation Charges,10/12/2013,2112619-2,-14.1,REDACTED PERSONAL DATA,REDACTED PERSONAL DATA
Tendring DC,http://statistics.data.gov.uk/id/local-authority-district/22UN,Life Opportunities,5140 - Homelessness,4680 - Bed & Breakfast Accommodation,10/12/2013,2112620-1,80,REDACTED PERSONAL DATA,REDACTED PERSONAL DATA
Tendring DC,http://statistics.data.gov.uk/id/local-authority-district/22UN,Life Opportunities,5140 - Homelessness,9032 - Homelessness Accommodation Charges,10/12/2013,2112620-2,-9.4,REDACTED PERSONAL DATA,REDACTED PERSONAL DATA
Tendring DC,http://statistics.data.gov.uk/id/local-authority-district/22UN,Life Opportunities,5140 - Homelessness,4680 - Bed & Breakfast Accommodation,17/12/2013,2112825-1,140,REDACTED PERSONAL DATA,REDACTED PERSONAL DATA
Tendring DC,http://statistics.data.gov.uk/id/local-authority-district/22UN,Life Opportunities,5140 - Homelessness,9032 - Homelessness Accommodation Charges,17/12/2013,2112825-2,-16.45,REDACTED PERSONAL DATA,REDACTED PERSONAL DATA
Tendring DC,http://statistics.data.gov.uk/id/local-authority-district/22UN,Life Opportunities,5140 - Homelessness,4680 - Bed & Breakfast Accommodation,17/12/2013,2112826-1,40,REDACTED PERSONAL DATA,REDACTED PERSONAL DATA
Tendring DC,http://statistics.data.gov.uk/id/local-authority-district/22UN,Life Opportunities,5140 - Homelessness,9032 - Homelessness Accommodation Charges,17/12/2013,2112826-2,-2.35,REDACTED PERSONAL DATA,REDACTED PERSONAL DATA
Tendring DC,http://statistics.data.gov.uk/id/local-authority-district/22UN,Life Opportunities,5140 - Homelessness,4680 - Bed & Breakfast Accommodation,17/12/2013,2112827-1,420,REDACTED PERSONAL DATA,REDACTED PERSONAL DATA
Tendring DC,http://statistics.data.gov.uk/id/local-authority-district/22UN,Life Opportunities,5140 - Homelessness,9032 - Homelessness Accommodation Charges,17/12/2013,2112827-2,-16.45,REDACTED PERSONAL DATA,REDACTED PERSONAL DATA
Tendring DC,http://statistics.data.gov.uk/id/local-authority-district/22UN,Life Opportunities,5140 - Homelessness,4680 - Bed & Breakfast Accommodation,17/12/2013,2112828-1,180,REDACTED PERSONAL DATA,REDACTED PERSONAL DATA
Tendring DC,http://statistics.data.gov.uk/id/local-authority-district/22UN,Life Opportunities,5140 - Homelessness,9032 - Homelessness Accommodation Charges,17/12/2013,2112828-2,-7.05,REDACTED PERSONAL DATA,REDACTED PERSONAL DATA
Tendring DC,http://statistics.data.gov.uk/id/local-authority-district/22UN,Life Opportunities,H920 - Disabled Facilities Grants,C400 - Grant payments,03/12/2013,1056489-1,1300,REDACTED PERSONAL DATA,REDACTED PERSONAL DATA
Tendring DC,http://statistics.data.gov.uk/id/local-authority-district/22UN,Life Opportunities,1090 - Chief Executive and Support Service Unit,4355 - Books & Periodicals,23/12/2013,1056710-1,69.3,2112734 - Matt's Carousel,1 NOV TO 30 NOV 13
Tendring DC,http://statistics.data.gov.uk/id/local-authority-district/22UN,Life Opportunities,1100 - Corporate Director (Corporate Services) and Admin Service Unit,4355 - Books & Periodicals,23/12/2013,1056710-2,47.75,2112734 - Matt's Carousel,1 NOV TO 30 NOV 13
Tendring DC,http://statistics.data.gov.uk/id/local-authority-district/22UN,Life Opportunities,1040 - Regeneration Service Unit,4355 - Books & Periodicals,23/12/2013,1056710-3,19.6,2112734 - Matt's Carousel,1 NOV TO 30 NOV 13
Tendring DC,http://statistics.data.gov.uk/id/local-authority-district/22UN,Life Opportunities,"1580 - Benefits, Revenues and Customer Contact SU",4355 - Books & Periodicals,23/12/2013,1056710-4,19.6,2112734 - Matt's Carousel,1 NOV TO 30 NOV 13
Tendring DC,http://statistics.data.gov.uk/id/local-authority-district/22UN,Life Opportunities,7040 - Civic Ceremonial Expenses,4080 - Materials & Consumables,23/12/2013,1056710-5,3.2,2112734 - Matt's Carousel,1 NOV TO 30 NOV 13
Tendring DC,http://statistics.data.gov.uk/id/local-authority-district/22UN,Life Opportunities,8540 - Leisure Centre Clacton,2100 - Building Repairs,03/12/2013,7009983-1,20.64,2101791 - Medlock Electrical,LIGHT BULBS
Tendring DC,http://statistics.data.gov.uk/id/local-authority-district/22UN,Life Opportunities,8510 - Dovercourt Swimming Pool & All Weather Facilities,2100 - Building Repairs,10/12/2013,7010070-1,90,2101791 - Medlock Electrical,DOVERCOURT POOL
Tendring DC,http://statistics.data.gov.uk/id/local-authority-district/22UN,Life Opportunities,8510 - Dovercourt Swimming Pool & All Weather Facilities,2100 - Building Repairs,10/12/2013,7010071-1,117.25,2101791 - Medlock Electrical,DOVERCOURT POOL
Tendring DC,http://statistics.data.gov.uk/id/local-authority-district/22UN,Life Opportunities,8540 - Leisure Centre Clacton,2100 - Building Repairs,10/12/2013,7010121-1,36.84,2101791 - Medlock Electrical,LIGHT BULBS
Tendring DC,http://statistics.data.gov.uk/id/local-authority-district/22UN,Life Opportunities,8540 - Leisure Centre Clacton,2100 - Building Repairs,10/12/2013,7010122-1,23.64,2101791 - Medlock Electrical,LIGHT BULBS
Tendring DC,http://statistics.data.gov.uk/id/local-authority-district/22UN,Life Opportunities,1242 - Corporate Director (Life Opportunities),1710 - Training - Central Department Budget,23/12/2013,7010410-1,260.1,2112603 - Mile End Climbing Wall,TRAINING ON 24.11.13
Tendring DC,http://statistics.data.gov.uk/id/local-authority-district/22UN,Life Opportunities,5240 - HRA - Managing Tenancies,6625 - Tenants Compensation Scheme,10/12/2013,1056546-1,106,REDACTED PERSONAL DATA,REDACTED PERSONAL DATA
Tendring DC,http://statistics.data.gov.uk/id/local-authority-district/22UN,Life Opportunities,9920 - HRA Balance Sheet,B860 - Housing Rents - Cash,23/12/2013,1056654-1,875.3,REDACTED PERSONAL DATA,REDACTED PERSONAL DATA
Tendring DC,http://statistics.data.gov.uk/id/local-authority-district/22UN,Life Opportunities,H810 - Electrical Re-wiring,C200 - Main Contractor,10/12/2013,1056611-1,2000,2100953 - Mitie Property Services (UK) Limited,RETENTION RELEASE
Tendring DC,http://statistics.data.gov.uk/id/local-authority-district/22UN,Life Opportunities,C021 - Mercury Abatement Equipment and Cremators replacement,C200 - Main Contractor,17/12/2013,7010161-1,3400,2111984 - MLM Consulting Engineers Ltd,WEELEY CREM VALUATION 2
Tendring DC,http://statistics.data.gov.uk/id/local-authority-district/22UN,Life Opportunities,8540 - Leisure Centre Clacton,4400 - Maintenance Under Service Agreements,10/12/2013,7010065-1,64.4,2104791 - Mobile Mini Uk Ltd,20/11/2013 - 17/12/13
Tendring DC,http://statistics.data.gov.uk/id/local-authority-district/22UN,Life Opportunities,9920 - HRA Balance Sheet,B860 - Housing Rents - Cash,10/12/2013,1056554-1,620.89,REDACTED PERSONAL DATA,REDACTED PERSONAL DATA
Tendring DC,http://statistics.data.gov.uk/id/local-authority-district/22UN,Life Opportunities,5140 - Homelessness,4683 - Other Homelessness Expenses,17/12/2013,2112856-1,580,REDACTED PERSONAL DATA,REDACTED PERSONAL DATA
Tendring DC,http://statistics.data.gov.uk/id/local-authority-district/22UN,Life Opportunities,5140 - Homelessness,4683 - Other Homelessness Expenses,17/12/2013,2112857-1,347,REDACTED PERSONAL DATA,REDACTED PERSONAL DATA
Tendring DC,http://statistics.data.gov.uk/id/local-authority-district/22UN,Life Opportunities,5140 - Homelessness,4683 - Other Homelessness Expenses,17/12/2013,2112858-1,550,REDACTED PERSONAL DATA,REDACTED PERSONAL DATA
Tendring DC,http://statistics.data.gov.uk/id/local-authority-district/22UN,Life Opportunities,8540 - Leisure Centre Clacton,4597 - Hired Services - Payments to Contractors,03/12/2013,7009985-1,485.55,REDACTED PERSONAL DATA,REDACTED PERSONAL DATA
Tendring DC,http://statistics.data.gov.uk/id/local-authority-district/22UN,Life Opportunities,5240 - HRA - Managing Tenancies,5242 - Tenant Relations,03/12/2013,1056477-1,10,REDACTED PERSONAL DATA,REDACTED PERSONAL DATA
Tendring DC,http://statistics.data.gov.uk/id/local-authority-district/22UN,Life Opportunities,5240 - HRA - Managing Tenancies,5242 - Tenant Relations,03/12/2013,1056480-1,10,REDACTED PERSONAL DATA,REDACTED PERSONAL DATA
Tendring DC,http://statistics.data.gov.uk/id/local-authority-district/22UN,Life Opportunities,9920 - HRA Balance Sheet,B860 - Housing Rents - Cash,10/12/2013,1056555-1,225.63,REDACTED PERSONAL DATA,REDACTED PERSONAL DATA
Tendring DC,http://statistics.data.gov.uk/id/local-authority-district/22UN,Life Opportunities,9920 - HRA Balance Sheet,B860 - Housing Rents - Cash,10/12/2013,1056578-1,723.43,REDACTED PERSONAL DATA,REDACTED PERSONAL DATA
Tendring DC,http://statistics.data.gov.uk/id/local-authority-district/22UN,Life Opportunities,9920 - HRA Balance Sheet,B860 - Housing Rents - Cash,23/12/2013,1056655-1,251.95,REDACTED PERSONAL DATA,REDACTED PERSONAL DATA
Tendring DC,http://statistics.data.gov.uk/id/local-authority-district/22UN,Life Opportunities,H920 - Disabled Facilities Grants,C400 - Grant payments,03/12/2013,1056495-1,167,REDACTED PERSONAL DATA,REDACTED PERSONAL DATA
Tendring DC,http://statistics.data.gov.uk/id/local-authority-district/22UN,Life Opportunities,H920 - Disabled Facilities Grants,C400 - Grant payments,17/12/2013,1056643-1,3000,REDACTED PERSONAL DATA,REDACTED PERSONAL DATA
Tendring DC,http://statistics.data.gov.uk/id/local-authority-district/22UN,Life Opportunities,9920 - HRA Balance Sheet,B860 - Housing Rents - Cash,10/12/2013,1056579-1,294.2,REDACTED PERSONAL DATA,REDACTED PERSONAL DATA
Tendring DC,http://statistics.data.gov.uk/id/local-authority-district/22UN,Life Opportunities,9920 - HRA Balance Sheet,B860 - Housing Rents - Cash,10/12/2013,1056576-1,727.17,REDACTED PERSONAL DATA,REDACTED PERSONAL DATA
Tendring DC,http://statistics.data.gov.uk/id/local-authority-district/22UN,Life Opportunities,9920 - HRA Balance Sheet,B860 - Housing Rents - Cash,17/12/2013,2112851-1,138.69,REDACTED PERSONAL DATA,REDACTED PERSONAL DATA
Tendring DC,http://statistics.data.gov.uk/id/local-authority-district/22UN,Life Opportunities,9920 - HRA Balance Sheet,B860 - Housing Rents - Cash,17/12/2013,2112850-1,103.86,REDACTED PERSONAL DATA,REDACTED PERSONAL DATA
Tendring DC,http://statistics.data.gov.uk/id/local-authority-district/22UN,Life Opportunities,9920 - HRA Balance Sheet,B860 - Housing Rents - Cash,10/12/2013,1056577-1,502.01,REDACTED PERSONAL DATA,REDACTED PERSONAL DATA
Tendring DC,http://statistics.data.gov.uk/id/local-authority-district/22UN,Life Opportunities,5820 - Harwich Sports Centre,4597 - Hired Services - Payments to Contractors,17/12/2013,7010146-1,80,2112299 - My Time Fitness Ltd,FITNESS CLASSES
Tendring DC,http://statistics.data.gov.uk/id/local-authority-district/22UN,Life Opportunities,8520 - Frinton & Walton Swimming Pool,4400 - Maintenance Under Service Agreements,03/12/2013,2112452-1,143,2108273 - N H Maintenance,fwsp - mh maintenance
Tendring DC,http://statistics.data.gov.uk/id/local-authority-district/22UN,Life Opportunities,1240 - Housing Services Service Unit,3302 - Car Allowances - Officers,03/12/2013,1056482-1,60,REDACTED PERSONAL DATA,REDACTED PERSONAL DATA
Tendring DC,http://statistics.data.gov.uk/id/local-authority-district/22UN,Life Opportunities,7600 - Tourist Information Centres,9356 - Commission Sales,10/12/2013,2112628-1,959.13,2110032 - National Express Ltd,national express nov 13
Tendring DC,http://statistics.data.gov.uk/id/local-authority-district/22UN,Life Opportunities,7600 - Tourist Information Centres,9356 - Commission Sales,10/12/2013,2112628-2,-83.27,2110032 - National Express Ltd,national express nov 13
Tendring DC,http://statistics.data.gov.uk/id/local-authority-district/22UN,Life Opportunities,5480 - HRA - Repair & Maintenance,2076 - Gas Service Contract Other Refurbishment/Repairs (,03/12/2013,1056481-1,723.6,REDACTED PERSONAL DATA,REDACTED PERSONAL DATA
Tendring DC,http://statistics.data.gov.uk/id/local-authority-district/22UN,Life Opportunities,6160 - Princes Theatre,4622 - Hired Services - Artistes and Production Companies,17/12/2013,2112659-1,1071.4,2100909 - Neil Sands Productions,remember when at xmas
Tendring DC,http://statistics.data.gov.uk/id/local-authority-district/22UN,Life Opportunities,"1580 - Benefits, Revenues and Customer Contact SU",4094 - Other Equipment Hire/Leasing,23/12/2013,7010513-1,3656.1,2100939 - Neopost Limited,FOLDING MACHINE ANNUAL CONTRACT
Tendring DC,http://statistics.data.gov.uk/id/local-authority-district/22UN,Life Opportunities,5880 - Management Of Sport & Leisure Facilities,5166 - Marketing and Promotion,03/12/2013,7009984-1,544,2100989 - Newsquest (London) Ltd,HALF PAGE AD - CFG HMS
Tendring DC,http://statistics.data.gov.uk/id/local-authority-district/22UN,Life Opportunities,5880 - Management Of Sport & Leisure Facilities,5166 - Marketing and Promotion,10/12/2013,7010112-1,544,2100989 - Newsquest (London) Ltd,CFG & HMS HALF PAGE ADVERT
Tendring DC,http://statistics.data.gov.uk/id/local-authority-district/22UN,Life Opportunities,6160 - Princes Theatre,5160 - Advertising,03/12/2013,7700872-1,120,2100989 - Newsquest (London) Ltd,30/10 1/11 POLKADOT PANTO
Tendring DC,http://statistics.data.gov.uk/id/local-authority-district/22UN,Life Opportunities,6160 - Princes Theatre,5160 - Advertising,03/12/2013,7700873-1,164.5,2100989 - Newsquest (London) Ltd,21/11 POLKADOT PANTOMIMES
Tendring DC,http://statistics.data.gov.uk/id/local-authority-district/22UN,Life Opportunities,6160 - Princes Theatre,5160 - Advertising,03/12/2013,7700874-1,183.2,2100989 - Newsquest (London) Ltd,15/11 POLKADOT PANTO
Tendring DC,http://statistics.data.gov.uk/id/local-authority-district/22UN,Life Opportunities,6160 - Princes Theatre,5160 - Advertising,23/12/2013,1056688-1,123.36,2113536 - Newsquest Media Group,CLACTON FRINTON GAZ 5/12/13
Tendring DC,http://statistics.data.gov.uk/id/local-authority-district/22UN,Life Opportunities,6160 - Princes Theatre,5160 - Advertising,17/12/2013,2112634-1,120,2113536 - Newsquest Media Group,27/11 29/11 polkadot panto
Tendring DC,http://statistics.data.gov.uk/id/local-authority-district/22UN,Life Opportunities,5360 - HRA - Sheltered Units,2702 - Window Cleaning,23/12/2013,1056690-1,1350,2102096 - Nu-Life Cleaning,WINDOW CLEANING X 10
Tendring DC,http://statistics.data.gov.uk/id/local-authority-district/22UN,Life Opportunities,5360 - HRA - Sheltered Units,2702 - Window Cleaning,23/12/2013,1056691-1,200,2102096 - Nu-Life Cleaning,X10 SHELTERED SCHEME
Tendring DC,http://statistics.data.gov.uk/id/local-authority-district/22UN,Life Opportunities,1880 - Office Accommodation Expenses,2100 - Building Repairs,10/12/2013,7010036-1,1100,2102096 - Nu-Life Cleaning,INSIDE & OUTSIDE CLEANING @ ALL COUNCIL SITES JULY-SEPT 13
Tendring DC,http://statistics.data.gov.uk/id/local-authority-district/22UN,Life Opportunities,1880 - Office Accommodation Expenses,2100 - Building Repairs,10/12/2013,7010037-1,2300,2102096 - Nu-Life Cleaning,GUTTER & DOWNPIPE CLEANING @ ALL SITES
Tendring DC,http://statistics.data.gov.uk/id/local-authority-district/22UN,Life Opportunities,1880 - Office Accommodation Expenses,2100 - Building Repairs,10/12/2013,7010038-1,30,2102096 - Nu-Life Cleaning,JULY-SEPT WINDOW CLEANING @ BARNES HOUSE
Tendring DC,http://statistics.data.gov.uk/id/local-authority-district/22UN,Life Opportunities,5140 - Homelessness,4683 - Other Homelessness Expenses,17/12/2013,2112852-1,300,REDACTED PERSONAL DATA,REDACTED PERSONAL DATA
Tendring DC,http://statistics.data.gov.uk/id/local-authority-district/22UN,Life Opportunities,H920 - Disabled Facilities Grants,C400 - Grant payments,03/12/2013,1056494-1,4953.19,REDACTED PERSONAL DATA,REDACTED PERSONAL DATA
Tendring DC,http://statistics.data.gov.uk/id/local-authority-district/22UN,Life Opportunities,6740 - Careline,4022 - Key Safe Equipment,10/12/2013,1056543-1,21.6,2113554 - Orbital Fasteners Ltd,ORBITAL FASTENERS SLEEVE ANCHORS CARELINE
Tendring DC,http://statistics.data.gov.uk/id/local-authority-district/22UN,Life Opportunities,5860 - Manningtree Sports Centre,5311 - General Provisions - Vending,03/12/2013,2112445-1,206.31,2101083 - Osgood Smith,vending supplies
Tendring DC,http://statistics.data.gov.uk/id/local-authority-district/22UN,Life Opportunities,5820 - Harwich Sports Centre,5311 - General Provisions - Vending,03/12/2013,2112451-1,62.98,2101083 - Osgood Smith,canteen goods
Tendring DC,http://statistics.data.gov.uk/id/local-authority-district/22UN,Life Opportunities,8520 - Frinton & Walton Swimming Pool,5311 - General Provisions - Vending,03/12/2013,2112454-1,98.82,2101083 - Osgood Smith,fwsp - osgood smith
Tendring DC,http://statistics.data.gov.uk/id/local-authority-district/22UN,Life Opportunities,6160 - Princes Theatre,5306 - Confectionary,17/12/2013,2112643-1,166.28,2101083 - Osgood Smith,confectionary for theatre
Tendring DC,http://statistics.data.gov.uk/id/local-authority-district/22UN,Life Opportunities,6160 - Princes Theatre,5306 - Confectionary,17/12/2013,2112643-2,8.02,2101083 - Osgood Smith,confectionary for theatre
Tendring DC,http://statistics.data.gov.uk/id/local-authority-district/22UN,Life Opportunities,5860 - Manningtree Sports Centre,5311 - General Provisions - Vending,17/12/2013,2112816-1,84.42,2101083 - Osgood Smith,vending supplies
Tendring DC,http://statistics.data.gov.uk/id/local-authority-district/22UN,Life Opportunities,5820 - Harwich Sports Centre,5311 - General Provisions - Vending,17/12/2013,2112817-1,100.49,2101083 - Osgood Smith,canteen goods
Tendring DC,http://statistics.data.gov.uk/id/local-authority-district/22UN,Life Opportunities,8520 - Frinton & Walton Swimming Pool,5311 - General Provisions - Vending,17/12/2013,2112818-1,191.83,2101083 - Osgood Smith,osgoods/snacks
Tendring DC,http://statistics.data.gov.uk/id/local-authority-district/22UN,Life Opportunities,5860 - Manningtree Sports Centre,5311 - General Provisions - Vending,03/12/2013,7009971-1,85.65,2101083 - Osgood Smith,VENDING SUPPLIES
Tendring DC,http://statistics.data.gov.uk/id/local-authority-district/22UN,Life Opportunities,5860 - Manningtree Sports Centre,5311 - General Provisions - Vending,03/12/2013,7009971-2,-3,2101083 - Osgood Smith,VENDING SUPPLIES
Tendring DC,http://statistics.data.gov.uk/id/local-authority-district/22UN,Life Opportunities,8510 - Dovercourt Swimming Pool & All Weather Facilities,5311 - General Provisions - Vending,03/12/2013,7009979-1,98.4,2101083 - Osgood Smith,DOVERCOURT POOL - SWEETS
Tendring DC,http://statistics.data.gov.uk/id/local-authority-district/22UN,Life Opportunities,5820 - Harwich Sports Centre,5311 - General Provisions - Vending,10/12/2013,7010119-1,47.77,2101083 - Osgood Smith,CANTEEN GOODS
Tendring DC,http://statistics.data.gov.uk/id/local-authority-district/22UN,Life Opportunities,8520 - Frinton & Walton Swimming Pool,5311 - General Provisions - Vending,17/12/2013,7010144-1,49.2,2101083 - Osgood Smith,OSGOODS/SNACKS
Tendring DC,http://statistics.data.gov.uk/id/local-authority-district/22UN,Life Opportunities,8520 - Frinton & Walton Swimming Pool,5311 - General Provisions - Vending,17/12/2013,7010145-1,23.4,2101083 - Osgood Smith,OSGOODS/SNACKS
Tendring DC,http://statistics.data.gov.uk/id/local-authority-district/22UN,Life Opportunities,5860 - Manningtree Sports Centre,5311 - General Provisions - Vending,17/12/2013,7010151-1,233.04,2101083 - Osgood Smith,VENDING SUPPLIES
Tendring DC,http://statistics.data.gov.uk/id/local-authority-district/22UN,Life Opportunities,6160 - Princes Theatre,5306 - Confectionary,23/12/2013,7010380-1,1027.02,2101083 - Osgood Smith,CONFECTIONARY FOR THEATRE
Tendring DC,http://statistics.data.gov.uk/id/local-authority-district/22UN,Life Opportunities,5820 - Harwich Sports Centre,5311 - General Provisions - Vending,23/12/2013,7010494-1,76.52,2101083 - Osgood Smith,CANTEEN GOODS
Tendring DC,http://statistics.data.gov.uk/id/local-authority-district/22UN,Life Opportunities,8540 - Leisure Centre Clacton,2100 - Building Repairs,03/12/2013,7700875-1,90,2101034 - Oxborrow Engineering,REPAIR T BARS
Tendring DC,http://statistics.data.gov.uk/id/local-authority-district/22UN,Life Opportunities,5480 - HRA - Repair & Maintenance,2077 - Gas Service Contract  Servicing/Testing (Large Sca,03/12/2013,1056522-1,2873.58,2113206 - P&R Installation Company Ltd,MECHANICAL SERVICES CONTRACT (LSB)
Tendring DC,http://statistics.data.gov.uk/id/local-authority-district/22UN,Life Opportunities,5480 - HRA - Repair & Maintenance,2078 - Gas Service Contract Other Refurbishment/Repairs (,03/12/2013,1056522-2,787.5,2113206 - P&R Installation Company Ltd,MECHANICAL SERVICES CONTRACT (LSB)
Tendring DC,http://statistics.data.gov.uk/id/local-authority-district/22UN,Life Opportunities,5480 - HRA - Repair & Maintenance,2077 - Gas Service Contract  Servicing/Testing (Large Sca,17/12/2013,1056648-1,2873.58,2113206 - P&R Installation Company Ltd,MECHANICAL SERVICES CONTRACT (lsb)
Tendring DC,http://statistics.data.gov.uk/id/local-authority-district/22UN,Life Opportunities,5480 - HRA - Repair & Maintenance,2078 - Gas Service Contract Other Refurbishment/Repairs (,17/12/2013,1056648-2,2409.71,2113206 - P&R Installation Company Ltd,MECHANICAL SERVICES CONTRACT (lsb)
Tendring DC,http://statistics.data.gov.uk/id/local-authority-district/22UN,Life Opportunities,5480 - HRA - Repair & Maintenance,2017 - Mechanical Equipment /Extract Fans,23/12/2013,1056660-1,710,REDACTED PERSONAL DATA,REDACTED PERSONAL DATA
Tendring DC,http://statistics.data.gov.uk/id/local-authority-district/22UN,Life Opportunities,5480 - HRA - Repair & Maintenance,2017 - Mechanical Equipment /Extract Fans,23/12/2013,1056660-2,498,REDACTED PERSONAL DATA,REDACTED PERSONAL DATA
Tendring DC,http://statistics.data.gov.uk/id/local-authority-district/22UN,Life Opportunities,5480 - HRA - Repair & Maintenance,2017 - Mechanical Equipment /Extract Fans,23/12/2013,1056715-1,345,REDACTED PERSONAL DATA,REDACTED PERSONAL DATA
Tendring DC,http://statistics.data.gov.uk/id/local-authority-district/22UN,Life Opportunities,5480 - HRA - Repair & Maintenance,2017 - Mechanical Equipment /Extract Fans,23/12/2013,1056715-2,380,REDACTED PERSONAL DATA,REDACTED PERSONAL DATA
Tendring DC,http://statistics.data.gov.uk/id/local-authority-district/22UN,Life Opportunities,5880 - Management Of Sport & Leisure Facilities,5166 - Marketing and Promotion,10/12/2013,7010059-1,175,2101097 - Peter Lockyer Advertising Ltd,ARTWORK XMAS ADVERT
Tendring DC,http://statistics.data.gov.uk/id/local-authority-district/22UN,Life Opportunities,5880 - Management Of Sport & Leisure Facilities,5166 - Marketing and Promotion,10/12/2013,7010060-1,175,2101097 - Peter Lockyer Advertising Ltd,ART WORK B/SEA ADVERT
Tendring DC,http://statistics.data.gov.uk/id/local-authority-district/22UN,Life Opportunities,5880 - Management Of Sport & Leisure Facilities,5166 - Marketing and Promotion,10/12/2013,7010067-1,175,2101097 - Peter Lockyer Advertising Ltd,ARTWORK AD B/SEA CHRONICLE
Tendring DC,http://statistics.data.gov.uk/id/local-authority-district/22UN,Life Opportunities,5880 - Management Of Sport & Leisure Facilities,5166 - Marketing and Promotion,23/12/2013,7010498-1,175,2101097 - Peter Lockyer Advertising Ltd,ARTWORK LOOK & CFG
Tendring DC,http://statistics.data.gov.uk/id/local-authority-district/22UN,Life Opportunities,5880 - Management Of Sport & Leisure Facilities,5166 - Marketing and Promotion,23/12/2013,7010517-1,175,2101097 - Peter Lockyer Advertising Ltd,ARTWORK BSC JAN ADVERT
Tendring DC,http://statistics.data.gov.uk/id/local-authority-district/22UN,Life Opportunities,5880 - Management Of Sport & Leisure Facilities,5166 - Marketing and Promotion,03/12/2013,7700885-1,270,2101097 - Peter Lockyer Advertising Ltd,ARTWORK HARWICH GUIDE AD
Tendring DC,http://statistics.data.gov.uk/id/local-authority-district/22UN,Life Opportunities,6355 - Community Activity Network,4597 - Hired Services - Payments to Contractors,17/12/2013,7010164-1,250,2107996 - PLRS Media Ltd,HIRE OF STAGING FOR TOUR DE TENDRING 11.05.2014
Tendring DC,http://statistics.data.gov.uk/id/local-authority-district/22UN,Life Opportunities,5480 - HRA - Repair & Maintenance,2090 - Fencing,17/12/2013,2112650-1,30,2107848 - PMC Landscapes,14 rush green road
Tendring DC,http://statistics.data.gov.uk/id/local-authority-district/22UN,Life Opportunities,H710 - Selected Improvements,C200 - Main Contractor,17/12/2013,2112667-1,1457,REDACTED PERSONAL DATA,REDACTED PERSONAL DATA
Tendring DC,http://statistics.data.gov.uk/id/local-authority-district/22UN,Life Opportunities,5480 - HRA - Repair & Maintenance,2090 - Fencing,10/12/2013,7010042-1,147,2107848 - PMC Landscapes,3-15 PORTER WAY
Tendring DC,http://statistics.data.gov.uk/id/local-authority-district/22UN,Life Opportunities,5480 - HRA - Repair & Maintenance,2090 - Fencing,10/12/2013,7010043-1,150,REDACTED PERSONAL DATA,REDACTED PERSONAL DATA
Tendring DC,http://statistics.data.gov.uk/id/local-authority-district/22UN,Life Opportunities,H710 - Selected Improvements,C200 - Main Contractor,17/12/2013,7010148-1,4295,2107848 - PMC Landscapes,CAR PARK OFF TRIMLEY CLOSE
Tendring DC,http://statistics.data.gov.uk/id/local-authority-district/22UN,Life Opportunities,5480 - HRA - Repair & Maintenance,2090 - Fencing,17/12/2013,7010165-1,927.08,REDACTED PERSONAL DATA,REDACTED PERSONAL DATA
Tendring DC,http://statistics.data.gov.uk/id/local-authority-district/22UN,Life Opportunities,5480 - HRA - Repair & Maintenance,2001 - Responsive Maintenance - Concrete And Other Extern,17/12/2013,7010166-1,1495.68,REDACTED PERSONAL DATA,REDACTED PERSONAL DATA
Tendring DC,http://statistics.data.gov.uk/id/local-authority-district/22UN,Life Opportunities,5480 - HRA - Repair & Maintenance,2090 - Fencing,23/12/2013,7010383-1,30,REDACTED PERSONAL DATA,REDACTED PERSONAL DATA
Tendring DC,http://statistics.data.gov.uk/id/local-authority-district/22UN,Life Opportunities,5480 - HRA - Repair & Maintenance,2001 - Responsive Maintenance - Concrete And Other Extern,23/12/2013,7010383-2,79.5,REDACTED PERSONAL DATA,REDACTED PERSONAL DATA
Tendring DC,http://statistics.data.gov.uk/id/local-authority-district/22UN,Life Opportunities,5480 - HRA - Repair & Maintenance,2001 - Responsive Maintenance - Concrete And Other Extern,23/12/2013,7010384-1,429.76,REDACTED PERSONAL DATA,REDACTED PERSONAL DATA
Tendring DC,http://statistics.data.gov.uk/id/local-authority-district/22UN,Life Opportunities,5480 - HRA - Repair & Maintenance,2090 - Fencing,23/12/2013,7010405-1,107,REDACTED PERSONAL DATA,REDACTED PERSONAL DATA
Tendring DC,http://statistics.data.gov.uk/id/local-authority-district/22UN,Life Opportunities,5480 - HRA - Repair & Maintenance,2090 - Fencing,23/12/2013,7010406-1,291,REDACTED PERSONAL DATA,REDACTED PERSONAL DATA
Tendring DC,http://statistics.data.gov.uk/id/local-authority-district/22UN,Life Opportunities,5480 - HRA - Repair & Maintenance,2090 - Fencing,23/12/2013,7010407-1,1044,REDACTED PERSONAL DATA,REDACTED PERSONAL DATA
Tendring DC,http://statistics.data.gov.uk/id/local-authority-district/22UN,Life Opportunities,5480 - HRA - Repair & Maintenance,2090 - Fencing,23/12/2013,7010408-1,167,REDACTED PERSONAL DATA,REDACTED PERSONAL DATA
Tendring DC,http://statistics.data.gov.uk/id/local-authority-district/22UN,Life Opportunities,5480 - HRA - Repair & Maintenance,2090 - Fencing,23/12/2013,7010409-1,47,REDACTED PERSONAL DATA,REDACTED PERSONAL DATA
Tendring DC,http://statistics.data.gov.uk/id/local-authority-district/22UN,Life Opportunities,H710 - Selected Improvements,C200 - Main Contractor,03/12/2013,7700853-1,5270,2107848 - PMC Landscapes,LANGHAM DRIVE
Tendring DC,http://statistics.data.gov.uk/id/local-authority-district/22UN,Life Opportunities,6160 - Princes Theatre,4622 - Hired Services - Artistes and Production Companies,17/12/2013,7010301-1,23878.46,2111649 - Polka Dot Pantomimes,4TH PART PAYMENT PETER PAN
Tendring DC,http://statistics.data.gov.uk/id/local-authority-district/22UN,Life Opportunities,H920 - Disabled Facilities Grants,C400 - Grant payments,17/12/2013,7010308-1,3855.2,REDACTED PERSONAL DATA,REDACTED PERSONAL DATA
Tendring DC,http://statistics.data.gov.uk/id/local-authority-district/22UN,Life Opportunities,"1580 - Benefits, Revenues and Customer Contact SU",4094 - Other Equipment Hire/Leasing,17/12/2013,2112642-1,56.4,2101111 - Pressure Coolers Limited,quarterely rental nov 13 to feb 14
Tendring DC,http://statistics.data.gov.uk/id/local-authority-district/22UN,Life Opportunities,5480 - HRA - Repair & Maintenance,2020 - Fixed Plant repairs,03/12/2013,7009914-1,350,2107707 - Professional Cleaning Services (Essex) Ltd,SPENDALLS HOUSE
Tendring DC,http://statistics.data.gov.uk/id/local-authority-district/22UN,Life Opportunities,5480 - HRA - Repair & Maintenance,2012 - Responsive Maintenance - Clearance And Cleaning,03/12/2013,7009915-1,50,REDACTED PERSONAL DATA,REDACTED PERSONAL DATA
Tendring DC,http://statistics.data.gov.uk/id/local-authority-district/22UN,Life Opportunities,5480 - HRA - Repair & Maintenance,2012 - Responsive Maintenance - Clearance And Cleaning,03/12/2013,7009916-1,50,REDACTED PERSONAL DATA,REDACTED PERSONAL DATA
Tendring DC,http://statistics.data.gov.uk/id/local-authority-district/22UN,Life Opportunities,5480 - HRA - Repair & Maintenance,2012 - Responsive Maintenance - Clearance And Cleaning,03/12/2013,7009917-1,50,REDACTED PERSONAL DATA,REDACTED PERSONAL DATA
Tendring DC,http://statistics.data.gov.uk/id/local-authority-district/22UN,Life Opportunities,5480 - HRA - Repair & Maintenance,2012 - Responsive Maintenance - Clearance And Cleaning,03/12/2013,7009918-1,50,REDACTED PERSONAL DATA,REDACTED PERSONAL DATA
Tendring DC,http://statistics.data.gov.uk/id/local-authority-district/22UN,Life Opportunities,5480 - HRA - Repair & Maintenance,2012 - Responsive Maintenance - Clearance And Cleaning,17/12/2013,7010228-1,630,REDACTED PERSONAL DATA,REDACTED PERSONAL DATA
Tendring DC,http://statistics.data.gov.uk/id/local-authority-district/22UN,Life Opportunities,5480 - HRA - Repair & Maintenance,2012 - Responsive Maintenance - Clearance And Cleaning,17/12/2013,7010229-1,80,2107707 - Professional Cleaning Services (Essex) Ltd,TOWN HALL CLEANING
Tendring DC,http://statistics.data.gov.uk/id/local-authority-district/22UN,Life Opportunities,5480 - HRA - Repair & Maintenance,2012 - Responsive Maintenance - Clearance And Cleaning,17/12/2013,7010230-1,80,REDACTED PERSONAL DATA,REDACTED PERSONAL DATA
Tendring DC,http://statistics.data.gov.uk/id/local-authority-district/22UN,Life Opportunities,5860 - Manningtree Sports Centre,4040 - Equipment & Tools,03/12/2013,7009973-1,5.14,2101172 - Pulse Fitness plc,GYM REPAIR
Tendring DC,http://statistics.data.gov.uk/id/local-authority-district/22UN,Life Opportunities,8025 - Car Parks - Off St,4040 - Equipment & Tools,17/12/2013,2112639-1,147,2113149 - Quality Office Supplies Ltd,high bank managers chair
Tendring DC,http://statistics.data.gov.uk/id/local-authority-district/22UN,Life Opportunities,9900 - General Fund Balance Sheet,B382 - Rechargeable Works - Other,17/12/2013,7010157-1,583.5,REDACTED PERSONAL DATA,REDACTED PERSONAL DATA
Tendring DC,http://statistics.data.gov.uk/id/local-authority-district/22UN,Life Opportunities,9900 - General Fund Balance Sheet,B382 - Rechargeable Works - Other,17/12/2013,7010158-1,1500,REDACTED PERSONAL DATA,REDACTED PERSONAL DATA
Tendring DC,http://statistics.data.gov.uk/id/local-authority-district/22UN,Life Opportunities,H800 - Structural Repairs,C200 - Main Contractor,17/12/2013,7010159-1,600,REDACTED PERSONAL DATA,REDACTED PERSONAL DATA
Tendring DC,http://statistics.data.gov.uk/id/local-authority-district/22UN,Life Opportunities,H800 - Structural Repairs,C200 - Main Contractor,17/12/2013,7010160-1,350,REDACTED PERSONAL DATA,REDACTED PERSONAL DATA
Tendring DC,http://statistics.data.gov.uk/id/local-authority-district/22UN,Life Opportunities,5820 - Harwich Sports Centre,4000 - Furniture,03/12/2013,2112450-1,73.03,2101090 - Ricoh UK Ltd,photocopier rental and click charge
Tendring DC,http://statistics.data.gov.uk/id/local-authority-district/22UN,Life Opportunities,5800 - Brightlingsea Sports Centre,4300 - Printing & Stationery,10/12/2013,7010056-1,264.42,2101090 - Ricoh UK Ltd,RICOH
Tendring DC,http://statistics.data.gov.uk/id/local-authority-district/22UN,Life Opportunities,5240 - HRA - Managing Tenancies,4312 - Tenancy Stationery,03/12/2013,7700862-1,779.43,2101090 - Ricoh UK Ltd,L3774000147 RENTAL/CLICK CHARGE
Tendring DC,http://statistics.data.gov.uk/id/local-authority-district/22UN,Life Opportunities,1240 - Housing Services Service Unit,4300 - Printing & Stationery,03/12/2013,7700863-1,811.13,2101090 - Ricoh UK Ltd,L9084300335 RENTAL/CLICK CHARGE
Tendring DC,http://statistics.data.gov.uk/id/local-authority-district/22UN,Life Opportunities,"1580 - Benefits, Revenues and Customer Contact SU",4350 - Photocopier Hire,03/12/2013,7700864-1,46.9,2101090 - Ricoh UK Ltd,RENT & CLICK L6806460317
Tendring DC,http://statistics.data.gov.uk/id/local-authority-district/22UN,Life Opportunities,"1580 - Benefits, Revenues and Customer Contact SU",4350 - Photocopier Hire,03/12/2013,7700868-1,209.79,2101090 - Ricoh UK Ltd,K2049000285 RENTAL/CLICK CHARGE
Tendring DC,http://statistics.data.gov.uk/id/local-authority-district/22UN,Life Opportunities,H706 - Kitchen & Bathroom Replacement,C200 - Main Contractor,03/12/2013,1056461-1,5319.71,REDACTED PERSONAL DATA,REDACTED PERSONAL DATA
Tendring DC,http://statistics.data.gov.uk/id/local-authority-district/22UN,Life Opportunities,5480 - HRA - Repair & Maintenance,2088 - Disabled Adaptations,03/12/2013,1056462-1,137.62,REDACTED PERSONAL DATA,REDACTED PERSONAL DATA
Tendring DC,http://statistics.data.gov.uk/id/local-authority-district/22UN,Life Opportunities,5140 - Homelessness,4689 - Special Homelessness Projects Expenses,03/12/2013,1056463-1,57.42,REDACTED PERSONAL DATA,REDACTED PERSONAL DATA
Tendring DC,http://statistics.data.gov.uk/id/local-authority-district/22UN,Life Opportunities,5140 - Homelessness,4689 - Special Homelessness Projects Expenses,03/12/2013,1056464-1,264.99,REDACTED PERSONAL DATA,REDACTED PERSONAL DATA
Tendring DC,http://statistics.data.gov.uk/id/local-authority-district/22UN,Life Opportunities,5140 - Homelessness,4689 - Special Homelessness Projects Expenses,03/12/2013,1056465-1,156.63,REDACTED PERSONAL DATA,REDACTED PERSONAL DATA
Tendring DC,http://statistics.data.gov.uk/id/local-authority-district/22UN,Life Opportunities,5140 - Homelessness,4689 - Special Homelessness Projects Expenses,03/12/2013,1056466-1,477.76,REDACTED PERSONAL DATA,REDACTED PERSONAL DATA
Tendring DC,http://statistics.data.gov.uk/id/local-authority-district/22UN,Life Opportunities,5480 - HRA - Repair & Maintenance,2088 - Disabled Adaptations,03/12/2013,1056467-1,137.62,REDACTED PERSONAL DATA,REDACTED PERSONAL DATA
Tendring DC,http://statistics.data.gov.uk/id/local-authority-district/22UN,Life Opportunities,H710 - Selected Improvements,C200 - Main Contractor,03/12/2013,1056468-1,2987.14,REDACTED PERSONAL DATA,REDACTED PERSONAL DATA
Tendring DC,http://statistics.data.gov.uk/id/local-authority-district/22UN,Life Opportunities,H710 - Selected Improvements,C200 - Main Contractor,03/12/2013,1056469-1,2683.36,REDACTED PERSONAL DATA,REDACTED PERSONAL DATA
Tendring DC,http://statistics.data.gov.uk/id/local-authority-district/22UN,Life Opportunities,H710 - Selected Improvements,C200 - Main Contractor,03/12/2013,1056470-1,2642.28,REDACTED PERSONAL DATA,REDACTED PERSONAL DATA
Tendring DC,http://statistics.data.gov.uk/id/local-authority-district/22UN,Life Opportunities,5480 - HRA - Repair & Maintenance,2000 - Responsive Maintenance - Miscellaneous,17/12/2013,1056649-1,138632.7,2101187 - Roalco Limited,ROALCO
Tendring DC,http://statistics.data.gov.uk/id/local-authority-district/22UN,Life Opportunities,H710 - Selected Improvements,C200 - Main Contractor,10/12/2013,2112542-1,2629.69,REDACTED PERSONAL DATA,REDACTED PERSONAL DATA
Tendring DC,http://statistics.data.gov.uk/id/local-authority-district/22UN,Life Opportunities,H710 - Selected Improvements,C200 - Main Contractor,10/12/2013,2112543-1,2860.53,REDACTED PERSONAL DATA,REDACTED PERSONAL DATA
Tendring DC,http://statistics.data.gov.uk/id/local-authority-district/22UN,Life Opportunities,H710 - Selected Improvements,C200 - Main Contractor,10/12/2013,2112544-1,2809.95,REDACTED PERSONAL DATA,REDACTED PERSONAL DATA
Tendring DC,http://statistics.data.gov.uk/id/local-authority-district/22UN,Life Opportunities,H710 - Selected Improvements,C200 - Main Contractor,10/12/2013,2112545-1,2594.93,REDACTED PERSONAL DATA,REDACTED PERSONAL DATA
Tendring DC,http://statistics.data.gov.uk/id/local-authority-district/22UN,Life Opportunities,H710 - Selected Improvements,C200 - Main Contractor,10/12/2013,2112546-1,2689.9,REDACTED PERSONAL DATA,REDACTED PERSONAL DATA
Tendring DC,http://statistics.data.gov.uk/id/local-authority-district/22UN,Life Opportunities,5480 - HRA - Repair & Maintenance,2088 - Disabled Adaptations,17/12/2013,2112775-1,137.62,REDACTED PERSONAL DATA,REDACTED PERSONAL DATA
Tendring DC,http://statistics.data.gov.uk/id/local-authority-district/22UN,Life Opportunities,5480 - HRA - Repair & Maintenance,2088 - Disabled Adaptations,17/12/2013,2112776-1,51.15,REDACTED PERSONAL DATA,REDACTED PERSONAL DATA
Tendring DC,http://statistics.data.gov.uk/id/local-authority-district/22UN,Life Opportunities,5480 - HRA - Repair & Maintenance,2088 - Disabled Adaptations,17/12/2013,2112777-1,40.02,REDACTED PERSONAL DATA,REDACTED PERSONAL DATA
Tendring DC,http://statistics.data.gov.uk/id/local-authority-district/22UN,Life Opportunities,5480 - HRA - Repair & Maintenance,2088 - Disabled Adaptations,17/12/2013,2112778-1,101.35,REDACTED PERSONAL DATA,REDACTED PERSONAL DATA
Tendring DC,http://statistics.data.gov.uk/id/local-authority-district/22UN,Life Opportunities,H710 - Selected Improvements,C200 - Main Contractor,17/12/2013,7010208-1,2824.08,REDACTED PERSONAL DATA,REDACTED PERSONAL DATA
Tendring DC,http://statistics.data.gov.uk/id/local-authority-district/22UN,Life Opportunities,H706 - Kitchen & Bathroom Replacement,C200 - Main Contractor,17/12/2013,7010209-1,4097.26,REDACTED PERSONAL DATA,REDACTED PERSONAL DATA
Tendring DC,http://statistics.data.gov.uk/id/local-authority-district/22UN,Life Opportunities,5480 - HRA - Repair & Maintenance,2088 - Disabled Adaptations,17/12/2013,7010210-1,137.62,REDACTED PERSONAL DATA,REDACTED PERSONAL DATA
Tendring DC,http://statistics.data.gov.uk/id/local-authority-district/22UN,Life Opportunities,5480 - HRA - Repair & Maintenance,2088 - Disabled Adaptations,17/12/2013,7010211-1,40.02,REDACTED PERSONAL DATA,REDACTED PERSONAL DATA
Tendring DC,http://statistics.data.gov.uk/id/local-authority-district/22UN,Life Opportunities,5480 - HRA - Repair & Maintenance,2088 - Disabled Adaptations,17/12/2013,7010212-1,62.28,REDACTED PERSONAL DATA,REDACTED PERSONAL DATA
Tendring DC,http://statistics.data.gov.uk/id/local-authority-district/22UN,Life Opportunities,5480 - HRA - Repair & Maintenance,2088 - Disabled Adaptations,17/12/2013,7010213-1,61.03,REDACTED PERSONAL DATA,REDACTED PERSONAL DATA
Tendring DC,http://statistics.data.gov.uk/id/local-authority-district/22UN,Life Opportunities,9900 - General Fund Balance Sheet,B382 - Rechargeable Works - Other,03/12/2013,1056471-1,548.13,2101893 - Rose Builders Ltd,PARKESTON HOUSE
Tendring DC,http://statistics.data.gov.uk/id/local-authority-district/22UN,Life Opportunities,9900 - General Fund Balance Sheet,B382 - Rechargeable Works - Other,17/12/2013,7010221-1,1238.75,REDACTED PERSONAL DATA,REDACTED PERSONAL DATA
Tendring DC,http://statistics.data.gov.uk/id/local-authority-district/22UN,Life Opportunities,5240 - HRA - Managing Tenancies,5242 - Tenant Relations,03/12/2013,1056478-1,10,REDACTED PERSONAL DATA,REDACTED PERSONAL DATA
Tendring DC,http://statistics.data.gov.uk/id/local-authority-district/22UN,Life Opportunities,5240 - HRA - Managing Tenancies,5242 - Tenant Relations,03/12/2013,1056479-1,10,REDACTED PERSONAL DATA,REDACTED PERSONAL DATA
Tendring DC,http://statistics.data.gov.uk/id/local-authority-district/22UN,Life Opportunities,5240 - HRA - Managing Tenancies,5242 - Tenant Relations,10/12/2013,7010041-1,70,2101139 - Royal Mail,633665007
Tendring DC,http://statistics.data.gov.uk/id/local-authority-district/22UN,Life Opportunities,"1580 - Benefits, Revenues and Customer Contact SU",4700 - Postage,10/12/2013,7010095-1,86,2101139 - Royal Mail,RESPONSE PLUS LICENCE
Tendring DC,http://statistics.data.gov.uk/id/local-authority-district/22UN,Life Opportunities,"1580 - Benefits, Revenues and Customer Contact SU",4700 - Postage,17/12/2013,7010168-1,43.23,2101139 - Royal Mail,RESPONSE PLUS
Tendring DC,http://statistics.data.gov.uk/id/local-authority-district/22UN,Life Opportunities,"1580 - Benefits, Revenues and Customer Contact SU",4700 - Postage,17/12/2013,7010245-1,1853.13,2101139 - Royal Mail,OUTGOING POST NOV 13
Tendring DC,http://statistics.data.gov.uk/id/local-authority-district/22UN,Life Opportunities,5240 - HRA - Managing Tenancies,5242 - Tenant Relations,23/12/2013,7010386-1,1.22,2101139 - Royal Mail,161043000
Tendring DC,http://statistics.data.gov.uk/id/local-authority-district/22UN,Life Opportunities,"1580 - Benefits, Revenues and Customer Contact SU",4700 - Postage,23/12/2013,7010419-1,1007.92,2101139 - Royal Mail,OUTGOING POST DEC 13
Tendring DC,http://statistics.data.gov.uk/id/local-authority-district/22UN,Life Opportunities,6740 - Careline,4700 - Postage,23/12/2013,7010462-1,17.34,2101139 - Royal Mail,ROYAL MAIL - NOV 13
Tendring DC,http://statistics.data.gov.uk/id/local-authority-district/22UN,Life Opportunities,"1580 - Benefits, Revenues and Customer Contact SU",4700 - Postage,03/12/2013,7700865-1,1430.91,2101139 - Royal Mail,OUTGOING POST NOVEMBER 13
Tendring DC,http://statistics.data.gov.uk/id/local-authority-district/22UN,Life Opportunities,H710 - Selected Improvements,C200 - Main Contractor,03/12/2013,1056456-1,134.46,2101280 - S Parkin,CROOKED ELMS
Tendring DC,http://statistics.data.gov.uk/id/local-authority-district/22UN,Life Opportunities,H710 - Selected Improvements,C200 - Main Contractor,03/12/2013,1056456-2,620,2101280 - S Parkin,CROOKED ELMS
Tendring DC,http://statistics.data.gov.uk/id/local-authority-district/22UN,Life Opportunities,H710 - Selected Improvements,C200 - Main Contractor,03/12/2013,1056523-1,240.63,2101280 - S Parkin,CROOKED ELMS
Tendring DC,http://statistics.data.gov.uk/id/local-authority-district/22UN,Life Opportunities,H710 - Selected Improvements,C200 - Main Contractor,03/12/2013,1056523-2,1055,2101280 - S Parkin,CROOKED ELMS
Tendring DC,http://statistics.data.gov.uk/id/local-authority-district/22UN,Life Opportunities,5480 - HRA - Repair & Maintenance,2088 - Disabled Adaptations,17/12/2013,1056633-1,275,REDACTED PERSONAL DATA,REDACTED PERSONAL DATA
Tendring DC,http://statistics.data.gov.uk/id/local-authority-district/22UN,Life Opportunities,5480 - HRA - Repair & Maintenance,2088 - Disabled Adaptations,17/12/2013,1056633-2,35.55,REDACTED PERSONAL DATA,REDACTED PERSONAL DATA
Tendring DC,http://statistics.data.gov.uk/id/local-authority-district/22UN,Life Opportunities,H710 - Selected Improvements,C200 - Main Contractor,17/12/2013,1056634-1,100,2101280 - S Parkin,CROOKED ELMS
Tendring DC,http://statistics.data.gov.uk/id/local-authority-district/22UN,Life Opportunities,H710 - Selected Improvements,C200 - Main Contractor,17/12/2013,1056634-2,42.64,2101280 - S Parkin,CROOKED ELMS
Tendring DC,http://statistics.data.gov.uk/id/local-authority-district/22UN,Life Opportunities,H860 - Disabled Adaptations,C200 - Main Contractor,23/12/2013,1056661-1,2565,REDACTED PERSONAL DATA,REDACTED PERSONAL DATA
Tendring DC,http://statistics.data.gov.uk/id/local-authority-district/22UN,Life Opportunities,H860 - Disabled Adaptations,C200 - Main Contractor,23/12/2013,1056661-2,1924.74,REDACTED PERSONAL DATA,REDACTED PERSONAL DATA
Tendring DC,http://statistics.data.gov.uk/id/local-authority-district/22UN,Life Opportunities,H920 - Disabled Facilities Grants,C400 - Grant payments,17/12/2013,7010311-1,4709.33,REDACTED PERSONAL DATA,REDACTED PERSONAL DATA
Tendring DC,http://statistics.data.gov.uk/id/local-authority-district/22UN,Life Opportunities,5480 - HRA - Repair & Maintenance,2011 - Responsive Maintenance - Scaffolding,03/12/2013,1056514-1,700,REDACTED PERSONAL DATA,REDACTED PERSONAL DATA
Tendring DC,http://statistics.data.gov.uk/id/local-authority-district/22UN,Life Opportunities,H820 - Asbestos Management,C200 - Main Contractor,17/12/2013,1056640-1,300,REDACTED PERSONAL DATA,REDACTED PERSONAL DATA
Tendring DC,http://statistics.data.gov.uk/id/local-authority-district/22UN,Life Opportunities,H820 - Asbestos Management,C200 - Main Contractor,17/12/2013,1056640-2,120,REDACTED PERSONAL DATA,REDACTED PERSONAL DATA
Tendring DC,http://statistics.data.gov.uk/id/local-authority-district/22UN,Life Opportunities,H820 - Asbestos Management,C200 - Main Contractor,17/12/2013,1056641-1,2000,REDACTED PERSONAL DATA,REDACTED PERSONAL DATA
Tendring DC,http://statistics.data.gov.uk/id/local-authority-district/22UN,Life Opportunities,H820 - Asbestos Management,C200 - Main Contractor,17/12/2013,1056641-2,2180,REDACTED PERSONAL DATA,REDACTED PERSONAL DATA
Tendring DC,http://statistics.data.gov.uk/id/local-authority-district/22UN,Life Opportunities,H705 - Window/Door Replacement,C200 - Main Contractor,17/12/2013,2112676-1,126,2113336 - Security Surveillance Systems Ltd,coppinshill
Tendring DC,http://statistics.data.gov.uk/id/local-authority-district/22UN,Life Opportunities,H705 - Window/Door Replacement,C200 - Main Contractor,03/12/2013,7009926-1,4330,REDACTED PERSONAL DATA,REDACTED PERSONAL DATA
Tendring DC,http://statistics.data.gov.uk/id/local-authority-district/22UN,Life Opportunities,5820 - Harwich Sports Centre,4400 - Maintenance Under Service Agreements,17/12/2013,2112882-1,63.44,2108314 - Select Drinks,quarterly maintenance
Tendring DC,http://statistics.data.gov.uk/id/local-authority-district/22UN,Life Opportunities,8510 - Dovercourt Swimming Pool & All Weather Facilities,4400 - Maintenance Under Service Agreements,17/12/2013,7010156-1,152.39,2102659 - Siemens Financial Services Ltd,DOVERCOURT POOL - DRINKS
Tendring DC,http://statistics.data.gov.uk/id/local-authority-district/22UN,Life Opportunities,1880 - Office Accommodation Expenses,2304 - Energy Costs - Electricity,23/12/2013,7010506-1,413.54,2109726 - Siemens plc,METER OPERATION TOWN HALL
Tendring DC,http://statistics.data.gov.uk/id/local-authority-district/22UN,Life Opportunities,6160 - Princes Theatre,2304 - Energy Costs - Electricity,23/12/2013,7010506-2,45.95,2109726 - Siemens plc,METER OPERATION TOWN HALL
Tendring DC,http://statistics.data.gov.uk/id/local-authority-district/22UN,Life Opportunities,7600 - Tourist Information Centres,9356 - Commission Sales,10/12/2013,1056558-1,100,2113488 - Society of London Theatre,1/11/13 TO 30/11/13
Tendring DC,http://statistics.data.gov.uk/id/local-authority-district/22UN,Life Opportunities,7600 - Tourist Information Centres,9356 - Commission Sales,10/12/2013,1056558-2,-5,2113488 - Society of London Theatre,1/11/13 TO 30/11/13
Tendring DC,http://statistics.data.gov.uk/id/local-authority-district/22UN,Life Opportunities,6740 - Careline,4022 - Key Safe Equipment,03/12/2013,2112516-1,626.4,2102702 - Solon Security Ltd,solin security - 36 keysafes
Tendring DC,http://statistics.data.gov.uk/id/local-authority-district/22UN,Life Opportunities,5480 - HRA - Repair & Maintenance,2062 - Communal TV Aerials Repairs,10/12/2013,1056556-1,303,2101237 - Sound & Vision,VYNTONER HOUSE
Tendring DC,http://statistics.data.gov.uk/id/local-authority-district/22UN,Life Opportunities,5480 - HRA - Repair & Maintenance,2062 - Communal TV Aerials Repairs,17/12/2013,2112664-1,126,2101237 - Sound & Vision,25-32 grove avenue
Tendring DC,http://statistics.data.gov.uk/id/local-authority-district/22UN,Life Opportunities,5480 - HRA - Repair & Maintenance,2062 - Communal TV Aerials Repairs,17/12/2013,2112665-1,130,2101237 - Sound & Vision,honeycroft
Tendring DC,http://statistics.data.gov.uk/id/local-authority-district/22UN,Life Opportunities,7000 - CCTV,4718 - Fixed Communication Lines,17/12/2013,2112683-1,21.3,2108907 - Southern Communications Ltd,southern comms - november 13
Tendring DC,http://statistics.data.gov.uk/id/local-authority-district/22UN,Life Opportunities,5360 - HRA - Sheltered Units,4710 - Telephones - Charges,17/12/2013,2112683-10,39.89,2108907 - Southern Communications Ltd,southern comms - november 13
Tendring DC,http://statistics.data.gov.uk/id/local-authority-district/22UN,Life Opportunities,7000 - CCTV,4718 - Fixed Communication Lines,17/12/2013,2112683-2,21.3,2108907 - Southern Communications Ltd,southern comms - november 13
Tendring DC,http://statistics.data.gov.uk/id/local-authority-district/22UN,Life Opportunities,7000 - CCTV,4718 - Fixed Communication Lines,17/12/2013,2112683-3,21.3,2108907 - Southern Communications Ltd,southern comms - november 13
Tendring DC,http://statistics.data.gov.uk/id/local-authority-district/22UN,Life Opportunities,5360 - HRA - Sheltered Units,4710 - Telephones - Charges,17/12/2013,2112683-4,83.52,2108907 - Southern Communications Ltd,southern comms - november 13
Tendring DC,http://statistics.data.gov.uk/id/local-authority-district/22UN,Life Opportunities,5360 - HRA - Sheltered Units,4710 - Telephones - Charges,17/12/2013,2112683-5,84.91,2108907 - Southern Communications Ltd,southern comms - november 13
Tendring DC,http://statistics.data.gov.uk/id/local-authority-district/22UN,Life Opportunities,5360 - HRA - Sheltered Units,4710 - Telephones - Charges,17/12/2013,2112683-6,82.64,2108907 - Southern Communications Ltd,southern comms - november 13
Tendring DC,http://statistics.data.gov.uk/id/local-authority-district/22UN,Life Opportunities,5360 - HRA - Sheltered Units,4710 - Telephones - Charges,17/12/2013,2112683-7,72.5,2108907 - Southern Communications Ltd,southern comms - november 13
Tendring DC,http://statistics.data.gov.uk/id/local-authority-district/22UN,Life Opportunities,5360 - HRA - Sheltered Units,4710 - Telephones - Charges,17/12/2013,2112683-8,86.35,2108907 - Southern Communications Ltd,southern comms - november 13
Tendring DC,http://statistics.data.gov.uk/id/local-authority-district/22UN,Life Opportunities,5360 - HRA - Sheltered Units,4710 - Telephones - Charges,17/12/2013,2112683-9,74.95,2108907 - Southern Communications Ltd,southern comms - november 13
Tendring DC,http://statistics.data.gov.uk/id/local-authority-district/22UN,Life Opportunities,5480 - HRA - Repair & Maintenance,2019 - Repair & Maintenance - Keys,17/12/2013,7010300-1,195.16,REDACTED PERSONAL DATA,REDACTED PERSONAL DATA
Tendring DC,http://statistics.data.gov.uk/id/local-authority-district/22UN,Life Opportunities,5480 - HRA - Repair & Maintenance,2019 - Repair & Maintenance - Keys,23/12/2013,7010400-1,72,REDACTED PERSONAL DATA,REDACTED PERSONAL DATA
Tendring DC,http://statistics.data.gov.uk/id/local-authority-district/22UN,Life Opportunities,5480 - HRA - Repair & Maintenance,2019 - Repair & Maintenance - Keys,23/12/2013,7010401-1,72,REDACTED PERSONAL DATA,REDACTED PERSONAL DATA
Tendring DC,http://statistics.data.gov.uk/id/local-authority-district/22UN,Life Opportunities,5480 - HRA - Repair & Maintenance,2019 - Repair & Maintenance - Keys,23/12/2013,7010402-1,72,REDACTED PERSONAL DATA,REDACTED PERSONAL DATA
Tendring DC,http://statistics.data.gov.uk/id/local-authority-district/22UN,Life Opportunities,5480 - HRA - Repair & Maintenance,2019 - Repair & Maintenance - Keys,23/12/2013,7010403-1,72,REDACTED PERSONAL DATA,REDACTED PERSONAL DATA
Tendring DC,http://statistics.data.gov.uk/id/local-authority-district/22UN,Life Opportunities,8520 - Frinton & Walton Swimming Pool,2100 - Building Repairs,23/12/2013,7010390-1,139.38,2101278 - Sportsafe UK Ltd,PLG CHAIR STEP
Tendring DC,http://statistics.data.gov.uk/id/local-authority-district/22UN,Life Opportunities,5820 - Harwich Sports Centre,4040 - Equipment & Tools,23/12/2013,7010398-1,46,2102268 - St John Ambulance Supplies,FIRST AID SUPPLIES
Tendring DC,http://statistics.data.gov.uk/id/local-authority-district/22UN,Life Opportunities,6160 - Princes Theatre,4040 - Equipment & Tools,03/12/2013,7700860-1,310,2101300 - Stage Electrics,COLOUR SCROLL
Tendring DC,http://statistics.data.gov.uk/id/local-authority-district/22UN,Life Opportunities,6160 - Princes Theatre,4040 - Equipment & Tools,03/12/2013,7700861-1,773.6,2101300 - Stage Electrics,LIGHTING FOR STAGE SHOWS
Tendring DC,http://statistics.data.gov.uk/id/local-authority-district/22UN,Life Opportunities,6160 - Princes Theatre,4622 - Hired Services - Artistes and Production Companies,17/12/2013,2112660-1,3348.6,2109308 - Standing Ovation Entertainments Ltd,1 nov to 1 dec 13
Tendring DC,http://statistics.data.gov.uk/id/local-authority-district/22UN,Life Opportunities,6160 - Princes Theatre,4622 - Hired Services - Artistes and Production Companies,17/12/2013,7010295-1,66.66,2109308 - Standing Ovation Entertainments Ltd,CUSTOM REPORT
Tendring DC,http://statistics.data.gov.uk/id/local-authority-district/22UN,Life Opportunities,H860 - Disabled Adaptations,C200 - Main Contractor,17/12/2013,7010220-1,2670,REDACTED PERSONAL DATA,REDACTED PERSONAL DATA
Tendring DC,http://statistics.data.gov.uk/id/local-authority-district/22UN,Life Opportunities,1880 - Office Accommodation Expenses,2100 - Building Repairs,17/12/2013,7010287-1,66.95,2101360 - Stannah Lift Services Limited,COUNCIL TAX OFFICE
Tendring DC,http://statistics.data.gov.uk/id/local-authority-district/22UN,Life Opportunities,H920 - Disabled Facilities Grants,C400 - Grant payments,03/12/2013,1056493-1,440,REDACTED PERSONAL DATA,REDACTED PERSONAL DATA
Tendring DC,http://statistics.data.gov.uk/id/local-authority-district/22UN,Life Opportunities,1880 - Office Accommodation Expenses,2100 - Building Repairs,10/12/2013,1056557-1,11.08,2101370 - Stannah Lift Services Ltd,WEELEY AND FRINTON
Tendring DC,http://statistics.data.gov.uk/id/local-authority-district/22UN,Life Opportunities,1880 - Office Accommodation Expenses,2100 - Building Repairs,10/12/2013,1056557-2,11.09,2101370 - Stannah Lift Services Ltd,WEELEY AND FRINTON
Tendring DC,http://statistics.data.gov.uk/id/local-authority-district/22UN,Life Opportunities,H920 - Disabled Facilities Grants,C400 - Grant payments,03/12/2013,1056483-1,319,REDACTED PERSONAL DATA,REDACTED PERSONAL DATA
Tendring DC,http://statistics.data.gov.uk/id/local-authority-district/22UN,Life Opportunities,H920 - Disabled Facilities Grants,C400 - Grant payments,03/12/2013,1056484-1,345.59,REDACTED PERSONAL DATA,REDACTED PERSONAL DATA
Tendring DC,http://statistics.data.gov.uk/id/local-authority-district/22UN,Life Opportunities,H920 - Disabled Facilities Grants,C400 - Grant payments,03/12/2013,1056485-1,621.52,REDACTED PERSONAL DATA,REDACTED PERSONAL DATA
Tendring DC,http://statistics.data.gov.uk/id/local-authority-district/22UN,Life Opportunities,H920 - Disabled Facilities Grants,C400 - Grant payments,03/12/2013,1056486-1,1681.42,REDACTED PERSONAL DATA,REDACTED PERSONAL DATA
Tendring DC,http://statistics.data.gov.uk/id/local-authority-district/22UN,Life Opportunities,H920 - Disabled Facilities Grants,C400 - Grant payments,03/12/2013,1056487-1,679.53,REDACTED PERSONAL DATA,REDACTED PERSONAL DATA
Tendring DC,http://statistics.data.gov.uk/id/local-authority-district/22UN,Life Opportunities,H920 - Disabled Facilities Grants,C400 - Grant payments,03/12/2013,1056488-1,772.52,REDACTED PERSONAL DATA,REDACTED PERSONAL DATA
Tendring DC,http://statistics.data.gov.uk/id/local-authority-district/22UN,Life Opportunities,H920 - Disabled Facilities Grants,C400 - Grant payments,10/12/2013,1056580-1,176.33,REDACTED PERSONAL DATA,REDACTED PERSONAL DATA
Tendring DC,http://statistics.data.gov.uk/id/local-authority-district/22UN,Life Opportunities,H920 - Disabled Facilities Grants,C400 - Grant payments,17/12/2013,2112865-1,669.02,REDACTED PERSONAL DATA,REDACTED PERSONAL DATA
Tendring DC,http://statistics.data.gov.uk/id/local-authority-district/22UN,Life Opportunities,H920 - Disabled Facilities Grants,C400 - Grant payments,17/12/2013,2112866-1,362.02,REDACTED PERSONAL DATA,REDACTED PERSONAL DATA
Tendring DC,http://statistics.data.gov.uk/id/local-authority-district/22UN,Life Opportunities,H920 - Disabled Facilities Grants,C400 - Grant payments,17/12/2013,2112867-1,498.37,REDACTED PERSONAL DATA,REDACTED PERSONAL DATA
Tendring DC,http://statistics.data.gov.uk/id/local-authority-district/22UN,Life Opportunities,H920 - Disabled Facilities Grants,C400 - Grant payments,17/12/2013,2112868-1,463.22,REDACTED PERSONAL DATA,REDACTED PERSONAL DATA
